Workbook

Sheet Rate of return
B2: Roma Brisbane Pipeline
B3: Access Arrangement revision 2022-27
B6: Rate of return
B9: Rate of return on equity
B11: Risk free rate | F11: ='Return on debt (RBA)'!J41 -> 0.013395756 | G11: Calculated (Return on debt (RBA))
B12: Market risk premium | F12: 0.061 | G12: Set in Rate of Return Instrument
B13: Equity beta | F13: 0.6 | G13: Set in Rate of Return Instrument
B15: Rate of return on equity | F15: =F11+F12*F13 -> 0.049995756 | G15: CAPM
B18: Rate of return on debt
B20: Transition into a trailing average rate of return on debt.
B21: For the RBP, the starting point of the transition was the rate of return on debt set for the period commencing 1 July 2017 (4.64%).
B22: That rate of return has been updated, by the AER, for 2018-19, 2019-20, and 2020-21.
B23: The updated values are shown in cells H47, I47 and J47 below.
B24: A change will be required to cell K44 when the AER updates the rate of return on debt for 2021-22.
B26: The current ("on-the-day") rate of return on debt the rate of return on new debt - is determined as a weighted average of rates on A rated and BBB rated bonds with weights 1/3 and 3/2, respectively.
B27: The current rate of return on new date is an average of rates from Reserve Bank of Australia, Bloomberg and Thomson Reuters.
B28: The use of weighted average of rates on A rated and BBB rated bonds, with weights 1/3 and 2/3, and the use of data from each of the Reserve Bank, Bloomberg and Thomson Reuters, are in accrodance with the Rate of Return instrument.
B31: New debt 2022-27
D34: A rated | E34: BBB rated | F34: Weighted average
F35: (1/3 A rated, 2/3 BBB rated)
B37: RBA credit spreads | D37: ='Return on debt (RBA)'!G101 -> 0.01941884589 | E37: ='Return on debt (RBA)'!K101 -> 0.02486027203 | F37: =D37/3+2*E37/3 -> 0.02304646331
B38: Bloomberg BVAL10 | D38: ='Return on debt (BVAL10)'!E37 -> 0.0209158042 | E38: ='Return on debt (BVAL10)'!E68 -> 0.02409015339 | F38: =D38/3+2*E38/3 -> 0.02303203699
B39: Thomson Reuters | D39: ='Return on debt (T Reuters)'!E37 -> 0 | E39: ='Return on debt (T Reuters)'!E67 -> 0 | F39: =D39/3+2*E39/3 -> 0
B41: Average | F41: =AVERAGE(F37:F38) -> 0.02303925015
B44: Indicative path of return on debt (calculated as transition into trailing average) | G44: 2017-18 | H44: 2018-19 | I44: 2019-20 | J44: 2020-21 | K44: 2021-22 | L44: 2022-23 | M44: 2023-24 | N44: 2024-25 | O44: 2025-26 | P44: 2026-27
B46: New debt (calculated from history, or rate on new debt from cell F41) | H46: =10*H47-9*G47 -> 0.04496427161 | I46: =10*I47-8*G47-H46 -> 0.04264393934 | J46: =10*J47-7*G47-H46-I46 -> 0.02850961422 | K46: =$F$41 -> 0.02303925015 | L46: =$F$41 -> 0.02303925015 | M46: 0.02303925015 | N46: 0.02303925015 | O46: 0.02303925015 | P46: 0.02303925015
B47: Rate of return on debt | G47: 0.04635319268 | H47: 0.04621430058 | I47: 0.04584337524 | J47: 0.0440590174 | K47: =(6*G47+H46+I46+J46+K46)/10 -> 0.04172762314 | L47: =(5*G47+H46+I46+J46+K46+L46)/10 -> 0.03939622889 | M47: =(4*G47+H46+I46+J46+K46+L46+M46)/10 -> 0.03706483464 | N47: =(3*G47+H46+I46+J46+K46+L46+M46+N46)/10 -> 0.03473344038 | O47: =(2*G47+H46+I46+J46+K46+L46+M46+N46+O46)/10 -> 0.03240204613 | P47: =(G47+H46+I46+J46+K46+L46+M46+N46+O46+P46)/10 -> 0.03007065188
B51: Rate of return on debt | F51: =L47 -> 0.03939622889
B54: Nominal vanilla WACC
B56: Gearing | F56: 0.6 | G56: Set in Rate of Return Instrument
B57: WACC | F57: =(1-F56)*F15+F56*F51 -> 0.04363603973
B60: Rate of return: earlier access arrangement period | G60: 2017-18 | H60: 2018-29 | I60: 2019-20 | J60: 2020-21 | K60: 2021-22 | L60: 2022-23 | M60: 2023-24 | N60: 2024-25 | O60: 2025-26 | P60: 2026-27
B62: AER allowed rate return on equity (fixed for access arrangement period) | G62: 0.07 | H62: 0.07 | I62: 0.07 | J62: 0.07 | K62: 0.07
B63: Rate of return on debt | G63: =G47 -> 0.04635319268 | H63: =H47 -> 0.04621430058 | I63: 0.04584337524 | J63: 0.0440590174 | K63: 0.04172762314
B65: Gearing (fixed for access arrangement period) | G65: 0.6 | H65: 0.6 | I65: 0.6 | J65: 0.6 | K65: 0.6
B67: Nominal vanilla WACC | G67: =(1-G65)*G62+G65*G63 -> 0.05581191561 | H67: =(1-H65)*H62+H65*H63 -> 0.05572858035 | I67: =(1-I65)*I62+I65*I63 -> 0.05550602515 | J67: =(1-J65)*J62+J65*J63 -> 0.05443541044 | K67: =(1-K65)*K62+K65*K63 -> 0.05303657389 | L67: =(1-L65)*L62+L65*L63 -> 0 | M67: 0 | N67: 0 | O67: 0 | P67: 0
B69: Note:
C71: 2017-18: from AER November 2017 Final Decision on RBP Access Arrangement revision proposal; allowed rate of return on equity and gearing are fixed for access arrangement period
C72: 2018-19: return on debt from AER update, 28 June 2018
C73: 2019-20: return on debt from AER update, 23 May 2019
C74: 2020-21: return on debt from AER update, 19 Jue 2020

Sheet Return on debt (RBA)
B2: Roma Brisbane Pipeline
B3: Access Arrangement revision 2022-27
B5: Rate of return on debt: estimate from RBA data
B7: Averaging period: 20 business days to 26 February 2021
B8: Start date: 1-Feb-2021
B10: AGS (RBA F16)
D12: m ≤ 10 years | F12: m ≥ 10 years
D13: TB 160 | E13: Days | F13: TB 157 | G13: Days to | H13: Days | I13: Interpolated | J13: Effective
D14: 2030-12-21 | E14: to maturity | F14: 2031-06-21 | G14: maturity | H14: 10 years | I14: yield | J14: annual rate
B18: 2021-01-29 | D18: ='RBA F16 24-Mar-2021'!X536/100 -> 0.0109 | E18: =(2+28+31+30+31+30+31+31+30+31+30+31)+8*365+2+(31+28+31+30+31+30+31+31+30+31+30+21) -> 3613 | F18: ='RBA F16 24-Mar-2021'!Y536/100 -> 0.0113 | G18: =(2+28+31+30+31+30+31+31+30+31+30+31)+9*365+2+(31+28+31+30+31+21) -> 3795 | H18: =10*365+2 -> 3652 | I18: =D18+(H18-E18)*(F18-D18)/(G18-E18) -> 0.01098571429 | J18: =(1+I18/2)^2-1 -> 0.01101588577
B20: 2021-02-01 | C20: 0 | D20: ='RBA F16 24-Mar-2021'!X537/100 -> 0.0111 | E20: =(27+31+30+31+30+31+31+30+31+30+31)+8*365+2+(31+28+31+30+31+30+31+31+30+31+30+21) -> 3610 | F20: ='RBA F16 24-Mar-2021'!Y537/100 -> 0.0115 | G20: =(27+31+30+31+30+31+31+30+31+30+31)+9*365+2+(31+28+31+30+31+21) -> 3792 | H20: =$H$18 -> 3652 | I20: =D20+(H20-E20)*(F20-D20)/(G20-E20) -> 0.01119230769 | J20: 0.01122362463
B21: 2021-02-02 | C21: 1 | D21: ='RBA F16 24-Mar-2021'!X538/100 -> 0.01115 | E21: =$E$20-C21 -> 3609 | F21: ='RBA F16 24-Mar-2021'!Y538/100 -> 0.01155 | G21: =$G$20-C21 -> 3791 | H21: 3652 | I21: 0.01124450549 | J21: 0.01127611522
B22: 2021-02-03 | C22: 2 | D22: ='RBA F16 24-Mar-2021'!X539/100 -> 0.01135 | E22: =$E$20-C22 -> 3608 | F22: ='RBA F16 24-Mar-2021'!Y539/100 -> 0.01175 | G22: =$G$20-C22 -> 3790 | H22: 3652 | I22: 0.0114467033 | J22: 0.01147946005
B23: 2021-02-04 | C23: 3 | D23: ='RBA F16 24-Mar-2021'!X540/100 -> 0.01185 | E23: 3607 | F23: ='RBA F16 24-Mar-2021'!Y540/100 -> 0.0123 | G23: 3789 | H23: 3652 | I23: 0.01196126374 | J23: 0.01199703169
B24: 2021-02-05 | C24: 4 | D24: ='RBA F16 24-Mar-2021'!X541/100 -> 0.0115 | E24: 3606 | F24: ='RBA F16 24-Mar-2021'!Y541/100 -> 0.01195 | G24: 3788 | H24: 3652 | I24: 0.01161373626 | J24: 0.01164745598
B25: 2021-02-08 | C25: 7 | D25: ='RBA F16 24-Mar-2021'!X542/100 -> 0.01225 | E25: 3603 | F25: ='RBA F16 24-Mar-2021'!Y542/100 -> 0.0127 | G25: 3785 | H25: 3652 | I25: 0.01237115385 | J25: 0.01240941521
B26: 2021-02-09 | C26: 8 | D26: ='RBA F16 24-Mar-2021'!X543/100 -> 0.0119 | E26: 3602 | F26: ='RBA F16 24-Mar-2021'!Y543/100 -> 0.0123 | G26: 3784 | H26: 3652 | I26: 0.01200989011 | J26: 0.01204594948
B27: 2021-02-10 | C27: 9 | D27: ='RBA F16 24-Mar-2021'!X544/100 -> 0.0118 | E27: 3601 | F27: ='RBA F16 24-Mar-2021'!Y544/100 -> 0.0122 | G27: 3783 | H27: 3652 | I27: 0.01191208791 | J27: 0.01194756237
B28: 2021-02-11 | C28: 10 | D28: ='RBA F16 24-Mar-2021'!X545/100 -> 0.01145 | E28: 3600 | F28: ='RBA F16 24-Mar-2021'!Y545/100 -> 0.01185 | G28: 3782 | H28: 3652 | I28: 0.01156428571 | J28: 0.01159771889
B29: 2021-02-12 | C29: 11 | D29: ='RBA F16 24-Mar-2021'!X546/100 -> 0.0118 | E29: 3599 | F29: ='RBA F16 24-Mar-2021'!Y546/100 -> 0.0122 | G29: 3781 | H29: 3652 | I29: 0.01191648352 | J29: 0.01195198416
B30: 2021-02-15 | C30: 14 | D30: ='RBA F16 24-Mar-2021'!X547/100 -> 0.0128 | E30: 3596 | F30: ='RBA F16 24-Mar-2021'!Y547/100 -> 0.0132 | G30: 3778 | H30: 3652 | I30: 0.01292307692 | J30: 0.0129648284
B31: 2021-02-16 | C31: 15 | D31: ='RBA F16 24-Mar-2021'!X548/100 -> 0.0128 | E31: 3595 | F31: ='RBA F16 24-Mar-2021'!Y548/100 -> 0.0132 | G31: 3777 | H31: 3652 | I31: 0.01292527473 | J31: 0.01296704041
B32: 2021-02-17 | C32: 16 | D32: ='RBA F16 24-Mar-2021'!X549/100 -> 0.0136 | E32: 3594 | F32: ='RBA F16 24-Mar-2021'!Y549/100 -> 0.014 | G32: 3776 | H32: 3652 | I32: 0.01372747253 | J32: 0.0137745834
B33: 2021-02-18 | C33: 17 | D33: ='RBA F16 24-Mar-2021'!X550/100 -> 0.01325 | E33: 3593 | F33: ='RBA F16 24-Mar-2021'!Y550/100 -> 0.01365 | G33: 3775 | H33: 3652 | I33: 0.01337967033 | J33: 0.01342442422
B34: 2021-02-19 | C34: 18 | D34: ='RBA F16 24-Mar-2021'!X551/100 -> 0.0139 | E34: 3592 | F34: ='RBA F16 24-Mar-2021'!Y551/100 -> 0.0143 | G34: 3774 | H34: 3652 | I34: 0.01403186813 | J34: 0.01408109146
B35: 2021-02-22 | C35: 21 | D35: ='RBA F16 24-Mar-2021'!X552/100 -> 0.0156 | E35: 3589 | F35: ='RBA F16 24-Mar-2021'!Y552/100 -> 0.016 | G35: 3771 | H35: 3652 | I35: 0.01573846154 | J35: 0.01580038633
B36: 2021-02-23 | C36: 22 | D36: ='RBA F16 24-Mar-2021'!X553/100 -> 0.0152 | E36: 3588 | F36: ='RBA F16 24-Mar-2021'!Y553/100 -> 0.0156 | G36: 3770 | H36: 3652 | I36: 0.01534065934 | J36: 0.0153994933
B37: 2021-02-24 | C37: 23 | D37: ='RBA F16 24-Mar-2021'!X554/100 -> 0.01565 | E37: 3587 | F37: ='RBA F16 24-Mar-2021'!Y554/100 -> 0.0161 | G37: 3769 | H37: 3652 | I37: 0.01581071429 | J37: 0.01587320896
B38: 2021-02-25 | C38: 24 | D38: ='RBA F16 24-Mar-2021'!X555/100 -> 0.0169 | E38: 3586 | F38: ='RBA F16 24-Mar-2021'!Y555/100 -> 0.0173 | G38: 3768 | H38: 3652 | I38: 0.01704505495 | J38: 0.01711768842
B39: 2021-02-26 | C39: 25 | D39: ='RBA F16 24-Mar-2021'!X556/100 -> 0.0187 | E39: 3585 | F39: ='RBA F16 24-Mar-2021'!Y556/100 -> 0.0191 | G39: 3767 | H39: 3652 | I39: 0.01884725275 | J39: 0.01893605748
B41: Average: 20 trading days | J41: =AVERAGE(J20:J39) -> 0.013395756
B46: Non-financial corporate debt yields (RBA F03)
D48: Tenor 7 years | F48: Spread | H48: Tenor 10 years | J48: Spread
D49: Effective tenor | E49: Yield | F49: to swap | H49: Effective tenor | I49: Yield | J49: to swap
B53: A rated
B55: 2021-01-31 | D55: ='RBA F03 24-Mar-2021'!J204 -> 6.81 | E55: ='RBA F03 24-Mar-2021'!K204/100 -> 0.0133 | F55: ='RBA F03 24-Mar-2021'!L204/10000 -> 0.00566 | H55: ='RBA F03 24-Mar-2021'!N204 -> 8.98 | I55: ='RBA F03 24-Mar-2021'!O204/100 -> 0.0166 | J55: ='RBA F03 24-Mar-2021'!P204/10000 -> 0.005196
B56: Extrapolate to 10 years: | I56: =I55+(10-H55)*(J55-F55)/(H55-D55) -> 0.01638189862
B57: Month-end spread | I57: =I56-I18 -> 0.005396184332
B59: 2021-02-28 | D59: ='RBA F03 24-Mar-2021'!J205 -> 6.8 | E59: ='RBA F03 24-Mar-2021'!K205/100 -> 0.0201 | F59: ='RBA F03 24-Mar-2021'!L205/10000 -> 0.006615 | H59: ='RBA F03 24-Mar-2021'!N205 -> 8.95 | I59: ='RBA F03 24-Mar-2021'!O205/100 -> 0.0252 | J59: ='RBA F03 24-Mar-2021'!P205/10000 -> 0.00711
B60: Extrapolate to 10 years: | I60: =I59+(10-H59)*(J59-F59)/(H59-D59) -> 0.02544174419
B61: Month-end spread | I61: =I60-I39 -> 0.006594491439
B63: BBB rated
B65: 2021-01-31 | D65: ='RBA F03 24-Mar-2021'!AE204 -> 6.88 | E65: ='RBA F03 24-Mar-2021'!AF204/100 -> 0.0212 | F65: ='RBA F03 24-Mar-2021'!AG204/10000 -> 0.013527 | H65: ='RBA F03 24-Mar-2021'!AI204 -> 8.91 | I65: ='RBA F03 24-Mar-2021'!AJ204/100 -> 0.0232 | J65: ='RBA F03 24-Mar-2021'!AK204/10000 -> 0.011731
B66: Extrapolate to 10 years: | I66: =I65+(10-H65)*(J65-F65)/(H65-D69) -> 0.02224037255
B67: Month-end spread | I67: =I66-I18 -> 0.01125465826
B69: 2021-02-28 | D69: ='RBA F03 24-Mar-2021'!AE205 -> 6.87 | E69: ='RBA F03 24-Mar-2021'!AF205/100 -> 0.0279 | F69: ='RBA F03 24-Mar-2021'!AG205/10000 -> 0.01445 | H69: ='RBA F03 24-Mar-2021'!AI205 -> 8.87 | I69: ='RBA F03 24-Mar-2021'!AJ205/100 -> 0.0311 | J69: ='RBA F03 24-Mar-2021'!AK205/10000 -> 0.013057
B70: Extrapolate to 10 years: | I70: =I69+(10-H69)*(J69-F69)/(H69-D69) -> 0.030312955
B71: Month-end spread | I71: =I70-I39 -> 0.01146570225
B75: Daily estimates for averaging period
E76: A rated | I76: BBB rated
E77: Spread | F77: Yield | G77: Annual rate | I77: Spread | J77: Yield | K77: Annual rate
B80: 2021-02-01 | C80: 1 | E80: =$I$57+C80*($I$61-$I$57)/28 -> 0.005438981014 | F80: =E80+I20 -> 0.01663128871 | G80: =(1+F80/2)^2-1 -> 0.01670043865 | I80: =$I$67+C80*($I$71-$I$67)/28 -> 0.01126219555 | J80: =I80+I20 -> 0.02245450324 | K80: =(1+J80/2)^2-1 -> 0.02258055442
B81: 2021-02-02 | C81: 2 | E81: =$I$57+C81*($I$61-$I$57)/28 -> 0.005481777697 | F81: 0.01672628319 | G81: 0.01679622533 | I81: =$I$67+C81*($I$71-$I$67)/28 -> 0.01126973283 | J81: 0.02251423833 | K81: 0.02264096106
B82: 2021-02-03 | C82: 3 | E82: 0.005524574379 | F82: 0.01697127768 | G82: 0.01704328374 | I82: 0.01127727012 | J82: 0.02272397342 | K82: 0.02285306816
B83: 2021-02-04 | C83: 4 | E83: 0.005567371061 | F83: 0.0175286348 | G83: 0.01760544806 | I83: 0.0112848074 | J83: 0.02324607114 | K83: 0.0233811661
B84: 2021-02-05 | C84: 5 | E84: 0.005610167744 | F84: 0.01722390401 | G84: 0.01729806972 | I84: 0.01129234469 | J84: 0.02290608095 | K84: 0.02303725309
B85: 2021-02-08 | C85: 8 | E85: 0.005738557791 | F85: 0.01810971164 | G85: 0.01819170205 | I85: 0.01131495655 | J85: 0.02368611039 | K85: 0.02382636835
B86: 2021-02-09 | C86: 9 | E86: 0.005781354473 | F86: 0.01779124458 | G86: 0.01787037668 | I86: 0.01132249383 | J86: 0.02333238394 | K86: 0.02346848398
B87: 2021-02-10 | C87: 10 | E87: 0.005824151156 | F87: 0.01773623907 | G87: 0.01781488261 | I87: 0.01133003112 | J87: 0.02324211903 | K87: 0.02337716805
B88: 2021-02-11 | C88: 11 | E88: 0.005866947838 | F88: 0.01743123355 | G88: 0.01750719553 | I88: 0.0113375684 | J88: 0.02290185412 | K88: 0.02303297785
B89: 2021-02-12 | C89: 12 | E89: 0.005909744521 | F89: 0.01782622804 | G89: 0.01790567164 | I89: 0.01134510569 | J89: 0.0232615892 | K89: 0.02339686459
B90: 2021-02-15 | C90: 15 | E90: 0.006038134568 | F90: 0.01896121149 | G90: 0.01905109338 | I90: 0.01136771754 | J90: 0.02429079447 | K90: 0.02443830514
B91: 2021-02-16 | C91: 16 | E91: 0.00608093125 | F91: 0.01900620598 | G91: 0.01909651494 | I91: 0.01137525483 | J91: 0.02430052955 | K91: 0.02444815849
B92: 2021-02-17 | C92: 17 | E92: 0.006123727932 | F92: 0.01985120046 | G92: 0.019949718 | I92: 0.01138279211 | J92: 0.02511026464 | K92: 0.02526789599
B93: 2021-02-18 | C93: 18 | E93: 0.006166524615 | F93: 0.01954619494 | G93: 0.01964170838 | I93: 0.0113903294 | J93: 0.02476999973 | K93: 0.02492338795
B94: 2021-02-19 | C94: 19 | E94: 0.006209321297 | F94: 0.02024118943 | G94: 0.02034361587 | I94: 0.01139786668 | J94: 0.02542973482 | K94: 0.02559140267
B95: 2021-02-22 | C95: 22 | E95: 0.006337711344 | F95: 0.02207617288 | G95: 0.02219801224 | I95: 0.01142047854 | J95: 0.02715894008 | K95: 0.02734334209
B96: 2021-02-23 | C96: 23 | E96: 0.006380508027 | F96: 0.02172116737 | G96: 0.02183911965 | I96: 0.01142801583 | J96: 0.02676867517 | K96: 0.02694781566
B97: 2021-02-24 | C97: 24 | E97: 0.006423304709 | F97: 0.02223401899 | G97: 0.0223576069 | I97: 0.01143555311 | J97: 0.0272462674 | K97: 0.02743185717
B98: 2021-02-25 | C98: 25 | E98: 0.006466101392 | F98: 0.02351115634 | G98: 0.02364934995 | I98: 0.0114430904 | J98: 0.02848814534 | K98: 0.02869103895
B99: 2021-02-26 | C99: 26 | E99: 0.006508898074 | F99: 0.02535615082 | G99: 0.02551688442 | I99: 0.01145062768 | J99: 0.03029788043 | K99: 0.03052737082
B101: Average: 20 trading days | G101: =AVERAGE(G80:G99) -> 0.01941884589 | K101: =AVERAGE(K80:K99) -> 0.02486027203

Sheet Return on debt (BVAL10)
B2: Roma Brisbane Pipeline
B3: Access Arrangement revision 2022-27
B5: Rate of return on debt: estimate from Bloomberg data
B7: Averaging period: 20 business days to 26 February 2021
B8: Start date: 1-Feb-2021
B10: Bloomberg
D11: BVAL curve: A rated
D12: 10 years | E12: Annual rate_10 years
B16: 2021-02-01 | D16: 0.01871 | E16: =(1+D16/2)^2-1 -> 0.01879751603
B17: 2021-02-02 | D17: 0.01878 | E17: 0.0188681721
B18: 2021-02-03 | D18: 0.01907 | E18: 0.01916091623
B19: 2021-02-04 | D19: 0.01955 | E19: 0.01964555063
B20: 2021-02-05 | D20: 0.01928 | E20: 0.0193729296
B21: 2021-02-08 | D21: 0.01998 | E21: 0.0200798001
B22: 2021-02-09 | D22: 0.01961 | E22: 0.01970613803
B23: 2021-02-10 | D23: 0.01941 | E23: 0.01950418703
B24: 2021-02-11 | D24: 0.01909 | E24: 0.01918110702
B25: 2021-02-12 | D25: 0.01922 | E25: 0.0193123521
B26: 2021-02-15 | D26: 0.02026 | E26: 0.0203626169
B27: 2021-02-16 | D27: 0.02003 | E27: 0.02013030023
B28: 2021-02-17 | D28: 0.02093 | E28: 0.02103951622
B29: 2021-02-18 | D29: 0.02054 | E29: 0.0206454729
B30: 2021-02-19 | D30: 0.02154 | E30: 0.0216559929
B31: 2021-02-22 | D31: 0.02327 | E31: 0.02340537323
B32: 2021-02-23 | D32: 0.02277 | E32: 0.02289961822
B33: 2021-02-24 | D33: 0.02322 | E33: 0.0233547921
B34: 2021-02-25 | D34: 0.02471 | E34: 0.02486264602
B35: 2021-02-26 | D35: 0.02616 | E35: 0.0263310864
B37: Average: 20 trading days | E37: =AVERAGE(E16:E35) -> 0.0209158042
B39: Bloomberg
D42: BVAL curve: BBB rated
D43: 10 years | E43: Annual rate_10 years
B47: 2021-02-01 | D47: 0.02163 | E47: =(1+D47/2)^2-1 -> 0.02174696423
B48: 2021-02-02 | D48: 0.02174 | E48: 0.0218581569
B49: 2021-02-03 | D49: 0.022 | E49: 0.022121
B50: 2021-02-04 | D50: 0.02258 | E50: 0.0227074641
B51: 2021-02-05 | D51: 0.02232 | E51: 0.0224445456
B52: 2021-02-08 | D52: 0.02279 | E52: 0.02291984603
B53: 2021-02-09 | D53: 0.02245 | E53: 0.02257600062
B54: 2021-02-10 | D54: 0.02239 | E54: 0.02251532803
B55: 2021-02-11 | D55: 0.02202 | E55: 0.0221412201
B56: 2021-02-12 | D56: 0.02226 | E56: 0.0223838769
B57: 2021-02-15 | D57: 0.02332 | E57: 0.0234559556
B58: 2021-02-16 | D58: 0.02321 | E58: 0.02334467603
B59: 2021-02-17 | D59: 0.02416 | E59: 0.0243059264
B60: 2021-02-18 | D60: 0.02381 | E60: 0.02395172903
B61: 2021-02-19 | D61: 0.02474 | E61: 0.0248930169
B62: 2021-02-22 | D62: 0.02655 | E62: 0.02672622562
B63: 2021-02-23 | D63: 0.02617 | E63: 0.02634121722
B64: 2021-02-24 | D64: 0.02681 | E64: 0.02698969403
B65: 2021-02-25 | D65: 0.0282 | E65: 0.02839881
B66: 2021-02-26 | D66: 0.02976 | E66: 0.0299814144
B68: Average: 20 trading days | E68: =AVERAGE(E47:E66) -> 0.02409015339

Sheet Return on debt (T Reuters)
B2: Roma Brisbane Pipeline
B3: Access Arrangement revision 2022-27
B5: Rate of return on debt: estimate from Thomson Reuters data
B7: Averaging period: 20 business days to 26 February 2021
B8: Start date: 1-Feb-2021
B11: Thomson Reuters curve: A rated
D12: 10 years | E12: Annual rate_10 years
B16: 2021-02-01 | E16: =(1+D16/2)^2-1 -> 0
B17: 2021-02-02 | E17: 0
B18: 2021-02-03 | E18: 0
B19: 2021-02-04 | E19: 0
B20: 2021-02-05 | E20: 0
B21: 2021-02-08 | E21: 0
B22: 2021-02-09 | E22: 0
B23: 2021-02-10 | E23: 0
B24: 2021-02-11 | E24: 0
B25: 2021-02-12 | E25: 0
B26: 2021-02-15 | E26: 0
B27: 2021-02-16 | E27: 0
B28: 2021-02-17 | E28: 0
B29: 2021-02-18 | E29: 0
B30: 2021-02-19 | E30: 0
B31: 2021-02-22 | E31: 0
B32: 2021-02-23 | E32: 0
B33: 2021-02-24 | E33: 0
B34: 2021-02-25 | E34: 0
B35: 2021-02-26 | E35: 0
B37: Average: 20 trading days | E37: =AVERAGE(E16:E35) -> 0
B41: Thomson Reuters curve: BBB rated
D42: 10 years | E42: Annual rate_10 years
B46: 2021-02-01 | E46: =(1+D46/2)^2-1 -> 0
B47: 2021-02-02 | E47: 0
B48: 2021-02-03 | E48: 0
B49: 2021-02-04 | E49: 0
B50: 2021-02-05 | E50: 0
B51: 2021-02-08 | E51: 0
B52: 2021-02-09 | E52: 0
B53: 2021-02-10 | E53: 0
B54: 2021-02-11 | E54: 0
B55: 2021-02-12 | E55: 0
B56: 2021-02-15 | E56: 0
B57: 2021-02-16 | E57: 0
B58: 2021-02-17 | E58: 0
B59: 2021-02-18 | E59: 0
B60: 2021-02-19 | E60: 0
B61: 2021-02-22 | E61: 0
B62: 2021-02-23 | E62: 0
B63: 2021-02-24 | E63: 0
B64: 2021-02-25 | E64: 0
B65: 2021-02-26 | E65: 0
B67: Average: 20 trading days | E67: =AVERAGE(E46:E65) -> 0

Sheet RBA F16 24-Mar-2021
A1: F16 INDICATIVE MID RATES OF SELECTED AUSTRALIAN GOVERNMENT SECURITIES
A2: Title | B2: Treasury Bonds | C2: Treasury Bonds | D2: Treasury Bonds | E2: Treasury Bonds | F2: Treasury Bonds | G2: Treasury Bonds | H2: Treasury Bonds | I2: Treasury Bonds | J2: Treasury Bonds | K2: Treasury Bonds | L2: Treasury Bonds | M2: Treasury Bonds | N2: Treasury Bonds | O2: Treasury Bonds | P2: Treasury Bonds | Q2: Treasury Bonds | R2: Treasury Bonds | S2: Treasury Bonds | T2: Treasury Bonds | U2: Treasury Bonds | V2: Treasury Bonds | W2: Treasury Bonds | X2: Treasury Bonds | Y2: Treasury Bonds | Z2: Treasury Bonds | AA2: Treasury Bonds | AB2: Treasury Bonds | AC2: Treasury Bonds | AD2: Treasury Bonds | AE2: Treasury Bonds | AF2: Treasury Bonds | AG2: Treasury Bonds | AH2: Treasury Bonds | AI2: Treasury Indexed Bonds | AJ2: Treasury Indexed Bonds | AK2: Treasury Indexed Bonds | AL2: Treasury Indexed Bonds | AM2: Treasury Indexed Bonds | AN2: Treasury Indexed Bonds | AO2: Treasury Indexed Bonds | AP2: Treasury Indexed Bonds
A3: Description | B3: Treasury Bond 122 5.25% 15-Mar-2019 | C3: Treasury Bond 143 2.75% 21-Oct-2019 | D3: Treasury Bond 126 4.50% 15-Apr-2020 | E3: Treasury Bond 146 1.75% 21-Nov-2020 | F3: Treasury Bond 124 5.75% 15-May-2021 | G3: Treasury Bond 151 2.00% 21-Dec-2021 | H3: Treasury Bond 128 5.75% 15-Jul-2022 | I3: Treasury Bond 153 2.25% 21-Nov-2022 | J3: Treasury Bond 133 5.50% 21-Apr-2023 | K3: Treasury Bond 137 2.75% 21-Apr-2024 | L3: Treasury Bond 159 0.25% 21-Nov-2024 | M3: Treasury Bond 139 3.25% 21-Apr-2025 | N3: Treasury Bond 161 0.25% 21-Nov-2025 | O3: Treasury Bond 142 4.25% 21-Apr-2026 | P3: Treasury Bond 164 0.50% 21-Sep-2026 | Q3: Treasury Bond 136 4.75% 21-Apr-2027 | R3: Treasury Bond 148 2.75% 21-Nov-2027 | S3: Treasury Bond 149 2.25% 21-May-2028 | T3: Treasury Bond 152 2.75% 21-Nov-2028 | U3: Treasury Bond 138 3.25% 21-Apr-2029 | V3: Treasury Bond 154 2.75% 21-Nov-2029 | W3: Treasury Bond 155 2.50% 21-May-2030 | X3: Treasury Bond 160 1.00% 21-Dec-2030 | Y3: Treasury Bond 157 1.50% 21-Jun-2031 | Z3: Treasury Bond 163 1.00% 21-Nov-2031 | AA3: Treasury Bond 158 1.25% 21-May-2032 | AB3: Treasury Bond 140 4.50% 21-Apr-2033 | AC3: Treasury Bond 145 2.75% 21-Jun-2035 | AD3: Treasury Bond 144 3.75% 21-Apr-2037 | AE3: Treasury Bond 147 3.25% 21-Jun-2039 | AF3: Treasury Bond 156 2.75% 21-May-2041 | AG3: Treasury Bond 150 3.00% 21-Mar-2047 | AH3: Treasury Bond 162 1.75% 21-Jun-2051 | AI3: Treasury Indexed Bond 406 4.00% 20-Aug-2020 | AJ3: Treasury Indexed Bond 409 1.25% 21-Feb-2022 | AK3: Treasury Indexed Bond 407 3.00% 20-Sep-2025 | AL3: Treasury Indexed Bond 414 0.75% 21-Nov-2027 | AM3: Treasury Indexed Bond 408 2.50% 20-Sep-2030 | AN3: Treasury Indexed Bond 410 2.00% 21-Aug-2035 | AO3: Treasury Indexed Bond 413 1.25% 21-Aug-2040 | AP3: Treasury Indexed Bond 415 1.00% 21-Feb-2050
A4: Frequency | B4: Daily | C4: Daily | D4: Daily | E4: Daily | F4: Daily | G4: Daily | H4: Daily | I4: Daily | J4: Daily | K4: Daily | L4: Daily | M4: Daily | N4: Daily | O4: Daily | P4: Daily | Q4: Daily | R4: Daily | S4: Daily | T4: Daily | U4: Daily | V4: Daily | W4: Daily | X4: Daily | Y4: Daily | Z4: Daily | AA4: Daily | AB4: Daily | AC4: Daily | AD4: Daily | AE4: Daily | AF4: Daily | AG4: Daily | AH4: Daily | AI4: Daily | AJ4: Daily | AK4: Daily | AL4: Daily | AM4: Daily | AN4: Daily | AO4: Daily | AP4: Daily
A5: Type | B5: Original | C5: Original | D5: Original | E5: Original | F5: Original | G5: Original | H5: Original | I5: Original | J5: Original | K5: Original | L5: Original | M5: Original | N5: Original | O5: Original | P5: Original | Q5: Original | R5: Original | S5: Original | T5: Original | U5: Original | V5: Original | W5: Original | X5: Original | Y5: Original | Z5: Original | AA5: Original | AB5: Original | AC5: Original | AD5: Original | AE5: Original | AF5: Original | AG5: Original | AH5: Original | AI5: Original | AJ5: Original | AK5: Original | AL5: Original | AM5: Original | AN5: Original | AO5: Original | AP5: Original
A6: Units | B6: Per cent per annum | C6: Per cent per annum | D6: Per cent per annum | E6: Per cent per annum | F6: Per cent per annum | G6: Per cent per annum | H6: Per cent per annum | I6: Per cent per annum | J6: Per cent per annum | K6: Per cent per annum | L6: Per cent per annum | M6: Per cent per annum | N6: Per cent per annum | O6: Per cent per annum | P6: Per cent per annum | Q6: Per cent per annum | R6: Per cent per annum | S6: Per cent per annum | T6: Per cent per annum | U6: Per cent per annum | V6: Per cent per annum | W6: Per cent per annum | X6: Per cent per annum | Y6: Per cent per annum | Z6: Per cent per annum | AA6: Per cent per annum | AB6: Per cent per annum | AC6: Per cent per annum | AD6: Per cent per annum | AE6: Per cent per annum | AF6: Per cent per annum | AG6: Per cent per annum | AH6: Per cent per annum | AI6: Per cent per annum | AJ6: Per cent per annum | AK6: Per cent per annum | AL6: Per cent per annum | AM6: Per cent per annum | AN6: Per cent per annum | AO6: Per cent per annum | AP6: Per cent per annum
A9: Source | B9: Yieldbroker | C9: Yieldbroker | D9: Yieldbroker | E9: Yieldbroker | F9: Yieldbroker | G9: Yieldbroker | H9: Yieldbroker | I9: Yieldbroker | J9: Yieldbroker | K9: Yieldbroker | L9: Yieldbroker | M9: Yieldbroker | N9: Yieldbroker | O9: Yieldbroker | P9: Yieldbroker | Q9: Yieldbroker | R9: Yieldbroker | S9: Yieldbroker | T9: Yieldbroker | U9: Yieldbroker | V9: Yieldbroker | W9: Yieldbroker | X9: Yieldbroker | Y9: Yieldbroker | Z9: Yieldbroker | AA9: Yieldbroker | AB9: Yieldbroker | AC9: Yieldbroker | AD9: Yieldbroker | AE9: Yieldbroker | AF9: Yieldbroker | AG9: Yieldbroker | AH9: Yieldbroker | AI9: Yieldbroker | AJ9: Yieldbroker | AK9: Yieldbroker | AL9: Yieldbroker | AM9: Yieldbroker | AN9: Yieldbroker | AO9: Yieldbroker | AP9: Yieldbroker
A10: Publication date | B10: 2021-03-23 | C10: 2021-03-23 | D10: 2021-03-23 | E10: 2021-03-23 | F10: 2021-03-23 | G10: 2021-03-23 | H10: 2021-03-23 | I10: 2021-03-23 | J10: 2021-03-23 | K10: 2021-03-23 | L10: 2021-03-23 | M10: 2021-03-23 | N10: 2021-03-23 | O10: 2021-03-23 | P10: 2021-03-23 | Q10: 2021-03-23 | R10: 2021-03-23 | S10: 2021-03-23 | T10: 2021-03-23 | U10: 2021-03-23 | V10: 2021-03-23 | W10: 2021-03-23 | X10: 2021-03-23 | Y10: 2021-03-23 | Z10: 2021-03-23 | AA10: 2021-03-23 | AB10: 2021-03-23 | AC10: 2021-03-23 | AD10: 2021-03-23 | AE10: 2021-03-23 | AF10: 2021-03-23 | AG10: 2021-03-23 | AH10: 2021-03-23 | AI10: 2021-03-23 | AJ10: 2021-03-23 | AK10: 2021-03-23 | AL10: 2021-03-23 | AM10: 2021-03-23 | AN10: 2021-03-23 | AO10: 2021-03-23 | AP10: 2021-03-23
A11: Series ID | B11: FCMYMAR19D | C11: FCMYOCT19D | D11: FCMYAPR20D | E11: FCMYNOV20D | F11: FCMYMAY21D | G11: FCMYDEC21D | H11: FCMYJUL22D | I11: FCMYNOV22D | J11: FCMYAPR23D | K11: FCMYAPR24D | L11: FCMYNOV24D | M11: FCMYAPR25D | N11: FCMYNOV25D | O11: FCMYAPR26D | P11: FCMYSEP26D | Q11: FCMYAPR27D | R11: FCMYNOV27D | S11: FCMYMAY28D | T11: FCMYNOV28D | U11: FCMYAPR29D | V11: FCMYNOV29D | W11: FCMYMAY30D | X11: FCMYDEC30D | Y11: FCMYJUN31D | Z11: FCMYNOV31D | AA11: FCMYMAY32D | AB11: FCMYAPR33D | AC11: FCMYJUN35D | AD11: FCMYAPR37D | AE11: FCMYJUN39D | AF11: FCMYMAY41D | AG11: FCMYMAR47D | AH11: FCMYJUN51D | AI11: FCMIYAUG20D | AJ11: FCMIYFEB22D | AK11: FCMIYSEP25D | AL11: FCMIYNOV27D | AM11: FCMIYSEP30D | AN11: FCMIYAUG35D | AO11: FCMIYAUG40D | AP11: FCMIYFEB50D
A12: 2019-01-02 | B12: 1.85 | C12: 1.895 | D12: 1.88 | E12: 1.865 | F12: 1.81 | G12: 1.79 | H12: 1.79 | I12: 1.83 | J12: 1.865 | K12: 1.98 | M12: 2.085 | O12: 2.165 | Q12: 2.215 | R12: 2.26 | S12: 2.285 | T12: 2.285 | U12: 2.29 | V12: 2.3 | W12: 2.32 | AB12: 2.43 | AC12: 2.54 | AD12: 2.605 | AE12: 2.67 | AF12: 2.73 | AG12: 2.79 | AI12: 0.51 | AJ12: 0.48 | AK12: 0.59 | AL12: 0.63 | AM12: 0.675 | AN12: 0.79 | AO12: 0.865 | AP12: 0.915
A13: 2019-01-03 | B13: 1.83 | C13: 1.87 | D13: 1.825 | E13: 1.805 | F13: 1.745 | G13: 1.715 | H13: 1.72 | I13: 1.755 | J13: 1.79 | K13: 1.895 | M13: 1.985 | O13: 2.055 | Q13: 2.11 | R13: 2.15 | S13: 2.17 | T13: 2.175 | U13: 2.175 | V13: 2.185 | W13: 2.205 | AB13: 2.315 | AC13: 2.43 | AD13: 2.495 | AE13: 2.555 | AF13: 2.62 | AG13: 2.685 | AI13: 0.5 | AJ13: 0.455 | AK13: 0.515 | AL13: 0.55 | AM13: 0.59 | AN13: 0.695 | AO13: 0.77 | AP13: 0.82
A14: 2019-01-04 | B14: 1.84 | C14: 1.86 | D14: 1.85 | E14: 1.855 | F14: 1.795 | G14: 1.76 | H14: 1.76 | I14: 1.8 | J14: 1.83 | K14: 1.94 | M14: 2.035 | O14: 2.11 | Q14: 2.165 | R14: 2.21 | S14: 2.23 | T14: 2.235 | U14: 2.235 | V14: 2.25 | W14: 2.265 | AB14: 2.38 | AC14: 2.495 | AD14: 2.555 | AE14: 2.62 | AF14: 2.685 | AG14: 2.74 | AI14: 0.525 | AJ14: 0.48 | AK14: 0.56 | AL14: 0.6 | AM14: 0.645 | AN14: 0.75 | AO14: 0.825 | AP14: 0.88
A15: 2019-01-07 | B15: 1.835 | C15: 1.86 | D15: 1.865 | E15: 1.865 | F15: 1.81 | G15: 1.78 | H15: 1.785 | I15: 1.825 | J15: 1.86 | K15: 1.965 | M15: 2.065 | O15: 2.14 | Q15: 2.195 | R15: 2.245 | S15: 2.265 | T15: 2.27 | U15: 2.27 | V15: 2.28 | W15: 2.3 | AB15: 2.41 | AC15: 2.52 | AD15: 2.57 | AE15: 2.64 | AF15: 2.705 | AG15: 2.77 | AI15: 0.55 | AJ15: 0.485 | AK15: 0.565 | AL15: 0.605 | AM15: 0.65 | AN15: 0.755 | AO15: 0.83 | AP15: 0.885
A16: 2019-01-08 | B16: 1.84 | C16: 1.87 | D16: 1.885 | E16: 1.885 | F16: 1.835 | G16: 1.805 | H16: 1.81 | I16: 1.85 | J16: 1.88 | K16: 1.985 | M16: 2.085 | O16: 2.165 | Q16: 2.225 | R16: 2.275 | S16: 2.3 | T16: 2.3 | U16: 2.3 | V16: 2.315 | W16: 2.335 | AB16: 2.44 | AC16: 2.55 | AD16: 2.605 | AE16: 2.675 | AF16: 2.735 | AG16: 2.8 | AI16: 0.57 | AJ16: 0.5 | AK16: 0.585 | AL16: 0.635 | AM16: 0.68 | AN16: 0.785 | AO16: 0.855 | AP16: 0.91
A17: 2019-01-09 | B17: 1.835 | C17: 1.865 | D17: 1.895 | E17: 1.895 | F17: 1.855 | G17: 1.825 | H17: 1.825 | I17: 1.865 | J17: 1.895 | K17: 2 | M17: 2.1 | O17: 2.18 | Q17: 2.245 | R17: 2.3 | S17: 2.325 | T17: 2.325 | U17: 2.33 | V17: 2.34 | W17: 2.36 | AB17: 2.465 | AC17: 2.58 | AD17: 2.64 | AE17: 2.7 | AF17: 2.765 | AG17: 2.84 | AI17: 0.58 | AJ17: 0.505 | AK17: 0.625 | AL17: 0.685 | AM17: 0.73 | AN17: 0.835 | AO17: 0.905 | AP17: 0.96
A18: 2019-01-10 | B18: 1.885 | C18: 1.88 | D18: 1.905 | E18: 1.885 | F18: 1.84 | G18: 1.815 | H18: 1.815 | I18: 1.855 | J18: 1.88 | K18: 1.99 | M18: 2.09 | O18: 2.17 | Q18: 2.235 | R18: 2.285 | S18: 2.315 | T18: 2.315 | U18: 2.315 | V18: 2.33 | W18: 2.35 | AB18: 2.455 | AC18: 2.575 | AD18: 2.64 | AE18: 2.7 | AF18: 2.765 | AG18: 2.84 | AI18: 0.585 | AJ18: 0.505 | AK18: 0.62 | AL18: 0.675 | AM18: 0.72 | AN18: 0.83 | AO18: 0.9 | AP18: 0.955
A19: 2019-01-11 | B19: 1.86 | C19: 1.85 | D19: 1.89 | E19: 1.885 | F19: 1.835 | G19: 1.81 | H19: 1.81 | I19: 1.85 | J19: 1.87 | K19: 1.98 | M19: 2.08 | O19: 2.16 | Q19: 2.23 | R19: 2.275 | S19: 2.305 | T19: 2.305 | U19: 2.305 | V19: 2.32 | W19: 2.34 | AB19: 2.45 | AC19: 2.575 | AD19: 2.645 | AE19: 2.715 | AF19: 2.785 | AG19: 2.845 | AI19: 0.575 | AJ19: 0.49 | AK19: 0.6 | AL19: 0.66 | AM19: 0.715 | AN19: 0.82 | AO19: 0.885 | AP19: 0.94
A20: 2019-01-14 | B20: 1.865 | C20: 1.85 | D20: 1.88 | E20: 1.86 | F20: 1.81 | G20: 1.785 | H20: 1.78 | I20: 1.82 | J20: 1.845 | K20: 1.955 | M20: 2.05 | O20: 2.13 | Q20: 2.19 | R20: 2.24 | S20: 2.265 | T20: 2.27 | U20: 2.275 | V20: 2.285 | W20: 2.305 | AB20: 2.42 | AC20: 2.535 | AD20: 2.61 | AE20: 2.675 | AF20: 2.75 | AG20: 2.815 | AI20: 0.545 | AJ20: 0.46 | AK20: 0.585 | AL20: 0.645 | AM20: 0.695 | AN20: 0.805 | AO20: 0.875 | AP20: 0.93
A21: 2019-01-15 | B21: 1.87 | C21: 1.85 | D21: 1.89 | E21: 1.875 | F21: 1.825 | G21: 1.795 | H21: 1.795 | I21: 1.83 | J21: 1.855 | K21: 1.965 | M21: 2.06 | O21: 2.145 | Q21: 2.205 | R21: 2.255 | S21: 2.28 | T21: 2.285 | U21: 2.285 | V21: 2.3 | W21: 2.32 | AB21: 2.43 | AC21: 2.545 | AD21: 2.625 | AE21: 2.695 | AF21: 2.76 | AG21: 2.825 | AI21: 0.56 | AJ21: 0.475 | AK21: 0.61 | AL21: 0.67 | AM21: 0.72 | AN21: 0.825 | AO21: 0.89 | AP21: 0.955
A22: 2019-01-16 | B22: 1.87 | C22: 1.85 | D22: 1.88 | E22: 1.865 | F22: 1.81 | G22: 1.78 | H22: 1.78 | I22: 1.815 | J22: 1.84 | K22: 1.94 | M22: 2.04 | O22: 2.125 | Q22: 2.19 | R22: 2.235 | S22: 2.265 | T22: 2.27 | U22: 2.275 | V22: 2.285 | W22: 2.305 | AB22: 2.42 | AC22: 2.545 | AD22: 2.61 | AE22: 2.685 | AF22: 2.755 | AG22: 2.825 | AI22: 0.54 | AJ22: 0.46 | AK22: 0.59 | AL22: 0.655 | AM22: 0.71 | AN22: 0.82 | AO22: 0.895 | AP22: 0.95
A23: 2019-01-17 | B23: 1.875 | C23: 1.855 | D23: 1.88 | E23: 1.86 | F23: 1.815 | G23: 1.78 | H23: 1.775 | I23: 1.81 | J23: 1.83 | K23: 1.94 | M23: 2.035 | O23: 2.12 | Q23: 2.19 | R23: 2.24 | S23: 2.27 | T23: 2.275 | U23: 2.28 | V23: 2.295 | W23: 2.31 | AB23: 2.42 | AC23: 2.545 | AD23: 2.62 | AE23: 2.685 | AF23: 2.755 | AG23: 2.82 | AI23: 0.535 | AJ23: 0.45 | AK23: 0.58 | AL23: 0.655 | AM23: 0.71 | AN23: 0.825 | AO23: 0.9 | AP23: 0.95
A24: 2019-01-18 | B24: 1.87 | C24: 1.855 | D24: 1.9 | E24: 1.88 | F24: 1.84 | G24: 1.805 | H24: 1.805 | I24: 1.835 | J24: 1.865 | K24: 1.965 | M24: 2.065 | O24: 2.155 | Q24: 2.225 | R24: 2.27 | S24: 2.3 | T24: 2.31 | U24: 2.315 | V24: 2.325 | W24: 2.345 | AB24: 2.45 | AC24: 2.57 | AD24: 2.64 | AE24: 2.71 | AF24: 2.775 | AG24: 2.835 | AI24: 0.545 | AJ24: 0.465 | AK24: 0.605 | AL24: 0.68 | AM24: 0.74 | AN24: 0.855 | AO24: 0.92 | AP24: 0.975
A25: 2019-01-21 | B25: 1.865 | C25: 1.85 | D25: 1.9 | E25: 1.89 | F25: 1.84 | G25: 1.805 | H25: 1.805 | I25: 1.835 | J25: 1.855 | K25: 1.96 | M25: 2.065 | O25: 2.155 | Q25: 2.22 | R25: 2.27 | S25: 2.3 | T25: 2.305 | U25: 2.31 | V25: 2.325 | W25: 2.34 | AB25: 2.445 | AC25: 2.57 | AD25: 2.64 | AE25: 2.705 | AF25: 2.775 | AG25: 2.835 | AI25: 0.54 | AJ25: 0.46 | AK25: 0.585 | AL25: 0.66 | AM25: 0.71 | AN25: 0.825 | AO25: 0.9 | AP25: 0.955
A26: 2019-01-22 | B26: 1.875 | C26: 1.85 | D26: 1.9 | E26: 1.885 | F26: 1.84 | G26: 1.805 | H26: 1.805 | I26: 1.83 | J26: 1.855 | K26: 1.955 | M26: 2.055 | O26: 2.145 | Q26: 2.215 | R26: 2.26 | S26: 2.29 | T26: 2.295 | U26: 2.3 | V26: 2.315 | W26: 2.33 | AB26: 2.435 | AC26: 2.56 | AD26: 2.62 | AE26: 2.69 | AF26: 2.755 | AG26: 2.82 | AI26: 0.53 | AJ26: 0.45 | AK26: 0.555 | AL26: 0.63 | AM26: 0.685 | AN26: 0.795 | AO26: 0.875 | AP26: 0.93
A27: 2019-01-23 | B27: 1.87 | C27: 1.85 | D27: 1.905 | E27: 1.875 | F27: 1.82 | G27: 1.785 | H27: 1.775 | I27: 1.805 | J27: 1.825 | K27: 1.93 | M27: 2.03 | O27: 2.12 | Q27: 2.19 | R27: 2.24 | S27: 2.27 | T27: 2.275 | U27: 2.28 | V27: 2.295 | W27: 2.31 | AB27: 2.415 | AC27: 2.535 | AD27: 2.6 | AE27: 2.67 | AF27: 2.735 | AG27: 2.8 | AI27: 0.53 | AJ27: 0.44 | AK27: 0.54 | AL27: 0.62 | AM27: 0.675 | AN27: 0.795 | AO27: 0.87 | AP27: 0.93
A28: 2019-01-24 | B28: 1.88 | C28: 1.845 | D28: 1.895 | E28: 1.845 | F28: 1.795 | G28: 1.76 | H28: 1.745 | I28: 1.775 | J28: 1.8 | K28: 1.9 | M28: 2.01 | O28: 2.1 | Q28: 2.175 | R28: 2.225 | S28: 2.26 | T28: 2.265 | U28: 2.27 | V28: 2.285 | W28: 2.3 | AB28: 2.405 | AC28: 2.525 | AD28: 2.585 | AE28: 2.655 | AF28: 2.73 | AG28: 2.785 | AI28: 0.505 | AJ28: 0.41 | AK28: 0.535 | AL28: 0.61 | AM28: 0.665 | AN28: 0.785 | AO28: 0.86 | AP28: 0.92
A29: 2019-01-25 | B29: 1.87 | C29: 1.84 | D29: 1.87 | E29: 1.81 | F29: 1.745 | G29: 1.71 | H29: 1.7 | I29: 1.725 | J29: 1.75 | K29: 1.845 | M29: 1.955 | O29: 2.04 | Q29: 2.115 | R29: 2.165 | S29: 2.195 | T29: 2.205 | U29: 2.21 | V29: 2.225 | W29: 2.24 | AB29: 2.34 | AC29: 2.46 | AD29: 2.51 | AE29: 2.585 | AF29: 2.645 | AG29: 2.705 | AI29: 0.49 | AJ29: 0.375 | AK29: 0.48 | AL29: 0.555 | AM29: 0.61 | AN29: 0.725 | AO29: 0.8 | AP29: 0.86
A30: 2019-01-29 | B30: 1.875 | C30: 1.875 | D30: 1.875 | E30: 1.82 | F30: 1.755 | G30: 1.725 | H30: 1.71 | I30: 1.735 | J30: 1.765 | K30: 1.865 | M30: 1.97 | O30: 2.06 | Q30: 2.135 | R30: 2.185 | S30: 2.215 | T30: 2.225 | U30: 2.23 | V30: 2.245 | W30: 2.26 | AB30: 2.365 | AC30: 2.48 | AD30: 2.545 | AE30: 2.615 | AF30: 2.685 | AG30: 2.745 | AI30: 0.47 | AJ30: 0.37 | AK30: 0.495 | AL30: 0.57 | AM30: 0.625 | AN30: 0.74 | AO30: 0.815 | AP30: 0.875
A31: 2019-01-30 | B31: 1.855 | C31: 1.86 | D31: 1.885 | E31: 1.85 | F31: 1.79 | G31: 1.755 | H31: 1.74 | I31: 1.765 | J31: 1.79 | K31: 1.885 | M31: 1.99 | O31: 2.075 | Q31: 2.15 | R31: 2.195 | S31: 2.225 | T31: 2.235 | U31: 2.24 | V31: 2.255 | W31: 2.265 | AB31: 2.37 | AC31: 2.495 | AD31: 2.55 | AE31: 2.625 | AF31: 2.69 | AG31: 2.75 | AI31: 0.42 | AJ31: 0.315 | AK31: 0.455 | AL31: 0.545 | AM31: 0.61 | AN31: 0.725 | AO31: 0.805 | AP31: 0.87
A32: 2019-01-31 | B32: 1.865 | C32: 1.865 | D32: 1.88 | E32: 1.84 | F32: 1.785 | G32: 1.75 | H32: 1.74 | I32: 1.76 | J32: 1.78 | K32: 1.88 | M32: 1.99 | O32: 2.075 | Q32: 2.145 | R32: 2.195 | S32: 2.225 | T32: 2.24 | U32: 2.24 | V32: 2.25 | W32: 2.265 | AB32: 2.375 | AC32: 2.505 | AD32: 2.57 | AE32: 2.64 | AF32: 2.715 | AG32: 2.78 | AI32: 0.38 | AJ32: 0.295 | AK32: 0.445 | AL32: 0.545 | AM32: 0.605 | AN32: 0.74 | AO32: 0.805 | AP32: 0.885
A33: 2019-02-01 | B33: 1.865 | C33: 1.86 | D33: 1.875 | E33: 1.83 | F33: 1.775 | G33: 1.74 | H33: 1.725 | I33: 1.74 | J33: 1.76 | K33: 1.85 | M33: 1.95 | O33: 2.035 | Q33: 2.11 | R33: 2.16 | S33: 2.19 | T33: 2.205 | U33: 2.205 | V33: 2.215 | W33: 2.23 | AB33: 2.34 | AC33: 2.47 | AD33: 2.53 | AE33: 2.605 | AF33: 2.675 | AG33: 2.735 | AI33: 0.335 | AJ33: 0.255 | AK33: 0.395 | AL33: 0.51 | AM33: 0.565 | AN33: 0.71 | AO33: 0.805 | AP33: 0.87
A34: 2019-02-04 | B34: 1.855 | C34: 1.87 | D34: 1.875 | E34: 1.835 | F34: 1.79 | G34: 1.75 | H34: 1.74 | I34: 1.755 | J34: 1.775 | K34: 1.865 | M34: 1.97 | O34: 2.055 | Q34: 2.135 | R34: 2.18 | S34: 2.215 | T34: 2.225 | U34: 2.23 | V34: 2.245 | W34: 2.255 | AB34: 2.36 | AC34: 2.48 | AD34: 2.545 | AE34: 2.625 | AF34: 2.695 | AG34: 2.755 | AI34: 0.355 | AJ34: 0.265 | AK34: 0.415 | AL34: 0.525 | AM34: 0.585 | AN34: 0.725 | AO34: 0.815 | AP34: 0.885
A35: 2019-02-05 | B35: 1.875 | C35: 1.89 | D35: 1.865 | E35: 1.85 | F35: 1.805 | G35: 1.765 | H35: 1.755 | I35: 1.765 | J35: 1.79 | K35: 1.88 | M35: 1.985 | O35: 2.07 | Q35: 2.15 | R35: 2.195 | S35: 2.23 | T35: 2.245 | U35: 2.245 | V35: 2.26 | W35: 2.27 | AB35: 2.38 | AC35: 2.5 | AD35: 2.565 | AE35: 2.64 | AF35: 2.71 | AG35: 2.77 | AI35: 0.355 | AJ35: 0.285 | AK35: 0.44 | AL35: 0.545 | AM35: 0.61 | AN35: 0.755 | AO35: 0.84 | AP35: 0.915
A36: 2019-02-06 | B36: 1.845 | C36: 1.835 | D36: 1.805 | E36: 1.78 | F36: 1.71 | G36: 1.665 | H36: 1.65 | I36: 1.66 | J36: 1.68 | K36: 1.78 | M36: 1.895 | O36: 1.995 | Q36: 2.07 | R36: 2.13 | S36: 2.165 | T36: 2.18 | U36: 2.18 | V36: 2.195 | W36: 2.205 | AB36: 2.32 | AC36: 2.45 | AD36: 2.525 | AE36: 2.595 | AF36: 2.665 | AG36: 2.73 | AI36: 0.29 | AJ36: 0.21 | AK36: 0.375 | AL36: 0.505 | AM36: 0.565 | AN36: 0.71 | AO36: 0.805 | AP36: 0.875
A37: 2019-02-07 | B37: 1.845 | C37: 1.825 | D37: 1.795 | E37: 1.755 | F37: 1.7 | G37: 1.655 | H37: 1.635 | I37: 1.645 | J37: 1.655 | K37: 1.75 | M37: 1.855 | O37: 1.96 | Q37: 2.04 | R37: 2.095 | S37: 2.135 | T37: 2.145 | U37: 2.15 | V37: 2.16 | W37: 2.175 | AB37: 2.29 | AC37: 2.415 | AD37: 2.49 | AE37: 2.56 | AF37: 2.635 | AG37: 2.695 | AI37: 0.285 | AJ37: 0.2 | AK37: 0.36 | AL37: 0.49 | AM37: 0.555 | AN37: 0.7 | AO37: 0.795 | AP37: 0.87
A38: 2019-02-08 | B38: 1.83 | C38: 1.765 | D38: 1.74 | E38: 1.71 | F38: 1.67 | G38: 1.62 | H38: 1.605 | I38: 1.61 | J38: 1.62 | K38: 1.705 | M38: 1.815 | O38: 1.91 | Q38: 1.995 | R38: 2.055 | S38: 2.09 | T38: 2.1 | U38: 2.1 | V38: 2.115 | W38: 2.13 | AB38: 2.245 | AC38: 2.38 | AD38: 2.45 | AE38: 2.525 | AF38: 2.595 | AG38: 2.66 | AI38: 0.275 | AJ38: 0.21 | AK38: 0.33 | AL38: 0.46 | AM38: 0.525 | AN38: 0.67 | AO38: 0.77 | AP38: 0.85
A39: 2019-02-11 | B39: 1.835 | C39: 1.765 | D39: 1.74 | E39: 1.72 | F39: 1.675 | G39: 1.625 | H39: 1.61 | I39: 1.615 | J39: 1.62 | K39: 1.705 | M39: 1.79 | O39: 1.88 | Q39: 1.955 | R39: 2.015 | S39: 2.05 | T39: 2.06 | U39: 2.06 | V39: 2.075 | W39: 2.085 | AB39: 2.2 | AC39: 2.33 | AD39: 2.4 | AE39: 2.47 | AF39: 2.54 | AG39: 2.605 | AI39: 0.29 | AJ39: 0.22 | AK39: 0.32 | AL39: 0.44 | AM39: 0.495 | AN39: 0.645 | AO39: 0.745 | AP39: 0.835
A40: 2019-02-12 | B40: 1.835 | C40: 1.77 | D40: 1.755 | E40: 1.74 | F40: 1.71 | G40: 1.66 | H40: 1.65 | I40: 1.655 | J40: 1.665 | K40: 1.75 | M40: 1.85 | O40: 1.94 | Q40: 2.015 | R40: 2.075 | S40: 2.105 | T40: 2.115 | U40: 2.115 | V40: 2.13 | W40: 2.14 | AB40: 2.255 | AC40: 2.385 | AD40: 2.45 | AE40: 2.525 | AF40: 2.6 | AG40: 2.665 | AI40: 0.345 | AJ40: 0.29 | AK40: 0.38 | AL40: 0.495 | AM40: 0.555 | AN40: 0.69 | AO40: 0.785 | AP40: 0.865
A41: 2019-02-13 | B41: 1.845 | C41: 1.775 | D41: 1.78 | E41: 1.77 | F41: 1.735 | G41: 1.69 | H41: 1.68 | I41: 1.685 | J41: 1.695 | K41: 1.785 | M41: 1.88 | O41: 1.97 | Q41: 2.05 | R41: 2.105 | S41: 2.14 | T41: 2.15 | U41: 2.15 | V41: 2.165 | W41: 2.175 | AB41: 2.29 | AC41: 2.415 | AD41: 2.485 | AE41: 2.555 | AF41: 2.635 | AG41: 2.7 | AI41: 0.345 | AJ41: 0.28 | AK41: 0.385 | AL41: 0.5 | AM41: 0.56 | AN41: 0.7 | AO41: 0.8 | AP41: 0.88
A42: 2019-02-14 | B42: 1.84 | C42: 1.765 | D42: 1.785 | E42: 1.775 | F42: 1.745 | G42: 1.695 | H42: 1.685 | I42: 1.685 | J42: 1.695 | K42: 1.785 | M42: 1.88 | O42: 1.97 | Q42: 2.045 | R42: 2.1 | S42: 2.135 | T42: 2.145 | U42: 2.145 | V42: 2.16 | W42: 2.17 | AB42: 2.285 | AC42: 2.41 | AD42: 2.48 | AE42: 2.55 | AF42: 2.63 | AG42: 2.695 | AI42: 0.355 | AJ42: 0.28 | AK42: 0.38 | AL42: 0.49 | AM42: 0.54 | AN42: 0.685 | AO42: 0.77 | AP42: 0.855
A43: 2019-02-15 | B43: 1.84 | C43: 1.76 | D43: 1.765 | E43: 1.75 | F43: 1.72 | G43: 1.665 | H43: 1.655 | I43: 1.655 | J43: 1.66 | K43: 1.745 | M43: 1.835 | O43: 1.925 | Q43: 2 | R43: 2.06 | S43: 2.09 | T43: 2.1 | U43: 2.1 | V43: 2.115 | W43: 2.125 | AB43: 2.24 | AC43: 2.37 | AD43: 2.435 | AE43: 2.51 | AF43: 2.58 | AG43: 2.645 | AI43: 0.335 | AJ43: 0.265 | AK43: 0.37 | AL43: 0.47 | AM43: 0.515 | AN43: 0.655 | AO43: 0.745 | AP43: 0.83
A44: 2019-02-18 | B44: 1.84 | C44: 1.765 | D44: 1.785 | E44: 1.78 | F44: 1.745 | G44: 1.69 | H44: 1.68 | I44: 1.685 | J44: 1.69 | K44: 1.775 | M44: 1.88 | O44: 1.965 | Q44: 2.04 | R44: 2.095 | S44: 2.125 | T44: 2.135 | U44: 2.14 | V44: 2.155 | W44: 2.165 | AB44: 2.28 | AC44: 2.405 | AD44: 2.475 | AE44: 2.545 | AF44: 2.62 | AG44: 2.685 | AI44: 0.375 | AJ44: 0.305 | AK44: 0.415 | AL44: 0.525 | AM44: 0.57 | AN44: 0.715 | AO44: 0.815 | AP44: 0.9
A45: 2019-02-19 | B45: 1.86 | C45: 1.765 | D45: 1.785 | E45: 1.775 | F45: 1.745 | G45: 1.685 | H45: 1.68 | I45: 1.68 | J45: 1.685 | K45: 1.765 | M45: 1.87 | O45: 1.96 | Q45: 2.03 | R45: 2.09 | S45: 2.12 | T45: 2.13 | U45: 2.135 | V45: 2.15 | W45: 2.16 | AB45: 2.275 | AC45: 2.4 | AD45: 2.47 | AE45: 2.54 | AF45: 2.615 | AG45: 2.68 | AI45: 0.38 | AJ45: 0.305 | AK45: 0.415 | AL45: 0.515 | AM45: 0.565 | AN45: 0.71 | AO45: 0.8 | AP45: 0.89
A46: 2019-02-20 | B46: 1.84 | C46: 1.76 | D46: 1.765 | E46: 1.73 | F46: 1.705 | G46: 1.65 | H46: 1.64 | I46: 1.645 | J46: 1.645 | K46: 1.725 | M46: 1.83 | O46: 1.92 | Q46: 1.995 | R46: 2.055 | S46: 2.085 | T46: 2.1 | U46: 2.1 | V46: 2.115 | W46: 2.125 | AB46: 2.24 | AC46: 2.365 | AD46: 2.435 | AE46: 2.51 | AF46: 2.585 | AG46: 2.645 | AI46: 0.365 | AJ46: 0.31 | AK46: 0.42 | AL46: 0.51 | AM46: 0.56 | AN46: 0.705 | AO46: 0.8 | AP46: 0.895
A47: 2019-02-21 | B47: 1.785 | C47: 1.735 | D47: 1.715 | E47: 1.675 | F47: 1.65 | G47: 1.595 | H47: 1.59 | I47: 1.595 | J47: 1.6 | K47: 1.675 | M47: 1.785 | O47: 1.875 | Q47: 1.95 | R47: 2.005 | S47: 2.04 | T47: 2.055 | U47: 2.055 | V47: 2.07 | W47: 2.08 | AB47: 2.195 | AC47: 2.32 | AD47: 2.39 | AE47: 2.46 | AF47: 2.54 | AG47: 2.6 | AI47: 0.31 | AJ47: 0.26 | AK47: 0.38 | AL47: 0.475 | AM47: 0.53 | AN47: 0.67 | AO47: 0.765 | AP47: 0.86
A48: 2019-02-22 | B48: 1.795 | C48: 1.75 | D48: 1.745 | E48: 1.715 | F48: 1.695 | G48: 1.635 | H48: 1.63 | I48: 1.64 | J48: 1.645 | K48: 1.72 | M48: 1.82 | O48: 1.91 | Q48: 1.99 | R48: 2.045 | S48: 2.08 | T48: 2.095 | U48: 2.095 | V48: 2.11 | W48: 2.12 | AB48: 2.235 | AC48: 2.365 | AD48: 2.435 | AE48: 2.51 | AF48: 2.585 | AG48: 2.645 | AI48: 0.36 | AJ48: 0.29 | AK48: 0.415 | AL48: 0.51 | AM48: 0.56 | AN48: 0.705 | AO48: 0.8 | AP48: 0.895
A49: 2019-02-25 | B49: 1.79 | C49: 1.755 | D49: 1.755 | E49: 1.73 | F49: 1.71 | G49: 1.655 | H49: 1.65 | I49: 1.66 | J49: 1.66 | K49: 1.73 | M49: 1.825 | O49: 1.91 | Q49: 1.985 | R49: 2.04 | S49: 2.07 | T49: 2.085 | U49: 2.085 | V49: 2.1 | W49: 2.11 | AB49: 2.225 | AC49: 2.355 | AD49: 2.42 | AE49: 2.5 | AF49: 2.575 | AG49: 2.64 | AI49: 0.39 | AJ49: 0.32 | AK49: 0.405 | AL49: 0.495 | AM49: 0.545 | AN49: 0.68 | AO49: 0.77 | AP49: 0.875
A50: 2019-02-26 | B50: 1.785 | C50: 1.75 | D50: 1.765 | E50: 1.73 | F50: 1.71 | G50: 1.655 | H50: 1.65 | I50: 1.66 | J50: 1.665 | K50: 1.735 | M50: 1.825 | O50: 1.91 | Q50: 1.985 | R50: 2.04 | S50: 2.07 | T50: 2.085 | U50: 2.09 | V50: 2.105 | W50: 2.115 | AB50: 2.225 | AC50: 2.35 | AD50: 2.415 | AE50: 2.495 | AF50: 2.575 | AG50: 2.635 | AI50: 0.415 | AJ50: 0.32 | AK50: 0.42 | AL50: 0.505 | AM50: 0.555 | AN50: 0.7 | AO50: 0.79 | AP50: 0.88
A51: 2019-02-27 | B51: 1.79 | C51: 1.73 | D51: 1.74 | E51: 1.71 | F51: 1.695 | G51: 1.635 | H51: 1.63 | I51: 1.64 | J51: 1.645 | K51: 1.72 | M51: 1.81 | O51: 1.895 | Q51: 1.965 | R51: 2.02 | S51: 2.055 | T51: 2.065 | U51: 2.07 | V51: 2.085 | W51: 2.095 | AB51: 2.215 | AC51: 2.34 | AD51: 2.41 | AE51: 2.505 | AF51: 2.585 | AG51: 2.645 | AI51: 0.38 | AJ51: 0.3 | AK51: 0.41 | AL51: 0.49 | AM51: 0.53 | AN51: 0.675 | AO51: 0.765 | AP51: 0.855
A52: 2019-02-28 | B52: 1.785 | C52: 1.715 | D52: 1.73 | E52: 1.705 | F52: 1.685 | G52: 1.63 | H52: 1.625 | I52: 1.635 | J52: 1.64 | K52: 1.72 | M52: 1.83 | O52: 1.915 | Q52: 1.99 | R52: 2.045 | S52: 2.085 | T52: 2.095 | U52: 2.1 | V52: 2.115 | W52: 2.125 | AB52: 2.245 | AC52: 2.365 | AD52: 2.425 | AE52: 2.53 | AF52: 2.61 | AG52: 2.67 | AI52: 0.43 | AJ52: 0.285 | AK52: 0.415 | AL52: 0.495 | AM52: 0.54 | AN52: 0.685 | AO52: 0.77 | AP52: 0.86
A53: 2019-03-01 | B53: 1.82 | C53: 1.73 | D53: 1.76 | E53: 1.74 | F53: 1.725 | G53: 1.67 | H53: 1.665 | I53: 1.675 | J53: 1.685 | K53: 1.77 | M53: 1.87 | O53: 1.96 | Q53: 2.04 | R53: 2.095 | S53: 2.135 | T53: 2.145 | U53: 2.15 | V53: 2.165 | W53: 2.175 | AB53: 2.285 | AC53: 2.4 | AD53: 2.465 | AE53: 2.565 | AF53: 2.65 | AG53: 2.705 | AI53: 0.46 | AJ53: 0.325 | AK53: 0.45 | AL53: 0.545 | AM53: 0.58 | AN53: 0.725 | AO53: 0.82 | AP53: 0.91
A54: 2019-03-04 | B54: 1.795 | C54: 1.725 | D54: 1.775 | E54: 1.755 | F54: 1.745 | G54: 1.695 | H54: 1.685 | I54: 1.695 | J54: 1.705 | K54: 1.795 | M54: 1.905 | O54: 2 | Q54: 2.075 | R54: 2.13 | S54: 2.175 | T54: 2.185 | U54: 2.19 | V54: 2.205 | W54: 2.215 | AB54: 2.33 | AC54: 2.44 | AD54: 2.505 | AE54: 2.6 | AF54: 2.69 | AG54: 2.745 | AI54: 0.475 | AJ54: 0.36 | AK54: 0.485 | AL54: 0.575 | AM54: 0.615 | AN54: 0.76 | AO54: 0.865 | AP54: 0.95
A55: 2019-03-05 | B55: 1.785 | C55: 1.725 | D55: 1.765 | E55: 1.735 | F55: 1.72 | G55: 1.66 | H55: 1.655 | I55: 1.665 | J55: 1.67 | K55: 1.76 | M55: 1.87 | O55: 1.965 | Q55: 2.045 | R55: 2.1 | S55: 2.135 | T55: 2.15 | U55: 2.155 | V55: 2.17 | W55: 2.18 | AB55: 2.295 | AC55: 2.405 | AD55: 2.47 | AE55: 2.565 | AF55: 2.65 | AG55: 2.71 | AI55: 0.47 | AJ55: 0.345 | AK55: 0.465 | AL55: 0.56 | AM55: 0.595 | AN55: 0.74 | AO55: 0.845 | AP55: 0.935
A56: 2019-03-06 | B56: 1.785 | C56: 1.705 | D56: 1.705 | E56: 1.68 | F56: 1.655 | G56: 1.6 | H56: 1.59 | I56: 1.6 | J56: 1.605 | K56: 1.695 | M56: 1.805 | O56: 1.895 | Q56: 1.975 | R56: 2.035 | S56: 2.075 | T56: 2.09 | U56: 2.095 | V56: 2.11 | W56: 2.12 | AB56: 2.235 | AC56: 2.345 | AD56: 2.41 | AE56: 2.505 | AF56: 2.59 | AG56: 2.655 | AI56: 0.415 | AJ56: 0.325 | AK56: 0.445 | AL56: 0.525 | AM56: 0.565 | AN56: 0.71 | AO56: 0.815 | AP56: 0.905
A57: 2019-03-07 | B57: 1.785 | C57: 1.625 | D57: 1.695 | E57: 1.685 | F57: 1.67 | G57: 1.615 | H57: 1.605 | I57: 1.61 | J57: 1.615 | K57: 1.7 | M57: 1.805 | O57: 1.89 | Q57: 1.97 | R57: 2.025 | S57: 2.065 | T57: 2.08 | U57: 2.085 | V57: 2.1 | W57: 2.11 | AB57: 2.225 | AC57: 2.34 | AD57: 2.405 | AE57: 2.5 | AF57: 2.585 | AG57: 2.65 | AI57: 0.385 | AJ57: 0.335 | AK57: 0.43 | AL57: 0.515 | AM57: 0.55 | AN57: 0.7 | AO57: 0.805 | AP57: 0.89
A58: 2019-03-08 | B58: 1.78 | C58: 1.62 | D58: 1.695 | E58: 1.665 | F58: 1.65 | G58: 1.59 | H58: 1.58 | I58: 1.585 | J58: 1.59 | K58: 1.665 | M58: 1.765 | O58: 1.845 | Q58: 1.92 | R58: 1.975 | S58: 2.01 | T58: 2.025 | U58: 2.03 | V58: 2.04 | W58: 2.05 | AB58: 2.17 | AC58: 2.3 | AD58: 2.365 | AE58: 2.46 | AF58: 2.545 | AG58: 2.61 | AI58: 0.38 | AJ58: 0.325 | AK58: 0.395 | AL58: 0.49 | AM58: 0.515 | AN58: 0.655 | AO58: 0.755 | AP58: 0.85
A59: 2019-03-11 | B59: 1.78 | C59: 1.595 | D59: 1.685 | E59: 1.67 | F59: 1.655 | G59: 1.6 | H59: 1.59 | I59: 1.595 | J59: 1.595 | K59: 1.67 | M59: 1.775 | O59: 1.855 | Q59: 1.925 | R59: 1.98 | S59: 2.015 | T59: 2.03 | U59: 2.03 | V59: 2.045 | W59: 2.055 | AB59: 2.175 | AC59: 2.3 | AD59: 2.365 | AE59: 2.465 | AF59: 2.555 | AG59: 2.615 | AI59: 0.39 | AJ59: 0.325 | AK59: 0.4 | AL59: 0.485 | AM59: 0.52 | AN59: 0.665 | AO59: 0.765 | AP59: 0.86
A60: 2019-03-12 | B60: 1.78 | C60: 1.585 | D60: 1.66 | E60: 1.675 | F60: 1.66 | G60: 1.605 | H60: 1.595 | I60: 1.6 | J60: 1.595 | K60: 1.67 | M60: 1.77 | O60: 1.85 | Q60: 1.92 | R60: 1.975 | S60: 2.015 | T60: 2.03 | U60: 2.03 | V60: 2.045 | W60: 2.055 | AB60: 2.18 | AC60: 2.3 | AD60: 2.36 | AE60: 2.46 | AF60: 2.545 | AG60: 2.61 | AI60: 0.39 | AJ60: 0.32 | AK60: 0.39 | AL60: 0.47 | AM60: 0.505 | AN60: 0.65 | AO60: 0.76 | AP60: 0.85
A61: 2019-03-13 | C61: 1.56 | D61: 1.605 | E61: 1.61 | F61: 1.595 | G61: 1.54 | H61: 1.53 | I61: 1.535 | J61: 1.53 | K61: 1.605 | M61: 1.705 | O61: 1.78 | Q61: 1.85 | R61: 1.905 | S61: 1.945 | T61: 1.96 | U61: 1.96 | V61: 1.975 | W61: 1.985 | AB61: 2.11 | AC61: 2.235 | AD61: 2.305 | AE61: 2.4 | AF61: 2.485 | AG61: 2.555 | AI61: 0.355 | AJ61: 0.285 | AK61: 0.33 | AL61: 0.425 | AM61: 0.47 | AN61: 0.625 | AO61: 0.735 | AP61: 0.825
A62: 2019-03-14 | C62: 1.505 | D62: 1.59 | E62: 1.605 | F62: 1.58 | G62: 1.525 | H62: 1.515 | I62: 1.525 | J62: 1.52 | K62: 1.595 | M62: 1.705 | O62: 1.79 | Q62: 1.86 | R62: 1.91 | S62: 1.95 | T62: 1.97 | U62: 1.97 | V62: 1.985 | W62: 1.995 | AB62: 2.115 | AC62: 2.245 | AD62: 2.32 | AE62: 2.405 | AF62: 2.495 | AG62: 2.565 | AI62: 0.34 | AJ62: 0.26 | AK62: 0.315 | AL62: 0.41 | AM62: 0.465 | AN62: 0.63 | AO62: 0.75 | AP62: 0.835
A63: 2019-03-15 | C63: 1.48 | D63: 1.61 | E63: 1.6 | F63: 1.59 | G63: 1.54 | H63: 1.53 | I63: 1.54 | J63: 1.535 | K63: 1.61 | M63: 1.715 | O63: 1.79 | Q63: 1.86 | R63: 1.91 | S63: 1.955 | T63: 1.975 | U63: 1.98 | V63: 1.99 | W63: 2.005 | AB63: 2.13 | AC63: 2.265 | AD63: 2.335 | AE63: 2.43 | AF63: 2.525 | AG63: 2.605 | AI63: 0.34 | AJ63: 0.275 | AK63: 0.325 | AL63: 0.415 | AM63: 0.475 | AN63: 0.645 | AO63: 0.785 | AP63: 0.88
A64: 2019-03-18 | C64: 1.495 | D64: 1.625 | E64: 1.62 | F64: 1.605 | G64: 1.55 | H64: 1.545 | I64: 1.55 | J64: 1.545 | K64: 1.615 | M64: 1.72 | O64: 1.8 | Q64: 1.87 | R64: 1.92 | S64: 1.96 | T64: 1.98 | U64: 1.98 | V64: 1.995 | W64: 2.005 | AB64: 2.13 | AC64: 2.26 | AD64: 2.33 | AE64: 2.43 | AF64: 2.52 | AG64: 2.595 | AI64: 0.36 | AJ64: 0.295 | AK64: 0.345 | AL64: 0.435 | AM64: 0.49 | AN64: 0.66 | AO64: 0.81 | AP64: 0.9
A65: 2019-03-19 | C65: 1.485 | D65: 1.595 | E65: 1.585 | F65: 1.56 | G65: 1.505 | H65: 1.495 | I65: 1.505 | J65: 1.5 | K65: 1.57 | M65: 1.67 | O65: 1.75 | Q65: 1.82 | R65: 1.87 | S65: 1.905 | T65: 1.925 | U65: 1.93 | V65: 1.945 | W65: 1.955 | AB65: 2.08 | AC65: 2.21 | AD65: 2.28 | AE65: 2.375 | AF65: 2.47 | AG65: 2.545 | AI65: 0.33 | AJ65: 0.25 | AK65: 0.31 | AL65: 0.4 | AM65: 0.455 | AN65: 0.625 | AO65: 0.77 | AP65: 0.865
A66: 2019-03-20 | C66: 1.49 | D66: 1.59 | E66: 1.57 | F66: 1.54 | G66: 1.49 | H66: 1.485 | I66: 1.49 | J66: 1.485 | K66: 1.555 | M66: 1.66 | O66: 1.755 | Q66: 1.825 | R66: 1.875 | S66: 1.91 | T66: 1.93 | U66: 1.935 | V66: 1.95 | W66: 1.96 | AB66: 2.09 | AC66: 2.22 | AD66: 2.3 | AE66: 2.395 | AF66: 2.495 | AG66: 2.58 | AI66: 0.295 | AJ66: 0.22 | AK66: 0.295 | AL66: 0.39 | AM66: 0.455 | AN66: 0.635 | AO66: 0.775 | AP66: 0.875
A67: 2019-03-21 | C67: 1.495 | D67: 1.57 | E67: 1.555 | F67: 1.525 | G67: 1.47 | H67: 1.46 | I67: 1.46 | J67: 1.46 | K67: 1.525 | M67: 1.62 | O67: 1.7 | Q67: 1.77 | R67: 1.815 | S67: 1.855 | T67: 1.875 | U67: 1.88 | V67: 1.89 | W67: 1.9 | AB67: 2.025 | AC67: 2.165 | AD67: 2.245 | AE67: 2.345 | AF67: 2.445 | AG67: 2.525 | AI67: 0.285 | AJ67: 0.19 | AK67: 0.26 | AL67: 0.34 | AM67: 0.405 | AN67: 0.58 | AO67: 0.725 | AP67: 0.825
A68: 2019-03-22 | C68: 1.47 | D68: 1.535 | E68: 1.52 | F68: 1.495 | G68: 1.44 | H68: 1.425 | I68: 1.43 | J68: 1.43 | K68: 1.495 | M68: 1.58 | O68: 1.66 | Q68: 1.725 | R68: 1.77 | S68: 1.81 | T68: 1.83 | U68: 1.835 | V68: 1.845 | W68: 1.855 | AB68: 1.98 | AC68: 2.105 | AD68: 2.18 | AE68: 2.275 | AF68: 2.38 | AG68: 2.47 | AI68: 0.24 | AJ68: 0.145 | AK68: 0.205 | AL68: 0.285 | AM68: 0.345 | AN68: 0.51 | AO68: 0.645 | AP68: 0.755
A69: 2019-03-25 | C69: 1.47 | D69: 1.52 | E69: 1.495 | F69: 1.47 | G69: 1.41 | H69: 1.395 | I69: 1.395 | J69: 1.395 | K69: 1.455 | M69: 1.54 | O69: 1.61 | Q69: 1.67 | R69: 1.72 | S69: 1.755 | T69: 1.775 | U69: 1.78 | V69: 1.79 | W69: 1.8 | AB69: 1.925 | AC69: 2.055 | AD69: 2.125 | AE69: 2.225 | AF69: 2.325 | AG69: 2.415 | AI69: 0.275 | AJ69: 0.165 | AK69: 0.205 | AL69: 0.275 | AM69: 0.335 | AN69: 0.485 | AO69: 0.615 | AP69: 0.73
A70: 2019-03-26 | C70: 1.49 | D70: 1.55 | E70: 1.54 | F70: 1.51 | G70: 1.445 | H70: 1.43 | I70: 1.435 | J70: 1.435 | K70: 1.49 | M70: 1.575 | O70: 1.66 | Q70: 1.715 | R70: 1.765 | S70: 1.8 | T70: 1.82 | U70: 1.825 | V70: 1.84 | W70: 1.85 | AB70: 1.97 | AC70: 2.1 | AD70: 2.175 | AE70: 2.275 | AF70: 2.375 | AG70: 2.465 | AI70: 0.32 | AJ70: 0.215 | AK70: 0.25 | AL70: 0.315 | AM70: 0.385 | AN70: 0.545 | AO70: 0.675 | AP70: 0.785
A71: 2019-03-27 | C71: 1.495 | D71: 1.55 | E71: 1.515 | F71: 1.48 | G71: 1.405 | H71: 1.39 | I71: 1.39 | J71: 1.39 | K71: 1.44 | M71: 1.525 | O71: 1.605 | Q71: 1.67 | R71: 1.71 | S71: 1.75 | T71: 1.775 | U71: 1.775 | V71: 1.79 | W71: 1.8 | AB71: 1.92 | AC71: 2.05 | AD71: 2.125 | AE71: 2.225 | AF71: 2.315 | AG71: 2.415 | AI71: 0.305 | AJ71: 0.195 | AK71: 0.22 | AL71: 0.29 | AM71: 0.355 | AN71: 0.52 | AO71: 0.645 | AP71: 0.76
A72: 2019-03-28 | C72: 1.49 | D72: 1.55 | E72: 1.5 | F72: 1.45 | G72: 1.385 | H72: 1.365 | I72: 1.365 | J72: 1.36 | K72: 1.41 | M72: 1.495 | O72: 1.565 | Q72: 1.625 | R72: 1.665 | S72: 1.7 | T72: 1.725 | U72: 1.725 | V72: 1.74 | W72: 1.75 | AB72: 1.87 | AC72: 2 | AD72: 2.075 | AE72: 2.175 | AF72: 2.27 | AG72: 2.37 | AI72: 0.295 | AJ72: 0.185 | AK72: 0.195 | AL72: 0.255 | AM72: 0.32 | AN72: 0.465 | AO72: 0.595 | AP72: 0.705
A73: 2019-03-29 | C73: 1.485 | D73: 1.545 | E73: 1.5 | F73: 1.455 | G73: 1.4 | H73: 1.385 | I73: 1.39 | J73: 1.385 | K73: 1.44 | M73: 1.525 | O73: 1.61 | Q73: 1.67 | R73: 1.715 | S73: 1.75 | T73: 1.77 | U73: 1.775 | V73: 1.79 | W73: 1.795 | AB73: 1.91 | AC73: 2.045 | AD73: 2.115 | AE73: 2.21 | AF73: 2.305 | AG73: 2.4 | AI73: 0.305 | AJ73: 0.21 | AK73: 0.25 | AL73: 0.305 | AM73: 0.37 | AN73: 0.505 | AO73: 0.6 | AP73: 0.705
A74: 2019-04-01 | C74: 1.505 | D74: 1.57 | E74: 1.51 | F74: 1.48 | G74: 1.42 | H74: 1.405 | I74: 1.415 | J74: 1.41 | K74: 1.46 | M74: 1.55 | O74: 1.635 | Q74: 1.695 | R74: 1.74 | S74: 1.78 | T74: 1.795 | U74: 1.8 | V74: 1.815 | W74: 1.825 | AB74: 1.94 | AC74: 2.065 | AD74: 2.125 | AE74: 2.23 | AF74: 2.315 | AG74: 2.42 | AI74: 0.34 | AJ74: 0.22 | AK74: 0.25 | AL74: 0.315 | AM74: 0.375 | AN74: 0.5 | AO74: 0.61 | AP74: 0.71
A75: 2019-04-02 | C75: 1.505 | D75: 1.55 | E75: 1.475 | F75: 1.435 | G75: 1.385 | H75: 1.37 | I75: 1.38 | J75: 1.38 | K75: 1.43 | M75: 1.53 | O75: 1.63 | Q75: 1.7 | R75: 1.75 | S75: 1.79 | T75: 1.805 | U75: 1.81 | V75: 1.825 | W75: 1.835 | AB75: 1.95 | AC75: 2.065 | AD75: 2.14 | AE75: 2.235 | AF75: 2.335 | AG75: 2.425 | AI75: 0.28 | AJ75: 0.175 | AK75: 0.235 | AL75: 0.305 | AM75: 0.365 | AN75: 0.495 | AO75: 0.6 | AP75: 0.695
A76: 2019-04-03 | C76: 1.505 | D76: 1.545 | E76: 1.48 | F76: 1.455 | G76: 1.41 | H76: 1.4 | I76: 1.405 | J76: 1.41 | K76: 1.465 | M76: 1.56 | O76: 1.655 | Q76: 1.73 | R76: 1.78 | S76: 1.815 | T76: 1.835 | U76: 1.84 | V76: 1.855 | W76: 1.865 | AB76: 1.98 | AC76: 2.1 | AD76: 2.17 | AE76: 2.265 | AF76: 2.36 | AG76: 2.455 | AI76: 0.22 | AJ76: 0.17 | AK76: 0.22 | AL76: 0.29 | AM76: 0.34 | AN76: 0.475 | AO76: 0.585 | AP76: 0.685
A77: 2019-04-04 | C77: 1.565 | D77: 1.58 | E77: 1.505 | F77: 1.49 | G77: 1.445 | H77: 1.435 | I77: 1.44 | J77: 1.445 | K77: 1.505 | M77: 1.605 | O77: 1.705 | Q77: 1.78 | R77: 1.83 | S77: 1.87 | T77: 1.885 | U77: 1.89 | V77: 1.91 | W77: 1.925 | AB77: 2.035 | AC77: 2.15 | AD77: 2.225 | AE77: 2.325 | AF77: 2.41 | AG77: 2.515 | AI77: 0.25 | AJ77: 0.19 | AK77: 0.25 | AL77: 0.33 | AM77: 0.385 | AN77: 0.525 | AO77: 0.64 | AP77: 0.735
A78: 2019-04-05 | C78: 1.535 | D78: 1.565 | E78: 1.53 | F78: 1.5 | G78: 1.46 | H78: 1.45 | I78: 1.455 | J78: 1.46 | K78: 1.525 | M78: 1.615 | O78: 1.715 | Q78: 1.79 | R78: 1.84 | S78: 1.88 | T78: 1.895 | U78: 1.9 | V78: 1.92 | W78: 1.935 | AB78: 2.05 | AC78: 2.165 | AD78: 2.23 | AE78: 2.33 | AF78: 2.425 | AG78: 2.52 | AI78: 0.255 | AJ78: 0.19 | AK78: 0.23 | AL78: 0.32 | AM78: 0.38 | AN78: 0.525 | AO78: 0.645 | AP78: 0.745
A79: 2019-04-08 | C79: 1.53 | D79: 1.55 | E79: 1.5 | F79: 1.475 | G79: 1.435 | H79: 1.425 | I79: 1.43 | J79: 1.435 | K79: 1.495 | M79: 1.59 | O79: 1.69 | Q79: 1.76 | R79: 1.81 | S79: 1.85 | T79: 1.865 | U79: 1.87 | V79: 1.89 | W79: 1.905 | AB79: 2.015 | AC79: 2.13 | AD79: 2.2 | AE79: 2.3 | AF79: 2.395 | AG79: 2.495 | AI79: 0.215 | AJ79: 0.165 | AK79: 0.215 | AL79: 0.3 | AM79: 0.36 | AN79: 0.51 | AO79: 0.625 | AP79: 0.73
A80: 2019-04-09 | C80: 1.535 | D80: 1.55 | E80: 1.505 | F80: 1.48 | G80: 1.435 | H80: 1.425 | I80: 1.43 | J80: 1.44 | K80: 1.505 | M80: 1.6 | O80: 1.715 | Q80: 1.785 | R80: 1.84 | S80: 1.875 | T80: 1.89 | U80: 1.9 | V80: 1.915 | W80: 1.93 | AB80: 2.04 | AC80: 2.155 | AD80: 2.225 | AE80: 2.325 | AF80: 2.42 | AG80: 2.515 | AI80: 0.185 | AJ80: 0.14 | AK80: 0.19 | AL80: 0.27 | AM80: 0.315 | AN80: 0.475 | AO80: 0.615 | AP80: 0.71
A81: 2019-04-10 | C81: 1.56 | D81: 1.555 | E81: 1.515 | F81: 1.485 | G81: 1.44 | H81: 1.43 | I81: 1.435 | J81: 1.445 | K81: 1.505 | M81: 1.605 | O81: 1.695 | Q81: 1.765 | R81: 1.815 | S81: 1.855 | T81: 1.87 | U81: 1.87 | V81: 1.89 | W81: 1.905 | AB81: 2.02 | AC81: 2.13 | AD81: 2.205 | AE81: 2.3 | AF81: 2.395 | AG81: 2.49 | AI81: 0.2 | AJ81: 0.14 | AK81: 0.18 | AL81: 0.25 | AM81: 0.285 | AN81: 0.435 | AO81: 0.56 | AP81: 0.655
A82: 2019-04-11 | C82: 1.545 | D82: 1.545 | E82: 1.515 | F82: 1.48 | G82: 1.44 | H82: 1.43 | I82: 1.435 | J82: 1.44 | K82: 1.5 | M82: 1.605 | O82: 1.685 | Q82: 1.75 | R82: 1.8 | S82: 1.84 | T82: 1.855 | U82: 1.855 | V82: 1.875 | W82: 1.89 | AB82: 2.01 | AC82: 2.125 | AD82: 2.195 | AE82: 2.285 | AF82: 2.385 | AG82: 2.48 | AI82: 0.195 | AJ82: 0.13 | AK82: 0.175 | AL82: 0.23 | AM82: 0.27 | AN82: 0.415 | AO82: 0.525 | AP82: 0.62
A83: 2019-04-12 | C83: 1.535 | D83: 1.555 | E83: 1.525 | F83: 1.485 | G83: 1.445 | H83: 1.44 | I83: 1.445 | J83: 1.455 | K83: 1.515 | M83: 1.62 | O83: 1.705 | Q83: 1.775 | R83: 1.825 | S83: 1.865 | T83: 1.88 | U83: 1.88 | V83: 1.9 | W83: 1.915 | AB83: 2.035 | AC83: 2.15 | AD83: 2.225 | AE83: 2.32 | AF83: 2.415 | AG83: 2.515 | AI83: 0.215 | AJ83: 0.165 | AK83: 0.21 | AL83: 0.28 | AM83: 0.31 | AN83: 0.46 | AO83: 0.57 | AP83: 0.66
A84: 2019-04-15 | C84: 1.535 | D84: 1.57 | E84: 1.55 | F84: 1.525 | G84: 1.485 | H84: 1.48 | I84: 1.49 | J84: 1.495 | K84: 1.56 | M84: 1.665 | O84: 1.765 | Q84: 1.84 | R84: 1.895 | S84: 1.925 | T84: 1.945 | U84: 1.95 | V84: 1.97 | W84: 1.985 | AB84: 2.105 | AC84: 2.215 | AD84: 2.285 | AE84: 2.375 | AF84: 2.47 | AG84: 2.565 | AI84: 0.255 | AJ84: 0.245 | AK84: 0.275 | AL84: 0.35 | AM84: 0.395 | AN84: 0.53 | AO84: 0.645 | AP84: 0.74
A85: 2019-04-16 | C85: 1.53 | D85: 1.54 | E85: 1.53 | F85: 1.5 | G85: 1.46 | H85: 1.455 | I85: 1.465 | J85: 1.47 | K85: 1.535 | M85: 1.65 | O85: 1.745 | Q85: 1.82 | R85: 1.87 | S85: 1.905 | T85: 1.925 | U85: 1.93 | V85: 1.95 | W85: 1.965 | AB85: 2.08 | AC85: 2.195 | AD85: 2.26 | AE85: 2.35 | AF85: 2.445 | AG85: 2.55 | AI85: 0.26 | AJ85: 0.225 | AK85: 0.26 | AL85: 0.34 | AM85: 0.38 | AN85: 0.515 | AO85: 0.63 | AP85: 0.725
A86: 2019-04-17 | C86: 1.525 | D86: 1.545 | E86: 1.53 | F86: 1.505 | G86: 1.47 | H86: 1.46 | I86: 1.47 | J86: 1.48 | K86: 1.555 | M86: 1.66 | O86: 1.76 | Q86: 1.84 | R86: 1.895 | S86: 1.925 | T86: 1.95 | U86: 1.955 | V86: 1.975 | W86: 1.99 | AB86: 2.105 | AC86: 2.215 | AD86: 2.28 | AE86: 2.365 | AF86: 2.465 | AG86: 2.56 | AI86: 0.28 | AJ86: 0.235 | AK86: 0.3 | AL86: 0.39 | AM86: 0.43 | AN86: 0.575 | AO86: 0.68 | AP86: 0.77
A87: 2019-04-18 | C87: 1.595 | D87: 1.555 | E87: 1.53 | F87: 1.51 | G87: 1.475 | H87: 1.47 | I87: 1.475 | J87: 1.48 | K87: 1.56 | M87: 1.655 | O87: 1.755 | Q87: 1.835 | R87: 1.89 | S87: 1.92 | T87: 1.945 | U87: 1.95 | V87: 1.97 | W87: 1.985 | AB87: 2.1 | AC87: 2.215 | AD87: 2.29 | AE87: 2.37 | AF87: 2.47 | AG87: 2.57 | AI87: 0.27 | AJ87: 0.245 | AK87: 0.3 | AL87: 0.385 | AM87: 0.43 | AN87: 0.565 | AO87: 0.68 | AP87: 0.77
A88: 2019-04-23 | C88: 1.53 | D88: 1.525 | E88: 1.515 | F88: 1.47 | G88: 1.43 | H88: 1.42 | I88: 1.43 | J88: 1.435 | K88: 1.515 | M88: 1.61 | O88: 1.705 | Q88: 1.785 | R88: 1.835 | S88: 1.87 | T88: 1.89 | U88: 1.895 | V88: 1.915 | W88: 1.93 | AB88: 2.045 | AC88: 2.155 | AD88: 2.235 | AE88: 2.315 | AF88: 2.42 | AG88: 2.52 | AI88: 0.235 | AJ88: 0.185 | AK88: 0.25 | AL88: 0.33 | AM88: 0.37 | AN88: 0.515 | AO88: 0.615 | AP88: 0.71
A89: 2019-04-24 | C89: 1.405 | D89: 1.385 | E89: 1.37 | F89: 1.32 | G89: 1.275 | H89: 1.27 | I89: 1.275 | J89: 1.285 | K89: 1.375 | M89: 1.48 | O89: 1.575 | Q89: 1.665 | R89: 1.72 | S89: 1.76 | T89: 1.78 | U89: 1.785 | V89: 1.81 | W89: 1.83 | AB89: 1.945 | AC89: 2.065 | AD89: 2.14 | AE89: 2.22 | AF89: 2.325 | AG89: 2.43 | AI89: 0.23 | AJ89: 0.095 | AK89: 0.17 | AL89: 0.255 | AM89: 0.29 | AN89: 0.43 | AO89: 0.53 | AP89: 0.63
A90: 2019-04-26 | C90: 1.41 | D90: 1.41 | E90: 1.365 | F90: 1.34 | G90: 1.295 | H90: 1.29 | I90: 1.295 | J90: 1.3 | K90: 1.39 | M90: 1.485 | O90: 1.575 | Q90: 1.655 | R90: 1.71 | S90: 1.75 | T90: 1.77 | U90: 1.775 | V90: 1.8 | W90: 1.82 | AB90: 1.935 | AC90: 2.05 | AD90: 2.13 | AE90: 2.215 | AF90: 2.31 | AG90: 2.41 | AI90: 0.225 | AJ90: 0.1 | AK90: 0.17 | AL90: 0.24 | AM90: 0.285 | AN90: 0.435 | AO90: 0.54 | AP90: 0.635
A91: 2019-04-29 | C91: 1.405 | D91: 1.405 | E91: 1.375 | F91: 1.34 | G91: 1.295 | H91: 1.295 | I91: 1.3 | J91: 1.305 | K91: 1.395 | M91: 1.49 | O91: 1.58 | Q91: 1.665 | R91: 1.72 | S91: 1.76 | T91: 1.78 | U91: 1.785 | V91: 1.81 | W91: 1.83 | AB91: 1.945 | AC91: 2.075 | AD91: 2.15 | AE91: 2.23 | AF91: 2.33 | AG91: 2.43 | AI91: 0.235 | AJ91: 0.12 | AK91: 0.175 | AL91: 0.25 | AM91: 0.295 | AN91: 0.435 | AO91: 0.54 | AP91: 0.64
A92: 2019-04-30 | C92: 1.41 | D92: 1.405 | E92: 1.355 | F92: 1.32 | G92: 1.28 | H92: 1.275 | I92: 1.28 | J92: 1.29 | K92: 1.375 | M92: 1.475 | O92: 1.58 | Q92: 1.66 | R92: 1.715 | S92: 1.755 | T92: 1.78 | U92: 1.785 | V92: 1.81 | W92: 1.825 | AB92: 1.945 | AC92: 2.075 | AD92: 2.155 | AE92: 2.24 | AF92: 2.335 | AG92: 2.435 | AI92: 0.23 | AJ92: 0.11 | AK92: 0.165 | AL92: 0.25 | AM92: 0.29 | AN92: 0.435 | AO92: 0.54 | AP92: 0.635
A93: 2019-05-01 | C93: 1.41 | D93: 1.405 | E93: 1.345 | F93: 1.315 | G93: 1.27 | H93: 1.275 | I93: 1.28 | J93: 1.29 | K93: 1.37 | M93: 1.47 | O93: 1.57 | Q93: 1.655 | R93: 1.71 | S93: 1.75 | T93: 1.775 | U93: 1.78 | V93: 1.805 | W93: 1.82 | AB93: 1.94 | AC93: 2.065 | AD93: 2.145 | AE93: 2.225 | AF93: 2.325 | AG93: 2.425 | AI93: 0.22 | AJ93: 0.11 | AK93: 0.17 | AL93: 0.245 | AM93: 0.29 | AN93: 0.43 | AO93: 0.535 | AP93: 0.63
A94: 2019-05-02 | C94: 1.425 | D94: 1.4 | E94: 1.345 | F94: 1.315 | G94: 1.28 | H94: 1.285 | I94: 1.29 | J94: 1.3 | K94: 1.38 | M94: 1.48 | O94: 1.575 | Q94: 1.66 | R94: 1.715 | S94: 1.755 | T94: 1.78 | U94: 1.785 | V94: 1.805 | W94: 1.825 | AB94: 1.945 | AC94: 2.065 | AD94: 2.135 | AE94: 2.22 | AF94: 2.315 | AG94: 2.41 | AI94: 0.23 | AJ94: 0.13 | AK94: 0.175 | AL94: 0.255 | AM94: 0.295 | AN94: 0.435 | AO94: 0.545 | AP94: 0.635
A95: 2019-05-03 | C95: 1.41 | D95: 1.385 | E95: 1.35 | F95: 1.315 | G95: 1.28 | H95: 1.285 | I95: 1.29 | J95: 1.3 | K95: 1.38 | M95: 1.48 | O95: 1.575 | Q95: 1.665 | R95: 1.72 | S95: 1.76 | T95: 1.785 | U95: 1.79 | V95: 1.81 | W95: 1.83 | AB95: 1.95 | AC95: 2.06 | AD95: 2.13 | AE95: 2.22 | AF95: 2.31 | AG95: 2.41 | AI95: 0.235 | AJ95: 0.125 | AK95: 0.18 | AL95: 0.26 | AM95: 0.3 | AN95: 0.44 | AO95: 0.545 | AP95: 0.64
A96: 2019-05-06 | C96: 1.405 | D96: 1.37 | E96: 1.315 | F96: 1.28 | G96: 1.24 | H96: 1.245 | I96: 1.25 | J96: 1.26 | K96: 1.335 | M96: 1.435 | O96: 1.525 | Q96: 1.615 | R96: 1.67 | S96: 1.705 | T96: 1.73 | U96: 1.735 | V96: 1.755 | W96: 1.78 | AB96: 1.9 | AC96: 2.01 | AD96: 2.085 | AE96: 2.16 | AF96: 2.26 | AG96: 2.36 | AI96: 0.2 | AJ96: 0.1 | AK96: 0.14 | AL96: 0.215 | AM96: 0.26 | AN96: 0.4 | AO96: 0.505 | AP96: 0.595
A97: 2019-05-07 | C97: 1.435 | D97: 1.435 | E97: 1.39 | F97: 1.365 | G97: 1.32 | H97: 1.32 | I97: 1.325 | J97: 1.33 | K97: 1.395 | M97: 1.49 | O97: 1.585 | Q97: 1.665 | R97: 1.715 | S97: 1.755 | T97: 1.775 | U97: 1.78 | V97: 1.8 | W97: 1.82 | AB97: 1.935 | AC97: 2.045 | AD97: 2.125 | AE97: 2.205 | AF97: 2.295 | AG97: 2.395 | AI97: 0.26 | AJ97: 0.175 | AK97: 0.215 | AL97: 0.285 | AM97: 0.33 | AN97: 0.47 | AO97: 0.57 | AP97: 0.665
A98: 2019-05-08 | C98: 1.41 | D98: 1.41 | E98: 1.36 | F98: 1.33 | G98: 1.285 | H98: 1.285 | I98: 1.29 | J98: 1.29 | K98: 1.355 | M98: 1.445 | O98: 1.53 | Q98: 1.615 | R98: 1.665 | S98: 1.7 | T98: 1.725 | U98: 1.735 | V98: 1.755 | W98: 1.77 | AB98: 1.88 | AC98: 1.995 | AD98: 2.075 | AE98: 2.155 | AF98: 2.255 | AG98: 2.35 | AI98: 0.2 | AJ98: 0.07 | AK98: 0.145 | AL98: 0.22 | AM98: 0.26 | AN98: 0.395 | AO98: 0.505 | AP98: 0.595
A99: 2019-05-09 | C99: 1.425 | D99: 1.42 | E99: 1.34 | F99: 1.305 | G99: 1.27 | H99: 1.27 | I99: 1.275 | J99: 1.275 | K99: 1.335 | M99: 1.43 | O99: 1.515 | Q99: 1.59 | R99: 1.64 | S99: 1.68 | T99: 1.7 | U99: 1.71 | V99: 1.73 | W99: 1.75 | AB99: 1.86 | AC99: 1.975 | AD99: 2.055 | AE99: 2.135 | AF99: 2.23 | AG99: 2.325 | AI99: 0.205 | AJ99: 0.04 | AK99: 0.125 | AL99: 0.205 | AM99: 0.25 | AN99: 0.385 | AO99: 0.485 | AP99: 0.575
A100: 2019-05-10 | C100: 1.4 | D100: 1.41 | E100: 1.35 | F100: 1.32 | G100: 1.275 | H100: 1.275 | I100: 1.28 | J100: 1.285 | K100: 1.345 | M100: 1.44 | O100: 1.53 | Q100: 1.61 | R100: 1.66 | S100: 1.7 | T100: 1.72 | U100: 1.73 | V100: 1.75 | W100: 1.77 | AB100: 1.88 | AC100: 1.995 | AD100: 2.08 | AE100: 2.155 | AF100: 2.25 | AG100: 2.355 | AI100: 0.19 | AJ100: 0.065 | AK100: 0.145 | AL100: 0.235 | AM100: 0.275 | AN100: 0.405 | AO100: 0.51 | AP100: 0.6
A101: 2019-05-13 | C101: 1.385 | D101: 1.39 | E101: 1.33 | F101: 1.305 | G101: 1.265 | H101: 1.265 | I101: 1.27 | J101: 1.275 | K101: 1.335 | M101: 1.425 | O101: 1.525 | Q101: 1.605 | R101: 1.655 | S101: 1.695 | T101: 1.715 | U101: 1.725 | V101: 1.745 | W101: 1.765 | AB101: 1.875 | AC101: 1.985 | AD101: 2.065 | AE101: 2.145 | AF101: 2.24 | AG101: 2.34 | AI101: 0.185 | AJ101: 0.04 | AK101: 0.135 | AL101: 0.22 | AM101: 0.255 | AN101: 0.385 | AO101: 0.49 | AP101: 0.58
A102: 2019-05-14 | C102: 1.405 | D102: 1.375 | E102: 1.315 | F102: 1.28 | G102: 1.24 | H102: 1.24 | I102: 1.245 | J102: 1.245 | K102: 1.31 | M102: 1.4 | O102: 1.505 | Q102: 1.58 | R102: 1.63 | S102: 1.67 | T102: 1.69 | U102: 1.7 | V102: 1.72 | W102: 1.74 | AB102: 1.855 | AC102: 1.97 | AD102: 2.05 | AE102: 2.13 | AF102: 2.23 | AG102: 2.33 | AI102: 0.145 | AJ102: -0.005 | AK102: 0.1 | AL102: 0.19 | AM102: 0.23 | AN102: 0.36 | AO102: 0.465 | AP102: 0.555
A103: 2019-05-15 | C103: 1.395 | D103: 1.375 | E103: 1.31 | F103: 1.28 | G103: 1.235 | H103: 1.24 | I103: 1.245 | J103: 1.245 | K103: 1.31 | M103: 1.4 | O103: 1.5 | Q103: 1.58 | R103: 1.63 | S103: 1.665 | T103: 1.685 | U103: 1.695 | V103: 1.715 | W103: 1.735 | AB103: 1.845 | AC103: 1.965 | AD103: 2.04 | AE103: 2.13 | AF103: 2.23 | AG103: 2.33 | AI103: 0.115 | AJ103: -0.035 | AK103: 0.095 | AL103: 0.185 | AM103: 0.22 | AN103: 0.35 | AO103: 0.45 | AP103: 0.545
A104: 2019-05-16 | C104: 1.365 | D104: 1.315 | E104: 1.265 | F104: 1.22 | G104: 1.185 | H104: 1.19 | I104: 1.195 | J104: 1.195 | K104: 1.265 | M104: 1.36 | O104: 1.445 | Q104: 1.525 | R104: 1.57 | S104: 1.61 | T104: 1.63 | U104: 1.64 | V104: 1.66 | W104: 1.68 | AB104: 1.795 | AC104: 1.92 | AD104: 2.01 | AE104: 2.09 | AF104: 2.18 | AG104: 2.285 | AI104: 0.1 | AJ104: -0.055 | AK104: 0.075 | AL104: 0.16 | AM104: 0.195 | AN104: 0.335 | AO104: 0.44 | AP104: 0.53
A105: 2019-05-17 | C105: 1.35 | D105: 1.295 | E105: 1.25 | F105: 1.21 | G105: 1.175 | H105: 1.185 | I105: 1.195 | J105: 1.2 | K105: 1.265 | M105: 1.36 | O105: 1.445 | Q105: 1.52 | R105: 1.57 | S105: 1.605 | T105: 1.63 | U105: 1.64 | V105: 1.66 | W105: 1.68 | AB105: 1.8 | AC105: 1.915 | AD105: 2 | AE105: 2.085 | AF105: 2.19 | AG105: 2.285 | AI105: 0.105 | AJ105: -0.075 | AK105: 0.065 | AL105: 0.16 | AM105: 0.195 | AN105: 0.33 | AO105: 0.43 | AP105: 0.52
A106: 2019-05-20 | C106: 1.37 | D106: 1.32 | E106: 1.285 | F106: 1.255 | G106: 1.225 | H106: 1.235 | I106: 1.245 | J106: 1.25 | K106: 1.315 | M106: 1.405 | O106: 1.485 | Q106: 1.56 | R106: 1.61 | S106: 1.645 | T106: 1.665 | U106: 1.675 | V106: 1.695 | W106: 1.715 | AB106: 1.835 | AC106: 1.95 | AD106: 2.03 | AE106: 2.125 | AF106: 2.215 | AG106: 2.315 | AI106: 0.11 | AJ106: -0.05 | AK106: 0.11 | AL106: 0.185 | AM106: 0.22 | AN106: 0.355 | AO106: 0.45 | AP106: 0.545
A107: 2019-05-21 | C107: 1.315 | D107: 1.275 | E107: 1.24 | F107: 1.2 | G107: 1.17 | H107: 1.185 | I107: 1.195 | J107: 1.195 | K107: 1.265 | M107: 1.355 | O107: 1.445 | Q107: 1.52 | R107: 1.565 | S107: 1.605 | T107: 1.625 | U107: 1.635 | V107: 1.655 | W107: 1.675 | AB107: 1.795 | AC107: 1.905 | AD107: 2 | AE107: 2.09 | AF107: 2.185 | AG107: 2.28 | AI107: 0.055 | AJ107: -0.115 | AK107: 0.04 | AL107: 0.125 | AM107: 0.17 | AN107: 0.32 | AO107: 0.42 | AP107: 0.505
A108: 2019-05-22 | C108: 1.295 | D108: 1.265 | E108: 1.23 | F108: 1.195 | G108: 1.17 | H108: 1.18 | I108: 1.19 | J108: 1.195 | K108: 1.265 | M108: 1.36 | O108: 1.44 | Q108: 1.52 | R108: 1.565 | S108: 1.605 | T108: 1.625 | U108: 1.635 | V108: 1.655 | W108: 1.675 | AB108: 1.795 | AC108: 1.915 | AD108: 1.99 | AE108: 2.095 | AF108: 2.19 | AG108: 2.29 | AI108: 0.055 | AJ108: -0.14 | AK108: 0.02 | AL108: 0.115 | AM108: 0.16 | AN108: 0.315 | AO108: 0.42 | AP108: 0.495
A109: 2019-05-23 | C109: 1.305 | D109: 1.25 | E109: 1.195 | F109: 1.15 | G109: 1.13 | H109: 1.14 | I109: 1.155 | J109: 1.16 | K109: 1.225 | M109: 1.315 | O109: 1.395 | Q109: 1.465 | R109: 1.515 | S109: 1.55 | T109: 1.57 | U109: 1.58 | V109: 1.6 | W109: 1.62 | AB109: 1.735 | AC109: 1.86 | AD109: 1.945 | AE109: 2.035 | AF109: 2.135 | AG109: 2.23 | AI109: 0.055 | AJ109: -0.16 | AK109: -0.01 | AL109: 0.085 | AM109: 0.13 | AN109: 0.295 | AO109: 0.395 | AP109: 0.475
A110: 2019-05-24 | C110: 1.245 | D110: 1.175 | E110: 1.14 | F110: 1.11 | G110: 1.085 | H110: 1.095 | I110: 1.11 | J110: 1.115 | K110: 1.18 | M110: 1.265 | O110: 1.34 | Q110: 1.41 | R110: 1.455 | S110: 1.49 | T110: 1.51 | U110: 1.52 | V110: 1.54 | W110: 1.56 | AB110: 1.675 | AC110: 1.8 | AD110: 1.885 | AE110: 1.98 | AF110: 2.09 | AG110: 2.18 | AI110: 0.07 | AJ110: -0.185 | AK110: -0.075 | AL110: 0.025 | AM110: 0.065 | AN110: 0.23 | AO110: 0.345 | AP110: 0.43
A111: 2019-05-27 | C111: 1.245 | D111: 1.195 | E111: 1.165 | F111: 1.14 | G111: 1.115 | H111: 1.13 | I111: 1.14 | J111: 1.145 | K111: 1.21 | M111: 1.295 | O111: 1.375 | Q111: 1.44 | R111: 1.49 | S111: 1.525 | T111: 1.54 | U111: 1.55 | V111: 1.57 | W111: 1.59 | AB111: 1.71 | AC111: 1.84 | AD111: 1.92 | AE111: 2.025 | AF111: 2.125 | AG111: 2.225 | AI111: 0.075 | AJ111: -0.195 | AK111: -0.06 | AL111: 0.03 | AM111: 0.075 | AN111: 0.235 | AO111: 0.35 | AP111: 0.43
A112: 2019-05-28 | C112: 1.245 | D112: 1.205 | E112: 1.16 | F112: 1.13 | G112: 1.11 | H112: 1.12 | I112: 1.125 | J112: 1.135 | K112: 1.2 | M112: 1.285 | O112: 1.365 | Q112: 1.425 | R112: 1.475 | S112: 1.505 | T112: 1.53 | U112: 1.535 | V112: 1.555 | W112: 1.575 | AB112: 1.695 | AC112: 1.82 | AD112: 1.91 | AE112: 2.005 | AF112: 2.105 | AG112: 2.2 | AI112: 0.06 | AJ112: -0.195 | AK112: -0.095 | AL112: 0.01 | AM112: 0.055 | AN112: 0.21 | AO112: 0.335 | AP112: 0.42
A113: 2019-05-29 | C113: 1.24 | D113: 1.19 | E113: 1.155 | F113: 1.11 | G113: 1.085 | H113: 1.095 | I113: 1.1 | J113: 1.105 | K113: 1.165 | M113: 1.25 | O113: 1.325 | Q113: 1.385 | R113: 1.425 | S113: 1.455 | T113: 1.475 | U113: 1.48 | V113: 1.5 | W113: 1.52 | Y113: 1.585 | AB113: 1.63 | AC113: 1.76 | AD113: 1.84 | AE113: 1.95 | AF113: 2.045 | AG113: 2.15 | AI113: 0.075 | AJ113: -0.15 | AK113: -0.095 | AL113: -0.01 | AM113: 0.03 | AN113: 0.19 | AO113: 0.315 | AP113: 0.405
A114: 2019-05-30 | C114: 1.285 | D114: 1.23 | E114: 1.185 | F114: 1.14 | G114: 1.125 | H114: 1.13 | I114: 1.14 | J114: 1.145 | K114: 1.205 | M114: 1.29 | O114: 1.365 | Q114: 1.43 | R114: 1.47 | S114: 1.505 | T114: 1.525 | U114: 1.53 | V114: 1.55 | W114: 1.57 | Y114: 1.63 | AB114: 1.675 | AC114: 1.805 | AD114: 1.89 | AE114: 1.995 | AF114: 2.085 | AG114: 2.185 | AI114: 0.08 | AJ114: -0.16 | AK114: -0.09 | AL114: 0.01 | AM114: 0.05 | AN114: 0.205 | AO114: 0.335 | AP114: 0.425
A115: 2019-05-31 | C115: 1.28 | D115: 1.2 | E115: 1.16 | F115: 1.115 | G115: 1.095 | H115: 1.1 | I115: 1.105 | J115: 1.11 | K115: 1.16 | M115: 1.24 | O115: 1.305 | Q115: 1.365 | R115: 1.4 | S115: 1.43 | T115: 1.45 | U115: 1.455 | V115: 1.475 | W115: 1.49 | Y115: 1.545 | AB115: 1.6 | AC115: 1.725 | AD115: 1.81 | AE115: 1.915 | AF115: 2.015 | AG115: 2.115 | AI115: 0.045 | AJ115: -0.195 | AK115: -0.15 | AL115: -0.085 | AM115: -0.04 | AN115: 0.11 | AO115: 0.245 | AP115: 0.34
A116: 2019-06-03 | C116: 1.255 | D116: 1.195 | E116: 1.165 | F116: 1.13 | G116: 1.115 | H116: 1.12 | I116: 1.13 | J116: 1.135 | K116: 1.185 | M116: 1.27 | O116: 1.34 | Q116: 1.405 | R116: 1.445 | S116: 1.48 | T116: 1.5 | U116: 1.505 | V116: 1.525 | W116: 1.54 | Y116: 1.6 | AB116: 1.65 | AC116: 1.78 | AD116: 1.865 | AE116: 1.965 | AF116: 2.065 | AG116: 2.165 | AI116: 0.07 | AJ116: -0.165 | AK116: -0.09 | AL116: -0.015 | AM116: 0.025 | AN116: 0.18 | AO116: 0.315 | AP116: 0.41
A117: 2019-06-04 | C117: 1.25 | D117: 1.18 | E117: 1.16 | F117: 1.12 | G117: 1.11 | H117: 1.115 | I117: 1.125 | J117: 1.13 | K117: 1.18 | M117: 1.26 | O117: 1.34 | Q117: 1.4 | R117: 1.44 | S117: 1.47 | T117: 1.495 | U117: 1.5 | V117: 1.52 | W117: 1.535 | Y117: 1.595 | AB117: 1.65 | AC117: 1.78 | AD117: 1.865 | AE117: 1.97 | AF117: 2.065 | AG117: 2.17 | AI117: 0.075 | AJ117: -0.145 | AK117: -0.07 | AL117: 0.02 | AM117: 0.05 | AN117: 0.205 | AO117: 0.345 | AP117: 0.43
A118: 2019-06-05 | C118: 1.21 | D118: 1.16 | E118: 1.12 | F118: 1.085 | G118: 1.07 | H118: 1.075 | I118: 1.09 | J118: 1.095 | K118: 1.145 | M118: 1.23 | O118: 1.315 | Q118: 1.38 | R118: 1.42 | S118: 1.455 | T118: 1.475 | U118: 1.48 | V118: 1.5 | W118: 1.515 | Y118: 1.575 | AB118: 1.63 | AC118: 1.76 | AD118: 1.84 | AE118: 1.94 | AF118: 2.04 | AG118: 2.13 | AI118: 0.1 | AJ118: -0.165 | AK118: -0.07 | AL118: 0.025 | AM118: 0.06 | AN118: 0.215 | AO118: 0.355 | AP118: 0.45
A119: 2019-06-06 | C119: 1.255 | D119: 1.135 | E119: 1.095 | F119: 1.065 | G119: 1.05 | H119: 1.055 | I119: 1.07 | J119: 1.07 | K119: 1.12 | M119: 1.21 | O119: 1.29 | Q119: 1.355 | R119: 1.4 | S119: 1.435 | T119: 1.46 | U119: 1.465 | V119: 1.485 | W119: 1.5 | Y119: 1.56 | AB119: 1.615 | AC119: 1.745 | AD119: 1.82 | AE119: 1.91 | AF119: 2.02 | AG119: 2.115 | AI119: 0.065 | AJ119: -0.205 | AK119: -0.105 | AL119: 0.005 | AM119: 0.045 | AN119: 0.205 | AO119: 0.335 | AP119: 0.435
A120: 2019-06-07 | C120: 1.245 | D120: 1.15 | E120: 1.125 | F120: 1.08 | G120: 1.065 | H120: 1.065 | I120: 1.075 | J120: 1.08 | K120: 1.125 | M120: 1.215 | O120: 1.295 | Q120: 1.365 | R120: 1.405 | S120: 1.44 | T120: 1.465 | U120: 1.47 | V120: 1.49 | W120: 1.505 | Y120: 1.565 | AB120: 1.615 | AC120: 1.735 | AD120: 1.81 | AE120: 1.905 | AF120: 2.015 | AG120: 2.105 | AI120: 0.08 | AJ120: -0.19 | AK120: -0.09 | AL120: 0.005 | AM120: 0.045 | AN120: 0.205 | AO120: 0.34 | AP120: 0.435
A121: 2019-06-11 | C121: 1.235 | D121: 1.135 | E121: 1.105 | F121: 1.065 | G121: 1.045 | H121: 1.05 | I121: 1.06 | J121: 1.065 | K121: 1.11 | M121: 1.2 | O121: 1.275 | Q121: 1.34 | R121: 1.385 | S121: 1.42 | T121: 1.445 | U121: 1.45 | V121: 1.47 | W121: 1.485 | Y121: 1.545 | AB121: 1.595 | AC121: 1.71 | AD121: 1.795 | AE121: 1.89 | AF121: 1.985 | AG121: 2.085 | AI121: 0.08 | AJ121: -0.2 | AK121: -0.1 | AL121: -0.005 | AM121: 0.04 | AN121: 0.195 | AO121: 0.325 | AP121: 0.425
A122: 2019-06-12 | C122: 1.245 | D122: 1.155 | E122: 1.095 | F122: 1.045 | G122: 1.03 | H122: 1.025 | I122: 1.04 | J122: 1.04 | K122: 1.09 | M122: 1.17 | O122: 1.25 | Q122: 1.32 | R122: 1.36 | S122: 1.395 | T122: 1.42 | U122: 1.425 | V122: 1.445 | W122: 1.46 | Y122: 1.52 | AB122: 1.565 | AC122: 1.68 | AD122: 1.76 | AE122: 1.865 | AF122: 1.96 | AG122: 2.06 | AI122: 0.07 | AJ122: -0.205 | AK122: -0.11 | AL122: -0.02 | AM122: 0.025 | AN122: 0.175 | AO122: 0.305 | AP122: 0.405
A123: 2019-06-13 | C123: 1.29 | D123: 1.145 | E123: 1.06 | F123: 1.005 | G123: 0.99 | H123: 0.99 | I123: 1 | J123: 1.005 | K123: 1.055 | M123: 1.14 | O123: 1.22 | Q123: 1.29 | R123: 1.335 | S123: 1.37 | T123: 1.395 | U123: 1.4 | V123: 1.42 | W123: 1.435 | Y123: 1.495 | AB123: 1.545 | AC123: 1.655 | AD123: 1.74 | AE123: 1.84 | AF123: 1.935 | AG123: 2.03 | AI123: 0.06 | AJ123: -0.22 | AK123: -0.105 | AL123: -0.01 | AM123: 0.035 | AN123: 0.18 | AO123: 0.31 | AP123: 0.405
A124: 2019-06-14 | C124: 1.265 | D124: 1.1 | E124: 1.04 | F124: 1 | G124: 0.985 | H124: 0.98 | I124: 0.99 | J124: 0.995 | K124: 1.04 | M124: 1.125 | O124: 1.2 | Q124: 1.265 | R124: 1.31 | S124: 1.345 | T124: 1.37 | U124: 1.375 | V124: 1.39 | W124: 1.405 | Y124: 1.465 | AB124: 1.515 | AC124: 1.63 | AD124: 1.705 | AE124: 1.805 | AF124: 1.905 | AG124: 2 | AI124: 0.04 | AJ124: -0.215 | AK124: -0.095 | AL124: -0.02 | AM124: 0.025 | AN124: 0.17 | AO124: 0.3 | AP124: 0.395
A125: 2019-06-17 | C125: 1.24 | D125: 1.13 | E125: 1.06 | F125: 1.03 | G125: 1.02 | H125: 1.015 | I125: 1.02 | J125: 1.025 | K125: 1.07 | M125: 1.155 | O125: 1.22 | Q125: 1.285 | R125: 1.33 | S125: 1.36 | T125: 1.385 | U125: 1.39 | V125: 1.405 | W125: 1.42 | Y125: 1.48 | AB125: 1.525 | AC125: 1.635 | AD125: 1.715 | AE125: 1.805 | AF125: 1.905 | AG125: 2.005 | AI125: 0.07 | AJ125: -0.175 | AK125: -0.055 | AL125: 0.025 | AM125: 0.07 | AN125: 0.22 | AO125: 0.355 | AP125: 0.45
A126: 2019-06-18 | C126: 1.235 | D126: 1.11 | E126: 1.045 | F126: 1.01 | G126: 1 | H126: 1 | I126: 1.005 | J126: 1.005 | K126: 1.05 | M126: 1.13 | O126: 1.205 | Q126: 1.27 | R126: 1.31 | S126: 1.345 | T126: 1.365 | U126: 1.37 | V126: 1.385 | W126: 1.395 | Y126: 1.455 | AB126: 1.505 | AC126: 1.61 | AD126: 1.685 | AE126: 1.78 | AF126: 1.88 | AG126: 1.985 | AI126: 0.075 | AJ126: -0.16 | AK126: -0.055 | AL126: 0.035 | AM126: 0.075 | AN126: 0.22 | AO126: 0.36 | AP126: 0.46
A127: 2019-06-19 | C127: 1.215 | D127: 1.105 | E127: 1.02 | F127: 0.98 | G127: 0.97 | H127: 0.965 | I127: 0.97 | J127: 0.975 | K127: 1.02 | M127: 1.1 | O127: 1.175 | Q127: 1.24 | R127: 1.28 | S127: 1.315 | T127: 1.335 | U127: 1.34 | V127: 1.355 | W127: 1.365 | Y127: 1.425 | AB127: 1.47 | AC127: 1.575 | AD127: 1.655 | AE127: 1.75 | AF127: 1.85 | AG127: 1.95 | AI127: 0.035 | AJ127: -0.225 | AK127: -0.12 | AL127: -0.04 | AM127: -0.005 | AN127: 0.145 | AO127: 0.29 | AP127: 0.39
A128: 2019-06-20 | C128: 1.08 | D128: 1.05 | E128: 0.97 | F128: 0.935 | G128: 0.92 | H128: 0.915 | I128: 0.92 | J128: 0.925 | K128: 0.97 | M128: 1.055 | O128: 1.13 | Q128: 1.195 | R128: 1.235 | S128: 1.27 | T128: 1.29 | U128: 1.295 | V128: 1.31 | W128: 1.32 | Y128: 1.38 | AB128: 1.425 | AC128: 1.53 | AD128: 1.615 | AE128: 1.715 | AF128: 1.805 | AG128: 1.915 | AI128: 0.065 | AJ128: -0.295 | AK128: -0.195 | AL128: -0.11 | AM128: -0.06 | AN128: 0.09 | AO128: 0.245 | AP128: 0.35
A129: 2019-06-21 | C129: 1.07 | D129: 1.025 | E129: 0.95 | F129: 0.905 | G129: 0.895 | H129: 0.89 | I129: 0.895 | J129: 0.9 | K129: 0.945 | M129: 1.03 | O129: 1.115 | Q129: 1.18 | R129: 1.225 | S129: 1.255 | T129: 1.275 | U129: 1.28 | V129: 1.295 | W129: 1.305 | Y129: 1.365 | AB129: 1.41 | AC129: 1.52 | AD129: 1.6 | AE129: 1.695 | AF129: 1.79 | AG129: 1.89 | AI129: 0 | AJ129: -0.36 | AK129: -0.26 | AL129: -0.17 | AM129: -0.115 | AN129: 0.04 | AO129: 0.195 | AP129: 0.295
A130: 2019-06-24 | C130: 1.025 | D130: 1.035 | E130: 0.955 | F130: 0.915 | G130: 0.905 | H130: 0.9 | I130: 0.905 | J130: 0.91 | K130: 0.96 | M130: 1.04 | O130: 1.125 | Q130: 1.195 | R130: 1.24 | S130: 1.27 | T130: 1.29 | U130: 1.295 | V130: 1.31 | W130: 1.32 | Y130: 1.38 | AB130: 1.425 | AC130: 1.53 | AD130: 1.615 | AE130: 1.705 | AF130: 1.8 | AG130: 1.9 | AI130: -0.03 | AJ130: -0.36 | AK130: -0.26 | AL130: -0.165 | AM130: -0.12 | AN130: 0.035 | AO130: 0.195 | AP130: 0.3
A131: 2019-06-25 | C131: 1.025 | D131: 1.015 | E131: 0.945 | F131: 0.9 | G131: 0.895 | H131: 0.895 | I131: 0.895 | J131: 0.9 | K131: 0.95 | M131: 1.03 | O131: 1.115 | Q131: 1.185 | R131: 1.225 | S131: 1.255 | T131: 1.275 | U131: 1.28 | V131: 1.295 | W131: 1.305 | Y131: 1.365 | AB131: 1.405 | AC131: 1.515 | AD131: 1.6 | AE131: 1.69 | AF131: 1.79 | AG131: 1.885 | AI131: -0.05 | AJ131: -0.36 | AK131: -0.26 | AL131: -0.16 | AM131: -0.115 | AN131: 0.045 | AO131: 0.2 | AP131: 0.3
A132: 2019-06-26 | C132: 1.01 | D132: 1 | E132: 0.97 | F132: 0.945 | G132: 0.925 | H132: 0.92 | I132: 0.92 | J132: 0.925 | K132: 0.97 | M132: 1.045 | O132: 1.115 | Q132: 1.18 | R132: 1.22 | S132: 1.25 | T132: 1.275 | U132: 1.28 | V132: 1.29 | W132: 1.3 | Y132: 1.36 | AB132: 1.4 | AC132: 1.51 | AD132: 1.595 | AE132: 1.685 | AF132: 1.785 | AG132: 1.88 | AI132: -0.02 | AJ132: -0.3 | AK132: -0.21 | AL132: -0.13 | AM132: -0.08 | AN132: 0.075 | AO132: 0.235 | AP132: 0.335
A133: 2019-06-27 | C133: 1.055 | D133: 1.05 | E133: 1.005 | F133: 0.985 | G133: 0.97 | H133: 0.965 | I133: 0.97 | J133: 0.975 | K133: 1.025 | M133: 1.105 | O133: 1.175 | Q133: 1.25 | R133: 1.285 | S133: 1.32 | T133: 1.34 | U133: 1.345 | V133: 1.36 | W133: 1.37 | Y133: 1.43 | AB133: 1.475 | AC133: 1.58 | AD133: 1.66 | AE133: 1.76 | AF133: 1.86 | AG133: 1.96 | AI133: -0.005 | AJ133: -0.275 | AK133: -0.17 | AL133: -0.085 | AM133: -0.03 | AN133: 0.125 | AO133: 0.285 | AP133: 0.405
A134: 2019-06-28 | C134: 1.035 | D134: 1.035 | E134: 1 | F134: 0.98 | G134: 0.96 | H134: 0.955 | I134: 0.955 | J134: 0.965 | K134: 1.015 | M134: 1.09 | O134: 1.155 | Q134: 1.225 | R134: 1.265 | S134: 1.295 | T134: 1.315 | U134: 1.32 | V134: 1.335 | W134: 1.345 | Y134: 1.4 | AB134: 1.445 | AC134: 1.555 | AD134: 1.635 | AE134: 1.73 | AF134: 1.815 | AG134: 1.915 | AI134: -0.02 | AJ134: -0.255 | AK134: -0.145 | AL134: -0.065 | AM134: -0.015 | AN134: 0.14 | AO134: 0.295 | AP134: 0.425
A135: 2019-07-01 | C135: 1.025 | D135: 1.025 | E135: 1.01 | F135: 0.98 | G135: 0.975 | H135: 0.975 | I135: 0.975 | J135: 0.985 | K135: 1.035 | M135: 1.115 | O135: 1.185 | Q135: 1.255 | R135: 1.3 | S135: 1.33 | T135: 1.35 | U135: 1.355 | V135: 1.37 | W135: 1.38 | Y135: 1.435 | AB135: 1.48 | AC135: 1.59 | AD135: 1.665 | AE135: 1.76 | AF135: 1.855 | AG135: 1.96 | AI135: -0.035 | AJ135: -0.21 | AK135: -0.095 | AL135: 0 | AM135: 0.06 | AN135: 0.225 | AO135: 0.38 | AP135: 0.515
A136: 2019-07-02 | C136: 0.955 | D136: 0.995 | E136: 0.99 | F136: 0.965 | G136: 0.965 | H136: 0.965 | I136: 0.97 | J136: 0.98 | K136: 1.025 | M136: 1.105 | O136: 1.17 | Q136: 1.235 | R136: 1.28 | S136: 1.31 | T136: 1.33 | U136: 1.33 | V136: 1.345 | W136: 1.355 | Y136: 1.415 | AB136: 1.46 | AC136: 1.57 | AD136: 1.655 | AE136: 1.745 | AF136: 1.835 | AG136: 1.935 | AI136: -0.01 | AJ136: -0.245 | AK136: -0.13 | AL136: -0.035 | AM136: 0.02 | AN136: 0.175 | AO136: 0.33 | AP136: 0.46
A137: 2019-07-03 | C137: 0.95 | D137: 0.995 | E137: 0.95 | F137: 0.925 | G137: 0.925 | H137: 0.92 | I137: 0.925 | J137: 0.935 | K137: 0.98 | M137: 1.06 | O137: 1.115 | Q137: 1.185 | R137: 1.225 | S137: 1.255 | T137: 1.275 | U137: 1.28 | V137: 1.295 | W137: 1.305 | Y137: 1.355 | AB137: 1.41 | AC137: 1.535 | AD137: 1.63 | AE137: 1.72 | AF137: 1.82 | AG137: 1.925 | AI137: -0.055 | AJ137: -0.27 | AK137: -0.17 | AL137: -0.09 | AM137: -0.04 | AN137: 0.11 | AO137: 0.265 | AP137: 0.395
A138: 2019-07-04 | C138: 1.03 | D138: 1.02 | E138: 0.97 | F138: 0.93 | G138: 0.94 | H138: 0.935 | I138: 0.935 | J138: 0.945 | K138: 0.99 | M138: 1.065 | O138: 1.13 | Q138: 1.2 | R138: 1.24 | S138: 1.27 | T138: 1.285 | U138: 1.29 | V138: 1.31 | W138: 1.32 | Y138: 1.37 | AB138: 1.42 | AC138: 1.55 | AD138: 1.65 | AE138: 1.735 | AF138: 1.825 | AG138: 1.935 | AI138: -0.045 | AJ138: -0.275 | AK138: -0.165 | AL138: -0.085 | AM138: -0.035 | AN138: 0.12 | AO138: 0.285 | AP138: 0.405
A139: 2019-07-05 | C139: 1.02 | D139: 1 | E139: 0.965 | F139: 0.94 | G139: 0.94 | H139: 0.935 | I139: 0.935 | J139: 0.94 | K139: 0.985 | M139: 1.055 | O139: 1.125 | Q139: 1.19 | R139: 1.23 | S139: 1.26 | T139: 1.275 | U139: 1.28 | V139: 1.295 | W139: 1.31 | Y139: 1.36 | AB139: 1.41 | AC139: 1.535 | AD139: 1.625 | AE139: 1.715 | AF139: 1.815 | AG139: 1.92 | AI139: -0.045 | AJ139: -0.275 | AK139: -0.17 | AL139: -0.09 | AM139: -0.035 | AN139: 0.12 | AO139: 0.275 | AP139: 0.395
A140: 2019-07-08 | C140: 1.035 | D140: 1.03 | E140: 0.985 | F140: 0.965 | G140: 0.96 | H140: 0.95 | I140: 0.95 | J140: 0.96 | K140: 1.005 | M140: 1.08 | O140: 1.155 | Q140: 1.225 | R140: 1.27 | S140: 1.3 | T140: 1.315 | U140: 1.32 | V140: 1.335 | W140: 1.35 | Y140: 1.395 | AB140: 1.445 | AC140: 1.57 | AD140: 1.665 | AE140: 1.76 | AF140: 1.85 | AG140: 1.96 | AI140: -0.045 | AJ140: -0.265 | AK140: -0.16 | AL140: -0.065 | AM140: -0.015 | AN140: 0.145 | AO140: 0.295 | AP140: 0.415
A141: 2019-07-09 | C141: 1.055 | D141: 1.03 | E141: 0.975 | F141: 0.96 | G141: 0.955 | H141: 0.945 | I141: 0.945 | J141: 0.95 | K141: 1 | M141: 1.07 | O141: 1.15 | Q141: 1.22 | R141: 1.26 | S141: 1.29 | T141: 1.31 | U141: 1.315 | V141: 1.33 | W141: 1.345 | Y141: 1.39 | AB141: 1.445 | AC141: 1.565 | AD141: 1.65 | AE141: 1.745 | AF141: 1.835 | AG141: 1.94 | AI141: -0.045 | AJ141: -0.255 | AK141: -0.14 | AL141: -0.055 | AM141: 0.005 | AN141: 0.16 | AO141: 0.31 | AP141: 0.43
A142: 2019-07-10 | C142: 1.06 | D142: 1.025 | E142: 0.99 | F142: 0.985 | G142: 0.98 | H142: 0.97 | I142: 0.97 | J142: 0.975 | K142: 1.025 | M142: 1.1 | O142: 1.185 | Q142: 1.255 | R142: 1.295 | S142: 1.33 | T142: 1.345 | U142: 1.35 | V142: 1.365 | W142: 1.38 | Y142: 1.425 | AB142: 1.48 | AC142: 1.595 | AD142: 1.68 | AE142: 1.775 | AF142: 1.87 | AG142: 1.97 | AI142: -0.02 | AJ142: -0.245 | AK142: -0.125 | AL142: -0.025 | AM142: 0.03 | AN142: 0.185 | AO142: 0.34 | AP142: 0.46
A143: 2019-07-11 | C143: 1.05 | D143: 1.025 | E143: 0.975 | F143: 0.945 | G143: 0.945 | H143: 0.935 | I143: 0.935 | J143: 0.94 | K143: 0.99 | M143: 1.07 | O143: 1.16 | Q143: 1.23 | R143: 1.275 | S143: 1.305 | T143: 1.325 | U143: 1.33 | V143: 1.345 | W143: 1.36 | Y143: 1.405 | AB143: 1.46 | AC143: 1.585 | AD143: 1.675 | AE143: 1.77 | AF143: 1.86 | AG143: 1.965 | AI143: -0.035 | AJ143: -0.275 | AK143: -0.15 | AL143: -0.04 | AM143: 0.02 | AN143: 0.175 | AO143: 0.33 | AP143: 0.45
A144: 2019-07-12 | C144: 1.045 | D144: 1.035 | E144: 1.005 | F144: 0.99 | G144: 0.99 | H144: 0.98 | I144: 0.985 | J144: 0.995 | K144: 1.05 | M144: 1.14 | O144: 1.24 | Q144: 1.325 | R144: 1.375 | S144: 1.405 | T144: 1.43 | U144: 1.435 | V144: 1.455 | W144: 1.465 | Y144: 1.51 | AB144: 1.57 | AC144: 1.695 | AD144: 1.785 | AE144: 1.88 | AF144: 1.975 | AG144: 2.085 | AI144: 0.005 | AJ144: -0.225 | AK144: -0.08 | AL144: 0.035 | AM144: 0.1 | AN144: 0.255 | AO144: 0.405 | AP144: 0.525
A145: 2019-07-15 | C145: 1.04 | D145: 1.03 | E145: 1.005 | F145: 0.99 | G145: 1 | H145: 0.995 | I145: 1 | J145: 1.01 | K145: 1.07 | M145: 1.155 | O145: 1.255 | Q145: 1.335 | R145: 1.39 | S145: 1.42 | T145: 1.445 | U145: 1.455 | V145: 1.47 | W145: 1.48 | Y145: 1.525 | AB145: 1.585 | AC145: 1.71 | AD145: 1.81 | AE145: 1.905 | AF145: 1.995 | AG145: 2.11 | AI145: -0.015 | AJ145: -0.195 | AK145: -0.065 | AL145: 0.05 | AM145: 0.11 | AN145: 0.26 | AO145: 0.41 | AP145: 0.53
A146: 2019-07-16 | C146: 1.045 | D146: 1.015 | E146: 0.975 | F146: 0.96 | G146: 0.965 | H146: 0.96 | I146: 0.965 | J146: 0.975 | K146: 1.03 | M146: 1.115 | O146: 1.21 | Q146: 1.285 | R146: 1.34 | S146: 1.375 | T146: 1.395 | U146: 1.4 | V146: 1.42 | W146: 1.43 | Y146: 1.48 | AB146: 1.535 | AC146: 1.655 | AD146: 1.76 | AE146: 1.85 | AF146: 1.94 | AG146: 2.05 | AI146: -0.02 | AJ146: -0.22 | AK146: -0.095 | AL146: 0.005 | AM146: 0.06 | AN146: 0.21 | AO146: 0.365 | AP146: 0.48
A147: 2019-07-17 | C147: 1.025 | D147: 1.015 | E147: 0.96 | F147: 0.945 | G147: 0.95 | H147: 0.945 | I147: 0.95 | J147: 0.96 | K147: 1.015 | M147: 1.1 | O147: 1.2 | Q147: 1.275 | R147: 1.33 | S147: 1.36 | T147: 1.385 | U147: 1.395 | V147: 1.41 | W147: 1.42 | Y147: 1.465 | AB147: 1.525 | AC147: 1.645 | AD147: 1.745 | AE147: 1.84 | AF147: 1.93 | AG147: 2.04 | AI147: -0.045 | AJ147: -0.225 | AK147: -0.09 | AL147: 0 | AM147: 0.055 | AN147: 0.21 | AO147: 0.37 | AP147: 0.48
A148: 2019-07-18 | C148: 1.09 | D148: 1.04 | E148: 0.98 | F148: 0.94 | G148: 0.94 | H148: 0.935 | I148: 0.935 | J148: 0.94 | K148: 1 | M148: 1.08 | O148: 1.16 | Q148: 1.235 | R148: 1.29 | S148: 1.32 | T148: 1.34 | U148: 1.345 | V148: 1.365 | W148: 1.375 | Y148: 1.42 | AB148: 1.48 | AC148: 1.605 | AD148: 1.7 | AE148: 1.795 | AF148: 1.89 | AG148: 1.995 | AI148: -0.02 | AJ148: -0.21 | AK148: -0.09 | AL148: -0.01 | AM148: 0.04 | AN148: 0.185 | AO148: 0.345 | AP148: 0.455
A149: 2019-07-19 | C149: 1.09 | D149: 1.03 | E149: 0.99 | F149: 0.96 | G149: 0.95 | H149: 0.945 | I149: 0.945 | J149: 0.95 | K149: 1.005 | M149: 1.085 | O149: 1.17 | Q149: 1.24 | R149: 1.29 | S149: 1.32 | T149: 1.345 | U149: 1.35 | V149: 1.37 | W149: 1.38 | Y149: 1.425 | AB149: 1.485 | AC149: 1.605 | AD149: 1.7 | AE149: 1.8 | AF149: 1.89 | AG149: 1.985 | AI149: -0.015 | AJ149: -0.23 | AK149: -0.105 | AL149: -0.025 | AM149: 0.025 | AN149: 0.17 | AO149: 0.325 | AP149: 0.43
A150: 2019-07-22 | C150: 1.065 | D150: 1.02 | E150: 0.985 | F150: 0.95 | G150: 0.935 | H150: 0.935 | I150: 0.93 | J150: 0.94 | K150: 0.995 | M150: 1.075 | O150: 1.15 | Q150: 1.22 | R150: 1.275 | S150: 1.305 | T150: 1.325 | U150: 1.33 | V150: 1.345 | W150: 1.36 | Y150: 1.405 | AB150: 1.46 | AC150: 1.585 | AD150: 1.67 | AE150: 1.77 | AF150: 1.85 | AG150: 1.965 | AI150: -0.03 | AJ150: -0.25 | AK150: -0.135 | AL150: -0.05 | AM150: 0.005 | AN150: 0.145 | AO150: 0.3 | AP150: 0.405
A151: 2019-07-23 | C151: 1.09 | D151: 1.025 | E151: 0.975 | F151: 0.95 | G151: 0.93 | H151: 0.92 | I151: 0.92 | J151: 0.93 | K151: 0.98 | M151: 1.055 | O151: 1.14 | Q151: 1.21 | R151: 1.26 | S151: 1.29 | T151: 1.31 | U151: 1.315 | V151: 1.33 | W151: 1.345 | Y151: 1.39 | AB151: 1.445 | AC151: 1.57 | AD151: 1.65 | AE151: 1.755 | AF151: 1.84 | AG151: 1.945 | AI151: -0.03 | AJ151: -0.26 | AK151: -0.15 | AL151: -0.065 | AM151: -0.02 | AN151: 0.125 | AO151: 0.275 | AP151: 0.385
A152: 2019-07-24 | C152: 1.085 | D152: 0.995 | E152: 0.94 | F152: 0.915 | G152: 0.895 | H152: 0.89 | I152: 0.89 | J152: 0.895 | K152: 0.95 | M152: 1.03 | O152: 1.115 | Q152: 1.185 | R152: 1.24 | S152: 1.27 | T152: 1.29 | U152: 1.295 | V152: 1.315 | W152: 1.325 | Y152: 1.37 | AB152: 1.425 | AC152: 1.555 | AD152: 1.64 | AE152: 1.74 | AF152: 1.825 | AG152: 1.935 | AI152: -0.055 | AJ152: -0.285 | AK152: -0.17 | AL152: -0.085 | AM152: -0.035 | AN152: 0.115 | AO152: 0.27 | AP152: 0.375
A153: 2019-07-25 | C153: 1.075 | D153: 0.995 | E153: 0.915 | F153: 0.875 | G153: 0.85 | H153: 0.845 | I153: 0.845 | J153: 0.855 | K153: 0.9 | M153: 0.975 | O153: 1.055 | Q153: 1.125 | R153: 1.175 | S153: 1.205 | T153: 1.22 | U153: 1.225 | V153: 1.245 | W153: 1.255 | Y153: 1.3 | AB153: 1.365 | AC153: 1.49 | AD153: 1.58 | AE153: 1.68 | AF153: 1.77 | AG153: 1.885 | AI153: -0.09 | AJ153: -0.315 | AK153: -0.21 | AL153: -0.14 | AM153: -0.095 | AN153: 0.055 | AO153: 0.21 | AP153: 0.32
A154: 2019-07-26 | C154: 1.075 | D154: 0.995 | E154: 0.91 | F154: 0.88 | G154: 0.855 | H154: 0.845 | I154: 0.845 | J154: 0.85 | K154: 0.895 | M154: 0.975 | O154: 1.055 | Q154: 1.125 | R154: 1.175 | S154: 1.205 | T154: 1.225 | U154: 1.225 | V154: 1.245 | W154: 1.255 | Y154: 1.3 | AB154: 1.365 | AC154: 1.495 | AD154: 1.58 | AE154: 1.685 | AF154: 1.775 | AG154: 1.89 | AI154: -0.1 | AJ154: -0.32 | AK154: -0.215 | AL154: -0.145 | AM154: -0.095 | AN154: 0.06 | AO154: 0.21 | AP154: 0.32
A155: 2019-07-29 | C155: 1.075 | D155: 0.985 | E155: 0.9 | F155: 0.86 | G155: 0.835 | H155: 0.825 | I155: 0.825 | J155: 0.835 | K155: 0.87 | M155: 0.955 | O155: 1.035 | Q155: 1.105 | R155: 1.155 | S155: 1.185 | T155: 1.205 | U155: 1.21 | V155: 1.225 | W155: 1.24 | Y155: 1.28 | AB155: 1.345 | AC155: 1.475 | AD155: 1.565 | AE155: 1.665 | AF155: 1.755 | AG155: 1.875 | AI155: -0.11 | AJ155: -0.355 | AK155: -0.25 | AL155: -0.185 | AM155: -0.14 | AN155: 0.015 | AO155: 0.17 | AP155: 0.27
A156: 2019-07-30 | C156: 1.055 | D156: 0.98 | E156: 0.885 | F156: 0.85 | G156: 0.825 | H156: 0.815 | I156: 0.815 | J156: 0.82 | K156: 0.855 | M156: 0.945 | O156: 1.025 | Q156: 1.1 | R156: 1.145 | S156: 1.175 | T156: 1.2 | U156: 1.205 | V156: 1.22 | W156: 1.235 | Y156: 1.275 | AB156: 1.34 | AC156: 1.465 | AD156: 1.555 | AE156: 1.655 | AF156: 1.745 | AG156: 1.86 | AI156: -0.12 | AJ156: -0.36 | AK156: -0.255 | AL156: -0.18 | AM156: -0.13 | AN156: 0.02 | AO156: 0.17 | AP156: 0.275
A157: 2019-07-31 | C157: 1.055 | D157: 0.975 | E157: 0.88 | F157: 0.845 | G157: 0.82 | H157: 0.805 | I157: 0.8 | J157: 0.81 | K157: 0.84 | M157: 0.93 | O157: 1.01 | Q157: 1.08 | R157: 1.125 | S157: 1.155 | T157: 1.18 | U157: 1.185 | V157: 1.2 | W157: 1.21 | Y157: 1.255 | AB157: 1.315 | AC157: 1.445 | AD157: 1.535 | AE157: 1.635 | AF157: 1.735 | AG157: 1.835 | AI157: -0.285 | AJ157: -0.43 | AK157: -0.31 | AL157: -0.225 | AM157: -0.165 | AN157: -0.025 | AO157: 0.125 | AP157: 0.225
A158: 2019-08-01 | C158: 1.07 | D158: 1.015 | E158: 0.93 | F158: 0.865 | G158: 0.85 | H158: 0.835 | I158: 0.835 | J158: 0.84 | K158: 0.87 | M158: 0.96 | O158: 1.035 | Q158: 1.105 | R158: 1.15 | S158: 1.18 | T158: 1.205 | U158: 1.21 | V158: 1.225 | W158: 1.235 | Y158: 1.28 | AB158: 1.34 | AC158: 1.47 | AD158: 1.555 | AE158: 1.655 | AF158: 1.75 | AG158: 1.865 | AI158: -0.215 | AJ158: -0.375 | AK158: -0.265 | AL158: -0.185 | AM158: -0.135 | AN158: 0.015 | AO158: 0.16 | AP158: 0.26
A159: 2019-08-02 | C159: 1.03 | D159: 0.95 | E159: 0.86 | F159: 0.79 | G159: 0.77 | H159: 0.745 | I159: 0.745 | J159: 0.75 | K159: 0.775 | M159: 0.855 | O159: 0.925 | Q159: 0.98 | R159: 1.03 | S159: 1.06 | T159: 1.08 | U159: 1.085 | V159: 1.1 | W159: 1.115 | Y159: 1.155 | AB159: 1.215 | AC159: 1.345 | AD159: 1.44 | AE159: 1.535 | AF159: 1.635 | AG159: 1.75 | AI159: -0.195 | AJ159: -0.41 | AK159: -0.315 | AL159: -0.235 | AM159: -0.19 | AN159: -0.04 | AO159: 0.11 | AP159: 0.21
A160: 2019-08-05 | D160: 0.935 | E160: 0.785 | F160: 0.725 | G160: 0.7 | H160: 0.67 | I160: 0.675 | J160: 0.675 | K160: 0.7 | M160: 0.78 | O160: 0.855 | Q160: 0.915 | R160: 0.96 | S160: 0.99 | T160: 1.01 | U160: 1.015 | V160: 1.03 | W160: 1.045 | Y160: 1.085 | AB160: 1.18 | AC160: 1.305 | AD160: 1.395 | AE160: 1.495 | AF160: 1.56 | AG160: 1.695 | AI160: -0.215 | AJ160: -0.485 | AK160: -0.38 | AL160: -0.305 | AM160: -0.255 | AN160: -0.105 | AO160: 0.05 | AP160: 0.15
A161: 2019-08-06 | C161: 1.015 | D161: 0.91 | E161: 0.835 | F161: 0.76 | G161: 0.735 | H161: 0.7 | I161: 0.705 | J161: 0.705 | K161: 0.725 | M161: 0.805 | O161: 0.875 | Q161: 0.94 | R161: 0.985 | S161: 1.015 | T161: 1.035 | U161: 1.04 | V161: 1.055 | W161: 1.07 | Y161: 1.11 | AB161: 1.175 | AC161: 1.31 | AD161: 1.405 | AE161: 1.505 | AF161: 1.61 | AG161: 1.73 | AI161: -0.21 | AJ161: -0.385 | AK161: -0.295 | AL161: -0.225 | AM161: -0.18 | AN161: -0.03 | AO161: 0.125 | AP161: 0.225
A162: 2019-08-07 | C162: 0.98 | D162: 0.865 | E162: 0.785 | F162: 0.715 | G162: 0.685 | H162: 0.65 | I162: 0.65 | J162: 0.655 | K162: 0.665 | M162: 0.74 | O162: 0.8 | Q162: 0.86 | R162: 0.905 | S162: 0.93 | T162: 0.955 | U162: 0.955 | V162: 0.97 | W162: 0.985 | Y162: 1.025 | AB162: 1.085 | AC162: 1.235 | AD162: 1.325 | AE162: 1.425 | AF162: 1.52 | AG162: 1.65 | AI162: -0.21 | AJ162: -0.405 | AK162: -0.32 | AL162: -0.26 | AM162: -0.22 | AN162: -0.065 | AO162: 0.085 | AP162: 0.185
A163: 2019-08-08 | C163: 0.995 | D163: 0.88 | E163: 0.815 | F163: 0.745 | G163: 0.715 | H163: 0.685 | I163: 0.685 | J163: 0.69 | K163: 0.695 | M163: 0.76 | O163: 0.825 | Q163: 0.885 | R163: 0.925 | S163: 0.955 | T163: 0.975 | U163: 0.98 | V163: 0.99 | W163: 1.005 | Y163: 1.045 | AB163: 1.105 | AC163: 1.235 | AD163: 1.325 | AE163: 1.42 | AF163: 1.52 | AG163: 1.635 | AI163: -0.195 | AJ163: -0.38 | AK163: -0.315 | AL163: -0.25 | AM163: -0.21 | AN163: -0.06 | AO163: 0.095 | AP163: 0.2
A164: 2019-08-09 | C164: 1.04 | D164: 0.875 | E164: 0.79 | F164: 0.725 | G164: 0.705 | H164: 0.67 | I164: 0.67 | J164: 0.67 | K164: 0.67 | M164: 0.725 | O164: 0.805 | Q164: 0.865 | R164: 0.905 | S164: 0.93 | T164: 0.955 | U164: 0.96 | V164: 0.97 | W164: 0.98 | Y164: 1.02 | AB164: 1.085 | AC164: 1.215 | AD164: 1.3 | AE164: 1.39 | AF164: 1.49 | AG164: 1.61 | AI164: -0.21 | AJ164: -0.42 | AK164: -0.375 | AL164: -0.3 | AM164: -0.26 | AN164: -0.11 | AO164: 0.04 | AP164: 0.145
A165: 2019-08-12 | C165: 1.045 | D165: 0.87 | E165: 0.785 | F165: 0.72 | G165: 0.7 | H165: 0.67 | I165: 0.67 | J165: 0.67 | K165: 0.67 | M165: 0.73 | O165: 0.8 | Q165: 0.865 | R165: 0.9 | S165: 0.93 | T165: 0.955 | U165: 0.955 | V165: 0.97 | W165: 0.98 | Y165: 1.02 | AB165: 1.085 | AC165: 1.22 | AD165: 1.29 | AE165: 1.39 | AF165: 1.485 | AG165: 1.605 | AI165: -0.2 | AJ165: -0.38 | AK165: -0.32 | AL165: -0.245 | AM165: -0.195 | AN165: -0.045 | AO165: 0.105 | AP165: 0.21
A166: 2019-08-13 | C166: 1.02 | D166: 0.875 | E166: 0.785 | F166: 0.715 | G166: 0.69 | H166: 0.66 | I166: 0.66 | J166: 0.665 | K166: 0.665 | M166: 0.72 | O166: 0.785 | Q166: 0.845 | R166: 0.885 | S166: 0.91 | T166: 0.93 | U166: 0.93 | V166: 0.945 | W166: 0.955 | Y166: 0.995 | AB166: 1.06 | AC166: 1.18 | AD166: 1.25 | AE166: 1.355 | AF166: 1.445 | AG166: 1.555 | AI166: -0.18 | AJ166: -0.36 | AK166: -0.3 | AL166: -0.225 | AM166: -0.18 | AN166: -0.03 | AO166: 0.12 | AP166: 0.225
A167: 2019-08-14 | C167: 1.02 | D167: 0.875 | E167: 0.79 | F167: 0.725 | G167: 0.7 | H167: 0.665 | I167: 0.67 | J167: 0.67 | K167: 0.67 | M167: 0.725 | O167: 0.795 | Q167: 0.855 | R167: 0.895 | S167: 0.92 | T167: 0.94 | U167: 0.94 | V167: 0.955 | W167: 0.965 | Y167: 1.005 | AB167: 1.065 | AC167: 1.17 | AD167: 1.25 | AE167: 1.34 | AF167: 1.43 | AG167: 1.555 | AI167: -0.205 | AJ167: -0.41 | AK167: -0.34 | AL167: -0.245 | AM167: -0.205 | AN167: -0.05 | AO167: 0.1 | AP167: 0.215
A168: 2019-08-15 | C168: 1.075 | D168: 0.875 | E168: 0.795 | F168: 0.73 | G168: 0.7 | H168: 0.665 | I168: 0.66 | J168: 0.66 | K168: 0.66 | M168: 0.7 | O168: 0.76 | Q168: 0.815 | R168: 0.845 | S168: 0.87 | T168: 0.885 | U168: 0.89 | V168: 0.895 | W168: 0.91 | Y168: 0.95 | AB168: 1.005 | AC168: 1.095 | AD168: 1.165 | AE168: 1.25 | AF168: 1.33 | AG168: 1.435 | AI168: -0.2 | AJ168: -0.385 | AK168: -0.33 | AL168: -0.25 | AM168: -0.21 | AN168: -0.07 | AO168: 0.065 | AP168: 0.175
A169: 2019-08-16 | C169: 1.07 | D169: 0.88 | E169: 0.805 | F169: 0.73 | G169: 0.705 | H169: 0.67 | I169: 0.665 | J169: 0.665 | K169: 0.66 | M169: 0.705 | O169: 0.76 | Q169: 0.81 | R169: 0.84 | S169: 0.86 | T169: 0.88 | U169: 0.885 | V169: 0.895 | W169: 0.905 | Y169: 0.94 | AB169: 1 | AC169: 1.1 | AD169: 1.165 | AE169: 1.25 | AF169: 1.33 | AG169: 1.435 | AI169: -0.195 | AJ169: -0.38 | AK169: -0.33 | AL169: -0.255 | AM169: -0.215 | AN169: -0.06 | AO169: 0.075 | AP169: 0.18
A170: 2019-08-19 | C170: 1.04 | D170: 0.895 | E170: 0.81 | F170: 0.74 | G170: 0.715 | H170: 0.675 | I170: 0.675 | J170: 0.675 | K170: 0.675 | M170: 0.72 | O170: 0.785 | Q170: 0.835 | R170: 0.865 | S170: 0.89 | T170: 0.91 | U170: 0.915 | V170: 0.925 | W170: 0.935 | Y170: 0.975 | AB170: 1.035 | AC170: 1.155 | AD170: 1.24 | AE170: 1.31 | AF170: 1.39 | AG170: 1.495 | AI170: -0.175 | AJ170: -0.375 | AK170: -0.315 | AL170: -0.225 | AM170: -0.185 | AN170: -0.04 | AO170: 0.1 | AP170: 0.205
A171: 2019-08-20 | C171: 1.08 | D171: 0.885 | E171: 0.805 | F171: 0.735 | G171: 0.715 | H171: 0.68 | I171: 0.68 | J171: 0.685 | K171: 0.685 | M171: 0.74 | O171: 0.805 | Q171: 0.86 | R171: 0.9 | S171: 0.92 | T171: 0.94 | U171: 0.94 | V171: 0.95 | W171: 0.96 | Y171: 1 | AB171: 1.065 | AC171: 1.185 | AD171: 1.26 | AE171: 1.355 | AF171: 1.435 | AG171: 1.54 | AI171: -0.185 | AJ171: -0.355 | AK171: -0.3 | AL171: -0.2 | AM171: -0.155 | AN171: -0.01 | AO171: 0.135 | AP171: 0.245
A172: 2019-08-21 | C172: 1.045 | D172: 0.88 | E172: 0.795 | F172: 0.73 | G172: 0.71 | H172: 0.675 | I172: 0.675 | J172: 0.675 | K172: 0.68 | M172: 0.735 | O172: 0.8 | Q172: 0.85 | R172: 0.89 | S172: 0.91 | T172: 0.93 | U172: 0.93 | V172: 0.94 | W172: 0.95 | Y172: 0.995 | AB172: 1.055 | AC172: 1.18 | AD172: 1.265 | AE172: 1.365 | AF172: 1.445 | AG172: 1.55 | AI172: -0.195 | AJ172: -0.385 | AK172: -0.32 | AL172: -0.215 | AM172: -0.17 | AN172: -0.015 | AO172: 0.12 | AP172: 0.24
A173: 2019-08-22 | C173: 1.045 | D173: 0.87 | E173: 0.785 | F173: 0.725 | G173: 0.705 | H173: 0.675 | I173: 0.67 | J173: 0.675 | K173: 0.675 | M173: 0.735 | O173: 0.785 | Q173: 0.835 | R173: 0.87 | S173: 0.895 | T173: 0.91 | U173: 0.91 | V173: 0.92 | W173: 0.93 | Y173: 0.97 | AB173: 1.035 | AC173: 1.16 | AD173: 1.235 | AE173: 1.34 | AF173: 1.42 | AG173: 1.53 | AI173: -0.195 | AJ173: -0.375 | AK173: -0.33 | AL173: -0.24 | AM173: -0.19 | AN173: -0.03 | AO173: 0.095 | AP173: 0.225
A174: 2019-08-23 | C174: 1.05 | D174: 0.885 | E174: 0.81 | F174: 0.75 | G174: 0.735 | H174: 0.705 | I174: 0.705 | J174: 0.71 | K174: 0.71 | M174: 0.775 | O174: 0.845 | Q174: 0.895 | R174: 0.93 | S174: 0.955 | T174: 0.97 | U174: 0.97 | V174: 0.985 | W174: 0.995 | Y174: 1.035 | AB174: 1.1 | AC174: 1.225 | AD174: 1.305 | AE174: 1.405 | AF174: 1.49 | AG174: 1.595 | AI174: -0.2 | AJ174: -0.375 | AK174: -0.305 | AL174: -0.195 | AM174: -0.15 | AN174: 0.025 | AO174: 0.16 | AP174: 0.285
A175: 2019-08-26 | C175: 1.04 | D175: 0.86 | E175: 0.775 | F175: 0.7 | G175: 0.69 | H175: 0.66 | I175: 0.66 | J175: 0.66 | K175: 0.665 | M175: 0.72 | O175: 0.77 | Q175: 0.815 | R175: 0.845 | S175: 0.87 | T175: 0.885 | U175: 0.885 | V175: 0.895 | W175: 0.91 | Y175: 0.945 | AB175: 1.015 | AC175: 1.145 | AD175: 1.225 | AE175: 1.32 | AF175: 1.405 | AG175: 1.525 | AI175: -0.2 | AJ175: -0.395 | AK175: -0.33 | AL175: -0.245 | AM175: -0.2 | AN175: -0.03 | AO175: 0.12 | AP175: 0.245
A176: 2019-08-27 | C176: 1.05 | D176: 0.88 | E176: 0.795 | F176: 0.74 | G176: 0.72 | H176: 0.695 | I176: 0.69 | J176: 0.69 | K176: 0.69 | M176: 0.745 | O176: 0.79 | Q176: 0.835 | R176: 0.87 | S176: 0.89 | T176: 0.905 | U176: 0.905 | V176: 0.915 | W176: 0.93 | Y176: 0.965 | AB176: 1.03 | AC176: 1.155 | AD176: 1.235 | AE176: 1.335 | AF176: 1.425 | AG176: 1.53 | AI176: -0.195 | AJ176: -0.375 | AK176: -0.305 | AL176: -0.225 | AM176: -0.185 | AN176: -0.015 | AO176: 0.13 | AP176: 0.26
A177: 2019-08-28 | C177: 1.05 | D177: 0.865 | E177: 0.79 | F177: 0.73 | G177: 0.705 | H177: 0.68 | I177: 0.675 | J177: 0.675 | K177: 0.675 | M177: 0.73 | O177: 0.775 | Q177: 0.82 | R177: 0.85 | S177: 0.87 | T177: 0.885 | U177: 0.885 | V177: 0.895 | W177: 0.905 | Y177: 0.94 | AB177: 1.01 | AC177: 1.125 | AD177: 1.205 | AE177: 1.3 | AF177: 1.385 | AG177: 1.49 | AI177: -0.195 | AJ177: -0.375 | AK177: -0.315 | AL177: -0.235 | AM177: -0.2 | AN177: -0.025 | AO177: 0.115 | AP177: 0.24
A178: 2019-08-29 | C178: 1.05 | D178: 0.885 | E178: 0.79 | F178: 0.725 | G178: 0.695 | H178: 0.67 | I178: 0.67 | J178: 0.67 | K178: 0.67 | M178: 0.72 | O178: 0.765 | Q178: 0.81 | R178: 0.84 | S178: 0.86 | T178: 0.875 | U178: 0.875 | V178: 0.885 | W178: 0.895 | Y178: 0.93 | AB178: 0.995 | AC178: 1.11 | AD178: 1.195 | AE178: 1.29 | AF178: 1.375 | AG178: 1.465 | AI178: -0.185 | AJ178: -0.395 | AK178: -0.33 | AL178: -0.25 | AM178: -0.215 | AN178: -0.03 | AO178: 0.105 | AP178: 0.22
A179: 2019-08-30 | C179: 1.055 | D179: 0.875 | E179: 0.775 | F179: 0.72 | G179: 0.695 | H179: 0.67 | I179: 0.67 | J179: 0.67 | K179: 0.67 | M179: 0.725 | O179: 0.775 | Q179: 0.82 | R179: 0.85 | S179: 0.87 | T179: 0.885 | U179: 0.885 | V179: 0.89 | W179: 0.905 | Y179: 0.935 | AB179: 1.005 | AC179: 1.115 | AD179: 1.2 | AE179: 1.285 | AF179: 1.37 | AG179: 1.47 | AI179: -0.195 | AJ179: -0.425 | AK179: -0.355 | AL179: -0.275 | AM179: -0.235 | AN179: -0.07 | AO179: 0.055 | AP179: 0.17
A180: 2019-09-02 | C180: 1.055 | D180: 0.88 | E180: 0.805 | F180: 0.735 | G180: 0.71 | H180: 0.685 | I180: 0.69 | J180: 0.69 | K180: 0.69 | M180: 0.75 | O180: 0.805 | Q180: 0.85 | R180: 0.88 | S180: 0.905 | T180: 0.92 | U180: 0.92 | V180: 0.93 | W180: 0.94 | Y180: 0.97 | AB180: 1.04 | AC180: 1.15 | AD180: 1.23 | AE180: 1.315 | AF180: 1.41 | AG180: 1.515 | AI180: -0.225 | AJ180: -0.415 | AK180: -0.355 | AL180: -0.245 | AM180: -0.205 | AN180: -0.04 | AO180: 0.09 | AP180: 0.215
A181: 2019-09-03 | C181: 1.05 | D181: 0.885 | E181: 0.81 | F181: 0.745 | G181: 0.72 | H181: 0.7 | I181: 0.695 | J181: 0.695 | K181: 0.7 | M181: 0.76 | O181: 0.82 | Q181: 0.87 | R181: 0.9 | S181: 0.925 | T181: 0.94 | U181: 0.94 | V181: 0.945 | W181: 0.955 | Y181: 0.99 | AB181: 1.06 | AC181: 1.175 | AD181: 1.255 | AE181: 1.34 | AF181: 1.43 | AG181: 1.53 | AI181: -0.255 | AJ181: -0.445 | AK181: -0.365 | AL181: -0.255 | AM181: -0.205 | AN181: -0.055 | AO181: 0.085 | AP181: 0.2
A182: 2019-09-04 | C182: 1.06 | D182: 0.9 | E182: 0.825 | F182: 0.775 | G182: 0.74 | H182: 0.72 | I182: 0.715 | J182: 0.715 | K182: 0.72 | M182: 0.775 | O182: 0.82 | Q182: 0.86 | R182: 0.895 | S182: 0.915 | T182: 0.93 | U182: 0.93 | V182: 0.94 | W182: 0.945 | Y182: 0.98 | AB182: 1.045 | AC182: 1.17 | AD182: 1.245 | AE182: 1.335 | AF182: 1.42 | AG182: 1.515 | AI182: -0.24 | AJ182: -0.41 | AK182: -0.325 | AL182: -0.24 | AM182: -0.195 | AN182: -0.04 | AO182: 0.09 | AP182: 0.225
A183: 2019-09-05 | C183: 1.06 | D183: 0.915 | E183: 0.86 | F183: 0.8 | G183: 0.77 | H183: 0.745 | I183: 0.745 | J183: 0.74 | K183: 0.745 | M183: 0.805 | O183: 0.855 | Q183: 0.9 | R183: 0.93 | S183: 0.955 | T183: 0.965 | U183: 0.97 | V183: 0.975 | W183: 0.98 | Y183: 1.01 | AB183: 1.08 | AC183: 1.2 | AD183: 1.28 | AE183: 1.365 | AF183: 1.455 | AG183: 1.555 | AI183: -0.24 | AJ183: -0.4 | AK183: -0.315 | AL183: -0.215 | AM183: -0.165 | AN183: -0.015 | AO183: 0.12 | AP183: 0.245
A184: 2019-09-06 | C184: 1.08 | D184: 0.935 | E184: 0.895 | F184: 0.865 | G184: 0.84 | H184: 0.815 | I184: 0.815 | J184: 0.815 | K184: 0.825 | M184: 0.885 | O184: 0.96 | Q184: 1.01 | R184: 1.045 | S184: 1.075 | T184: 1.085 | U184: 1.09 | V184: 1.095 | W184: 1.105 | Y184: 1.13 | AB184: 1.2 | AC184: 1.325 | AD184: 1.405 | AE184: 1.49 | AF184: 1.575 | AG184: 1.675 | AI184: -0.215 | AJ184: -0.335 | AK184: -0.245 | AL184: -0.13 | AM184: -0.08 | AN184: 0.07 | AO184: 0.205 | AP184: 0.33
A185: 2019-09-09 | C185: 1.065 | D185: 0.92 | E185: 0.89 | F185: 0.855 | G185: 0.835 | H185: 0.81 | I185: 0.805 | J185: 0.805 | K185: 0.805 | M185: 0.86 | O185: 0.92 | Q185: 0.96 | R185: 0.99 | S185: 1.015 | T185: 1.03 | U185: 1.03 | V185: 1.035 | W185: 1.04 | Y185: 1.065 | AB185: 1.135 | AC185: 1.255 | AD185: 1.34 | AE185: 1.43 | AF185: 1.515 | AG185: 1.63 | AI185: -0.21 | AJ185: -0.325 | AK185: -0.255 | AL185: -0.165 | AM185: -0.12 | AN185: 0.02 | AO185: 0.145 | AP185: 0.285
A186: 2019-09-10 | C186: 1.055 | D186: 0.93 | E186: 0.905 | F186: 0.87 | G186: 0.855 | H186: 0.83 | I186: 0.83 | J186: 0.825 | K186: 0.83 | M186: 0.895 | O186: 0.955 | Q186: 1 | R186: 1.035 | S186: 1.06 | T186: 1.075 | U186: 1.075 | V186: 1.08 | W186: 1.085 | Y186: 1.11 | AB186: 1.18 | AC186: 1.305 | AD186: 1.39 | AE186: 1.475 | AF186: 1.565 | AG186: 1.665 | AI186: -0.24 | AJ186: -0.325 | AK186: -0.245 | AL186: -0.145 | AM186: -0.1 | AN186: 0.045 | AO186: 0.175 | AP186: 0.3
A187: 2019-09-11 | C187: 1.05 | D187: 0.94 | E187: 0.92 | F187: 0.9 | G187: 0.89 | H187: 0.87 | I187: 0.865 | J187: 0.865 | K187: 0.87 | M187: 0.94 | O187: 1.01 | Q187: 1.06 | R187: 1.095 | S187: 1.12 | T187: 1.135 | U187: 1.14 | V187: 1.14 | W187: 1.15 | Y187: 1.17 | AB187: 1.24 | AC187: 1.365 | AD187: 1.45 | AE187: 1.545 | AF187: 1.63 | AG187: 1.735 | AI187: -0.22 | AJ187: -0.29 | AK187: -0.21 | AL187: -0.095 | AM187: -0.05 | AN187: 0.095 | AO187: 0.22 | AP187: 0.355
A188: 2019-09-12 | C188: 1.055 | D188: 0.945 | E188: 0.935 | F188: 0.91 | G188: 0.895 | H188: 0.875 | I188: 0.875 | J188: 0.875 | K188: 0.875 | M188: 0.94 | O188: 1.01 | Q188: 1.07 | R188: 1.105 | S188: 1.13 | T188: 1.15 | U188: 1.15 | V188: 1.155 | W188: 1.16 | Y188: 1.19 | AB188: 1.255 | AC188: 1.38 | AD188: 1.465 | AE188: 1.555 | AF188: 1.645 | AG188: 1.745 | AI188: -0.22 | AJ188: -0.285 | AK188: -0.205 | AL188: -0.085 | AM188: -0.035 | AN188: 0.105 | AO188: 0.235 | AP188: 0.37
A189: 2019-09-13 | C189: 1.05 | D189: 0.92 | E189: 0.92 | F189: 0.91 | G189: 0.9 | H189: 0.885 | I189: 0.89 | J189: 0.89 | K189: 0.9 | M189: 0.96 | O189: 1.01 | Q189: 1.07 | R189: 1.11 | S189: 1.13 | T189: 1.145 | U189: 1.15 | V189: 1.16 | W189: 1.165 | Y189: 1.195 | AB189: 1.26 | AC189: 1.38 | AD189: 1.465 | AE189: 1.555 | AF189: 1.635 | AG189: 1.745 | AI189: -0.225 | AJ189: -0.275 | AK189: -0.19 | AL189: -0.085 | AM189: -0.035 | AN189: 0.11 | AO189: 0.235 | AP189: 0.38
A190: 2019-09-16 | C190: 1.06 | D190: 0.9 | E190: 0.93 | F190: 0.92 | G190: 0.925 | H190: 0.905 | I190: 0.91 | J190: 0.91 | K190: 0.925 | M190: 0.98 | O190: 1.04 | Q190: 1.105 | R190: 1.14 | S190: 1.16 | T190: 1.18 | U190: 1.18 | V190: 1.19 | W190: 1.2 | Y190: 1.235 | AB190: 1.29 | AC190: 1.41 | AD190: 1.49 | AE190: 1.575 | AF190: 1.65 | AG190: 1.765 | AI190: -0.24 | AJ190: -0.295 | AK190: -0.19 | AL190: -0.08 | AM190: -0.03 | AN190: 0.13 | AO190: 0.255 | AP190: 0.385
A191: 2019-09-17 | C191: 1.055 | D191: 0.895 | E191: 0.9 | F191: 0.865 | G191: 0.87 | H191: 0.85 | I191: 0.85 | J191: 0.85 | K191: 0.865 | M191: 0.92 | O191: 0.985 | Q191: 1.04 | R191: 1.08 | S191: 1.105 | T191: 1.12 | U191: 1.12 | V191: 1.135 | W191: 1.145 | Y191: 1.175 | AB191: 1.235 | AC191: 1.36 | AD191: 1.435 | AE191: 1.525 | AF191: 1.61 | AG191: 1.705 | AI191: -0.295 | AJ191: -0.345 | AK191: -0.24 | AL191: -0.12 | AM191: -0.075 | AN191: 0.08 | AO191: 0.2 | AP191: 0.335
A192: 2019-09-18 | C192: 1.06 | D192: 0.89 | E192: 0.905 | F192: 0.875 | G192: 0.87 | H192: 0.85 | I192: 0.85 | J192: 0.85 | K192: 0.865 | M192: 0.92 | O192: 0.985 | Q192: 1.045 | R192: 1.085 | S192: 1.11 | T192: 1.125 | U192: 1.13 | V192: 1.14 | W192: 1.15 | Y192: 1.18 | AB192: 1.245 | AC192: 1.365 | AD192: 1.45 | AE192: 1.545 | AF192: 1.62 | AG192: 1.73 | AI192: -0.27 | AJ192: -0.335 | AK192: -0.24 | AL192: -0.13 | AM192: -0.09 | AN192: 0.065 | AO192: 0.195 | AP192: 0.325
A193: 2019-09-19 | C193: 1.03 | D193: 0.83 | E193: 0.83 | F193: 0.79 | G193: 0.79 | H193: 0.77 | I193: 0.77 | J193: 0.77 | K193: 0.79 | M193: 0.85 | O193: 0.905 | Q193: 0.965 | R193: 1.005 | S193: 1.03 | T193: 1.045 | U193: 1.05 | V193: 1.06 | W193: 1.07 | Y193: 1.1 | AB193: 1.16 | AC193: 1.275 | AD193: 1.365 | AE193: 1.46 | AF193: 1.54 | AG193: 1.64 | AI193: -0.34 | AJ193: -0.38 | AK193: -0.275 | AL193: -0.17 | AM193: -0.125 | AN193: 0.03 | AO193: 0.155 | AP193: 0.28
A194: 2019-09-20 | C194: 1.025 | D194: 0.83 | E194: 0.8 | F194: 0.76 | G194: 0.755 | H194: 0.735 | I194: 0.735 | J194: 0.735 | K194: 0.755 | M194: 0.81 | O194: 0.86 | Q194: 0.925 | R194: 0.965 | S194: 0.99 | T194: 1.005 | U194: 1.01 | V194: 1.02 | W194: 1.03 | Y194: 1.06 | AB194: 1.125 | AC194: 1.235 | AD194: 1.325 | AE194: 1.415 | AF194: 1.495 | AG194: 1.6 | AI194: -0.36 | AJ194: -0.435 | AK194: -0.33 | AL194: -0.245 | AM194: -0.2 | AN194: -0.045 | AO194: 0.09 | AP194: 0.215
A195: 2019-09-23 | C195: 1.04 | D195: 0.825 | E195: 0.805 | F195: 0.76 | G195: 0.75 | H195: 0.73 | I195: 0.73 | J195: 0.73 | K195: 0.75 | M195: 0.8 | O195: 0.855 | Q195: 0.91 | R195: 0.945 | S195: 0.97 | T195: 0.985 | U195: 0.99 | V195: 1 | W195: 1.01 | Y195: 1.04 | AB195: 1.1 | AC195: 1.22 | AD195: 1.3 | AE195: 1.395 | AF195: 1.475 | AG195: 1.59 | AI195: -0.355 | AJ195: -0.45 | AK195: -0.355 | AL195: -0.275 | AM195: -0.235 | AN195: -0.065 | AO195: 0.065 | AP195: 0.19
A196: 2019-09-24 | C196: 1.025 | D196: 0.815 | E196: 0.78 | F196: 0.74 | G196: 0.735 | H196: 0.72 | I196: 0.72 | J196: 0.715 | K196: 0.73 | M196: 0.78 | O196: 0.82 | Q196: 0.87 | R196: 0.905 | S196: 0.93 | T196: 0.95 | U196: 0.95 | V196: 0.96 | W196: 0.97 | Y196: 1 | AB196: 1.065 | AC196: 1.185 | AD196: 1.27 | AE196: 1.375 | AF196: 1.45 | AG196: 1.55 | AI196: -0.365 | AJ196: -0.465 | AK196: -0.38 | AL196: -0.32 | AM196: -0.28 | AN196: -0.115 | AO196: 0.01 | AP196: 0.14
A197: 2019-09-25 | C197: 1.025 | D197: 0.8 | E197: 0.775 | F197: 0.73 | G197: 0.73 | H197: 0.705 | I197: 0.705 | J197: 0.705 | K197: 0.715 | M197: 0.765 | O197: 0.81 | Q197: 0.855 | R197: 0.89 | S197: 0.91 | T197: 0.93 | U197: 0.93 | V197: 0.94 | W197: 0.955 | Y197: 0.985 | AB197: 1.05 | AC197: 1.175 | AD197: 1.255 | AE197: 1.36 | AF197: 1.43 | AG197: 1.545 | AI197: -0.355 | AJ197: -0.46 | AK197: -0.385 | AL197: -0.31 | AM197: -0.275 | AN197: -0.11 | AO197: 0.025 | AP197: 0.155
A198: 2019-09-26 | C198: 1.03 | D198: 0.795 | E198: 0.78 | F198: 0.73 | G198: 0.725 | H198: 0.7 | I198: 0.7 | J198: 0.7 | K198: 0.715 | M198: 0.77 | O198: 0.81 | Q198: 0.865 | R198: 0.9 | S198: 0.925 | T198: 0.94 | U198: 0.94 | V198: 0.95 | W198: 0.965 | Y198: 0.995 | AB198: 1.055 | AC198: 1.18 | AD198: 1.265 | AE198: 1.36 | AF198: 1.445 | AG198: 1.555 | AI198: -0.375 | AJ198: -0.465 | AK198: -0.39 | AL198: -0.305 | AM198: -0.27 | AN198: -0.11 | AO198: 0.02 | AP198: 0.135
A199: 2019-09-27 | C199: 1.035 | D199: 0.81 | E199: 0.78 | F199: 0.73 | G199: 0.72 | H199: 0.7 | I199: 0.695 | J199: 0.695 | K199: 0.715 | M199: 0.765 | O199: 0.81 | Q199: 0.86 | R199: 0.895 | S199: 0.92 | T199: 0.935 | U199: 0.935 | V199: 0.945 | W199: 0.96 | Y199: 0.99 | AB199: 1.055 | AC199: 1.175 | AD199: 1.26 | AE199: 1.365 | AF199: 1.445 | AG199: 1.555 | AI199: -0.365 | AJ199: -0.505 | AK199: -0.42 | AL199: -0.34 | AM199: -0.305 | AN199: -0.135 | AO199: -0.01 | AP199: 0.11
A200: 2019-09-30 | C200: 1.035 | D200: 0.815 | E200: 0.815 | F200: 0.765 | G200: 0.755 | H200: 0.735 | I200: 0.73 | J200: 0.735 | K200: 0.75 | M200: 0.805 | O200: 0.875 | Q200: 0.925 | R200: 0.965 | S200: 0.985 | T200: 1 | U200: 1.005 | V200: 1.015 | W200: 1.025 | Y200: 1.06 | AB200: 1.12 | AC200: 1.24 | AD200: 1.325 | AE200: 1.43 | AF200: 1.505 | AG200: 1.615 | AI200: -0.35 | AJ200: -0.475 | AK200: -0.38 | AL200: -0.26 | AM200: -0.225 | AN200: -0.05 | AO200: 0.09 | AP200: 0.215
A201: 2019-10-01 | C201: 0.925 | D201: 0.745 | E201: 0.735 | F201: 0.69 | G201: 0.675 | H201: 0.66 | I201: 0.655 | J201: 0.655 | K201: 0.675 | M201: 0.745 | O201: 0.815 | Q201: 0.87 | R201: 0.915 | S201: 0.945 | T201: 0.96 | U201: 0.965 | V201: 0.97 | W201: 0.98 | Y201: 1.015 | AB201: 1.075 | AC201: 1.195 | AD201: 1.275 | AE201: 1.385 | AF201: 1.47 | AG201: 1.575 | AI201: -0.4 | AJ201: -0.53 | AK201: -0.42 | AL201: -0.3 | AM201: -0.265 | AN201: -0.09 | AO201: 0.055 | AP201: 0.18
A202: 2019-10-02 | C202: 0.89 | D202: 0.705 | E202: 0.705 | F202: 0.66 | G202: 0.645 | H202: 0.625 | I202: 0.625 | J202: 0.625 | K202: 0.65 | M202: 0.72 | O202: 0.8 | Q202: 0.855 | R202: 0.905 | S202: 0.935 | T202: 0.95 | U202: 0.955 | V202: 0.96 | W202: 0.975 | Y202: 1.005 | AB202: 1.07 | AC202: 1.19 | AD202: 1.275 | AE202: 1.38 | AF202: 1.46 | AG202: 1.57 | AI202: -0.42 | AJ202: -0.575 | AK202: -0.44 | AL202: -0.325 | AM202: -0.285 | AN202: -0.11 | AO202: 0.035 | AP202: 0.165
... 371 more rows

Sheet RBA F03 24-Mar-2021
A1: F3 AGGREGATE MEASURES OF AUSTRALIAN CORPORATE BOND SPREADS AND YIELDS: NON-FINANCIAL CORPORATE (NFC) BONDS
A2: Title | B2: Non-financial corporate A-rated bonds – Effective tenor – 3 year target tenor | C2: Non-financial corporate A-rated bonds – Yield – 3 year target tenor | D2: Non-financial corporate A-rated bonds – Spread to swap – 3 year target tenor | E2: Non-financial corporate A-rated bonds – Spread to AGS – 3 year target tenor | F2: Non-financial corporate A-rated bonds – Effective tenor – 5 year target tenor | G2: Non-financial corporate A-rated bonds – Yield – 5 year target tenor | H2: Non-financial corporate A-rated bonds – Spread to swap – 5 year target tenor | I2: Non-financial corporate A-rated bonds – Spread to AGS – 5 year target tenor | J2: Non-financial corporate A-rated bonds – Effective tenor – 7 year target tenor | K2: Non-financial corporate A-rated bonds – Yield – 7 year target tenor | L2: Non-financial corporate A-rated bonds – Spread to swap – 7 year target tenor | M2: Non-financial corporate A-rated bonds – Spread to AGS – 7 year target tenor | N2: Non-financial corporate A-rated bonds – Effective tenor – 10 year target tenor | O2: Non-financial corporate A-rated bonds – Yield – 10 year target tenor | P2: Non-financial corporate A-rated bonds – Spread to swap – 10 year target tenor | Q2: Non-financial corporate A-rated bonds – Spread to AGS – 10 year target tenor | R2: Non-financial corporate A-rated bonds – Number of bonds – 1–4 years | S2: Non-financial corporate A-rated bonds – Number of bonds – 4–6 years | T2: Non-financial corporate A-rated bonds – Number of bonds – 6–8 years | U2: Non-financial corporate A-rated bonds – Number of bonds – 8–12 years | V2: Non-financial corporate A-rated bonds – Number of bonds – >12 years | W2: Non-financial corporate BBB-rated bonds – Effective tenor – 3 year target tenor | X2: Non-financial corporate BBB-rated bonds – Yield – 3 year target tenor | Y2: Non-financial corporate BBB-rated bonds – Spread to swap – 3 year target tenor | Z2: Non-financial corporate BBB-rated bonds – Spread to AGS – 3 year target tenor | AA2: Non-financial corporate BBB-rated bonds – Effective tenor – 5 year target tenor | AB2: Non-financial corporate BBB-rated bonds – Yield – 5 year target tenor | AC2: Non-financial corporate BBB-rated bonds – Spread to swap – 5 year target tenor | AD2: Non-financial corporate BBB-rated bonds – Spread to AGS – 5 year target tenor | AE2: Non-financial corporate BBB-rated bonds – Effective tenor – 7 year target tenor | AF2: Non-financial corporate BBB-rated bonds – Yield – 7 year target tenor | AG2: Non-financial corporate BBB-rated bonds – Spread to swap – 7 year target tenor | AH2: Non-financial corporate BBB-rated bonds – Spread to AGS – 7 year target tenor | AI2: Non-financial corporate BBB-rated bonds – Effective tenor – 10 year target tenor | AJ2: Non-financial corporate BBB-rated bonds – Yield – 10 year target tenor | AK2: Non-financial corporate BBB-rated bonds – Spread to swap – 10 year target tenor | AL2: Non-financial corporate BBB-rated bonds – Spread to AGS – 10 year target tenor | AM2: Non-financial corporate BBB-rated bonds – Number of bonds – 1–4 years | AN2: Non-financial corporate BBB-rated bonds – Number of bonds – 4–6 years | AO2: Non-financial corporate BBB-rated bonds – Number of bonds – 6–8 years | AP2: Non-financial corporate BBB-rated bonds – Number of bonds – 8–12 years | AQ2: Non-financial corporate BBB-rated bonds – Number of bonds – >12 years
A3: Description | B3: Non-financial corporate A-rated bonds – Effective tenor – 3 year target tenor: monthly, years; See notes for more details | C3: Non-financial corporate A-rated bonds – Yield – 3 year target tenor: monthly, per cent; See notes for more details | D3: Non-financial corporate A-rated bonds – Spread to swap – 3 year target tenor: monthly, basis points; See notes for more details | E3: Non-financial corporate A-rated bonds – Spread to AGS – 3 year target tenor: monthly, basis points; See notes for more details | F3: Non-financial corporate A-rated bonds – Effective tenor – 5 year target tenor: monthly, years; See notes for more details | G3: Non-financial corporate A-rated bonds – Yield – 5 year target tenor: monthly, per cent; See notes for more details | H3: Non-financial corporate A-rated bonds – Spread to swap – 5 year target tenor: monthly, basis points; See notes for more details | I3: Non-financial corporate A-rated bonds – Spread to AGS – 5 year target tenor: monthly, basis points; See notes for more details | J3: Non-financial corporate A-rated bonds – Effective tenor – 7 year target tenor: monthly, years; See notes for more details | K3: Non-financial corporate A-rated bonds – Yield – 7 year target tenor: monthly, per cent; See notes for more details | L3: Non-financial corporate A-rated bonds – Spread to swap – 7 year target tenor: monthly, basis points; See notes for more details | M3: Non-financial corporate A-rated bonds – Spread to AGS – 7 year target tenor: monthly, basis points; See notes for more details | N3: Non-financial corporate A-rated bonds – Effective tenor – 10 year target tenor: monthly, years; See notes for more details | O3: Non-financial corporate A-rated bonds – Yield – 10 year target tenor: monthly, per cent; See notes for more details | P3: Non-financial corporate A-rated bonds – Spread to swap – 10 year target tenor: monthly, basis points; See notes for more details | Q3: Non-financial corporate A-rated bonds – Spread to AGS – 10 year target tenor: monthly, basis points; See notes for more details | R3: Non-financial corporate A-rated bonds – Number of bonds with a residual maturity of 1-4 years: monthly, years; See notes for more details | S3: Non-financial corporate A-rated bonds – Number of bonds with a residual maturity of 4-6 years: monthly, years; See notes for more details | T3: Non-financial corporate A-rated bonds – Number of bonds with a residual maturity of 6-8 years: monthly, years; See notes for more details | U3: Non-financial corporate A-rated bonds – Number of bonds with a residual maturity of 8-12 years: monthly, years; See notes for more details | V3: Non-financial corporate A-rated bonds – Number of bonds with a residual maturity of 12+ years: monthly, years; See notes for more details | W3: Non-financial corporate BBB-rated bonds – Effective tenor – 3 year target tenor: monthly, years; See notes for more details | X3: Non-financial corporate BBB-rated bonds – Yield – 3 year target tenor: monthly, per cent; See notes for more details | Y3: Non-financial corporate BBB-rated bonds – Spread to swap – 3 year target tenor: monthly, basis points; See notes for more details | Z3: Non-financial corporate BBB-rated bonds – Spread to AGS – 3 year target tenor: monthly, basis points; See notes for more details | AA3: Non-financial corporate BBB-rated bonds – Effective tenor – 5 year target tenor: monthly, years; See notes for more details | AB3: Non-financial corporate BBB-rated bonds – Yield – 5 year target tenor: monthly, per cent; See notes for more details | AC3: Non-financial corporate BBB-rated bonds – Spread to swap – 5 year target tenor: monthly, basis points; See notes for more details | AD3: Non-financial corporate BBB-rated bonds – Spread to AGS – 5 year target tenor: monthly, basis points; See notes for more details | AE3: Non-financial corporate BBB-rated bonds – Effective tenor – 7 year target tenor: monthly, years; See notes for more details | AF3: Non-financial corporate BBB-rated bonds – Yield – 7 year target tenor: monthly, per cent; See notes for more details | AG3: Non-financial corporate BBB-rated bonds – Spread to swap – 7 year target tenor: monthly, basis points; See notes for more details | AH3: Non-financial corporate BBB-rated bonds – Spread to AGS – 7 year target tenor: monthly, basis points; See notes for more details | AI3: Non-financial corporate BBB-rated bonds – Effective tenor – 10 year target tenor: monthly, years; See notes for more details | AJ3: Non-financial corporate BBB-rated bonds – Yield – 10 year target tenor: monthly, per cent; See notes for more details | AK3: Non-financial corporate BBB-rated bonds – Spread to swap – 10 year target tenor: monthly, basis points; See notes for more details | AL3: Non-financial corporate BBB-rated bonds – Spread to AGS – 10 year target tenor: monthly, basis points; See notes for more details | AM3: Non-financial corporate BBB-rated bonds – Number of bonds with a residual maturity of 1-4 years: monthly, years; See notes for more details | AN3: Non-financial corporate BBB-rated bonds – Number of bonds with a residual maturity of 4-6 years: monthly, years; See notes for more details | AO3: Non-financial corporate BBB-rated bonds – Number of bonds with a residual maturity of 6-8 years: monthly, years; See notes for more details | AP3: Non-financial corporate BBB-rated bonds – Number of bonds with a residual maturity of 8-12 years: monthly, years; See notes for more details | AQ3: Non-financial corporate BBB-rated bonds – Number of bonds with a residual maturity of 12+ years: monthly, years; See notes for more details
A4: Frequency | B4: Monthly | C4: Monthly | D4: Monthly | E4: Monthly | F4: Monthly | G4: Monthly | H4: Monthly | I4: Monthly | J4: Monthly | K4: Monthly | L4: Monthly | M4: Monthly | N4: Monthly | O4: Monthly | P4: Monthly | Q4: Monthly | R4: Monthly | S4: Monthly | T4: Monthly | U4: Monthly | V4: Monthly | W4: Monthly | X4: Monthly | Y4: Monthly | Z4: Monthly | AA4: Monthly | AB4: Monthly | AC4: Monthly | AD4: Monthly | AE4: Monthly | AF4: Monthly | AG4: Monthly | AH4: Monthly | AI4: Monthly | AJ4: Monthly | AK4: Monthly | AL4: Monthly | AM4: Monthly | AN4: Monthly | AO4: Monthly | AP4: Monthly | AQ4: Monthly
A5: Type | B5: Original | C5: Original | D5: Original | E5: Original | F5: Original | G5: Original | H5: Original | I5: Original | J5: Original | K5: Original | L5: Original | M5: Original | N5: Original | O5: Original | P5: Original | Q5: Original | R5: Original | S5: Original | T5: Original | U5: Original | V5: Original | W5: Original | X5: Original | Y5: Original | Z5: Original | AA5: Original | AB5: Original | AC5: Original | AD5: Original | AE5: Original | AF5: Original | AG5: Original | AH5: Original | AI5: Original | AJ5: Original | AK5: Original | AL5: Original | AM5: Original | AN5: Original | AO5: Original | AP5: Original | AQ5: Original
A6: Units | B6: Years | C6: Per cent | D6: Basis points | E6: Basis points | F6: Years | G6: Per cent | H6: Basis points | I6: Basis points | J6: Years | K6: Per cent | L6: Basis points | M6: Basis points | N6: Years | O6: Per cent | P6: Basis points | Q6: Basis points | R6: Number | S6: Number | T6: Number | U6: Number | V6: Number | W6: Years | X6: Per cent | Y6: Basis points | Z6: Basis points | AA6: Years | AB6: Per cent | AC6: Basis points | AD6: Basis points | AE6: Years | AF6: Per cent | AG6: Basis points | AH6: Basis points | AI6: Years | AJ6: Per cent | AK6: Basis points | AL6: Basis points | AM6: Number | AN6: Number | AO6: Number | AP6: Number | AQ6: Number
A9: Source | B9: Bloomberg; RBA | C9: Bloomberg; RBA | D9: Bloomberg; RBA | E9: Bloomberg; RBA | F9: Bloomberg; RBA | G9: Bloomberg; RBA | H9: Bloomberg; RBA | I9: Bloomberg; RBA | J9: Bloomberg; RBA | K9: Bloomberg; RBA | L9: Bloomberg; RBA | M9: Bloomberg; RBA | N9: Bloomberg; RBA | O9: Bloomberg; RBA | P9: Bloomberg; RBA | Q9: Bloomberg; RBA | R9: Bloomberg; RBA | S9: Bloomberg; RBA | T9: Bloomberg; RBA | U9: Bloomberg; RBA | V9: Bloomberg; RBA | W9: Bloomberg; RBA | X9: Bloomberg; RBA | Y9: Bloomberg; RBA | Z9: Bloomberg; RBA | AA9: Bloomberg; RBA | AB9: Bloomberg; RBA | AC9: Bloomberg; RBA | AD9: Bloomberg; RBA | AE9: Bloomberg; RBA | AF9: Bloomberg; RBA | AG9: Bloomberg; RBA | AH9: Bloomberg; RBA | AI9: Bloomberg; RBA | AJ9: Bloomberg; RBA | AK9: Bloomberg; RBA | AL9: Bloomberg; RBA | AM9: Bloomberg; RBA | AN9: Bloomberg; RBA | AO9: Bloomberg; RBA | AP9: Bloomberg; RBA | AQ9: Bloomberg; RBA
A10: Publication date | B10: 2021-03-12 | C10: 2021-03-12 | D10: 2021-03-12 | E10: 2021-03-12 | F10: 2021-03-12 | G10: 2021-03-12 | H10: 2021-03-12 | I10: 2021-03-12 | J10: 2021-03-12 | K10: 2021-03-12 | L10: 2021-03-12 | M10: 2021-03-12 | N10: 2021-03-12 | O10: 2021-03-12 | P10: 2021-03-12 | Q10: 2021-03-12 | R10: 2021-03-12 | S10: 2021-03-12 | T10: 2021-03-12 | U10: 2021-03-12 | V10: 2021-03-12 | W10: 2021-03-12 | X10: 2021-03-12 | Y10: 2021-03-12 | Z10: 2021-03-12 | AA10: 2021-03-12 | AB10: 2021-03-12 | AC10: 2021-03-12 | AD10: 2021-03-12 | AE10: 2021-03-12 | AF10: 2021-03-12 | AG10: 2021-03-12 | AH10: 2021-03-12 | AI10: 2021-03-12 | AJ10: 2021-03-12 | AK10: 2021-03-12 | AL10: 2021-03-12 | AM10: 2021-03-12 | AN10: 2021-03-12 | AO10: 2021-03-12 | AP10: 2021-03-12 | AQ10: 2021-03-12
A11: Series ID | B11: FNFTA3M | C11: FNFYA3M | D11: FNFSA3M | E11: FNFCA3M | F11: FNFTA5M | G11: FNFYA5M | H11: FNFSA5M | I11: FNFCA5M | J11: FNFTA7M | K11: FNFYA7M | L11: FNFSA7M | M11: FNFCA7M | N11: FNFTA10M | O11: FNFYA10M | P11: FNFSA10M | Q11: FNFCA10M | R11: FNFNA3M | S11: FNFNA5M | T11: FNFNA7M | U11: FNFNA10M | V11: FNFNA12M | W11: FNFTBBB3M | X11: FNFYBBB3M | Y11: FNFSBBB3M | Z11: FNFCBBB3M | AA11: FNFTBBB5M | AB11: FNFYBBB5M | AC11: FNFSBBB5M | AD11: FNFCBBB5M | AE11: FNFTBBB7M | AF11: FNFYBBB7M | AG11: FNFSBBB7M | AH11: FNFCBBB7M | AI11: FNFTBBB10M | AJ11: FNFYBBB10M | AK11: FNFSBBB10M | AL11: FNFCBBB10M | AM11: FNFNBBB3M | AN11: FNFNBBB5M | AO11: FNFNBBB7M | AP11: FNFNBBB10M | AQ11: FNFNBBB12M
A12: 31/01/2005 | B12: 2.68 | C12: 5.95 | D12: 22.77 | E12: 69.32 | F12: 4.02 | G12: 6 | H12: 23.63 | I12: 64.03 | J12: 7.58 | K12: 6.18 | L12: 37.92 | M12: 82.32 | N12: 8.93 | O12: 6.24 | P12: 40.2 | Q12: 83.9 | R12: 20 | S12: 3 | T12: 3 | U12: 4 | V12: 0 | W12: 3.29 | X12: 6.1 | Y12: 37.82 | Z12: 84.6 | AA12: 5.62 | AB12: 6.35 | AC12: 59.32 | AD12: 99.72 | AE12: 7.15 | AF12: 6.5 | AG12: 69.47 | AH12: 113.87 | AI12: 7.95 | AJ12: 6.58 | AK12: 73.92 | AL12: 117.62 | AM12: 4 | AN12: 1 | AO12: 2 | AP12: 2 | AQ12: 0
A13: 28/02/2005 | B13: 2.42 | C13: 6.18 | D13: 20.54 | E13: 63.05 | F13: 4.13 | G13: 6.25 | H13: 26.9 | I13: 70.9 | J13: 7.72 | K13: 6.38 | L13: 35.54 | M13: 82.64 | N13: 8.93 | O13: 6.43 | P13: 38.38 | Q13: 86.48 | R13: 18 | S13: 3 | T13: 2 | U13: 4 | V13: 0 | W13: 3.26 | X13: 6.32 | Y13: 33.74 | Z13: 76.46 | AA13: 5.49 | AB13: 6.52 | AC13: 54.26 | AD13: 98.26 | AE13: 6.98 | AF13: 6.55 | AG13: 53.05 | AH13: 100.15 | AI13: 8.07 | AJ13: 6.48 | AK13: 43.34 | AL13: 91.44 | AM13: 4 | AN13: 1 | AO13: 3 | AP13: 1 | AQ13: 0
A14: 31/03/2005 | B14: 2.43 | C14: 6.27 | D14: 19.69 | E14: 62.42 | F14: 4.21 | G14: 6.35 | H14: 25.81 | I14: 68.01 | J14: 7.74 | K14: 6.46 | L14: 35.23 | M14: 81.83 | N14: 8.85 | O14: 6.51 | P14: 37.47 | Q14: 83.77 | R14: 18 | S14: 2 | T14: 2 | U14: 4 | V14: 0 | W14: 3.24 | X14: 6.43 | Y14: 35.64 | Z14: 78.63 | AA14: 5.32 | AB14: 6.65 | AC14: 56.35 | AD14: 98.55 | AE14: 6.29 | AF14: 6.73 | AG14: 62.24 | AH14: 108.84 | AI14: 7.08 | AJ14: 6.79 | AK14: 65.03 | AL14: 111.33 | AM14: 5 | AN14: 1 | AO14: 2 | AP14: 0 | AQ14: 0
A15: 30/04/2005 | B15: 2.39 | C15: 5.94 | D15: 21 | E15: 63.55 | F15: 4.26 | G15: 6.02 | H15: 25.83 | I15: 70.73 | J15: 7.73 | K15: 6.14 | L15: 33.79 | M15: 80.89 | N15: 8.79 | O15: 6.2 | P15: 36.73 | Q15: 86.03 | R15: 18 | S15: 2 | T15: 3 | U15: 3 | V15: 0 | W15: 3.24 | X15: 6.1 | Y15: 36.28 | Z15: 79.06 | AA15: 5.5 | AB15: 6.32 | AC15: 55.17 | AD15: 100.07 | AE15: 6.9 | AF15: 6.32 | AG15: 51.77 | AH15: 98.87 | AI15: 7.93 | AJ15: 6.21 | AK15: 37.92 | AL15: 87.22 | AM15: 5 | AN15: 1 | AO15: 2 | AP15: 1 | AQ15: 0
A16: 31/05/2005 | B16: 2.65 | C16: 5.81 | D16: 20.93 | E16: 67.69 | F16: 4.17 | G16: 5.85 | H16: 24.04 | I16: 71.44 | J16: 7.63 | K16: 6.05 | L16: 41.57 | M16: 90.97 | N16: 8.72 | O16: 6.15 | P16: 48.8 | Q16: 100.4 | R16: 18 | S16: 2 | T16: 3 | U16: 3 | V16: 0 | W16: 3.25 | X16: 5.97 | Y16: 36.5 | Z16: 83.49 | AA16: 5.65 | AB16: 6.2 | AC16: 59.19 | AD16: 106.59 | AE16: 6.97 | AF16: 6.3 | AG16: 66.93 | AH16: 116.33 | AI16: 7.66 | AJ16: 6.37 | AK16: 70.51 | AL16: 122.11 | AM16: 5 | AN16: 1 | AO16: 3 | AP16: 0 | AQ16: 0
A17: 30/06/2005 | B17: 2.67 | C17: 5.79 | D17: 21.97 | E17: 68.79 | F17: 4.51 | G17: 5.89 | H17: 30.52 | I17: 78.22 | J17: 7.3 | K17: 6.04 | L17: 43.84 | M17: 93.74 | N17: 9.06 | O17: 6.17 | P17: 55.28 | Q17: 106.58 | R17: 18 | S17: 4 | T17: 3 | U17: 4 | V17: 0 | W17: 3.21 | X17: 5.94 | Y17: 36.79 | Z17: 83.83 | AA17: 5.29 | AB17: 6.15 | AC17: 56.71 | AD17: 104.41 | AE17: 6.6 | AF17: 6.24 | AG17: 63.58 | AH17: 113.48 | AI17: 9.77 | AJ17: 6.45 | AK17: 83.23 | AL17: 134.53 | AM17: 5 | AN17: 1 | AO17: 2 | AP17: 1 | AQ17: 0
A18: 31/07/2005 | B18: 2.69 | C18: 5.79 | D18: 22.4 | E18: 66.03 | F18: 4.77 | G18: 5.87 | H18: 30.04 | I18: 73.04 | J18: 7.36 | K18: 5.92 | L18: 35 | M18: 80.8 | N18: 9.01 | O18: 6.04 | P18: 44.11 | Q18: 91.51 | R18: 16 | S18: 4 | T18: 3 | U18: 4 | V18: 0 | W18: 3.26 | X18: 5.89 | Y18: 33.03 | Z18: 76.8 | AA18: 5.5 | AB18: 6.1 | AC18: 53.08 | AD18: 96.08 | AE18: 6.71 | AF18: 6.13 | AG18: 55.99 | AH18: 101.79 | AI18: 9.57 | AJ18: 6.23 | AK18: 62.68 | AL18: 110.08 | AM18: 5 | AN18: 1 | AO18: 3 | AP18: 1 | AQ18: 0
A19: 31/08/2005 | B19: 2.75 | C19: 5.66 | D19: 20.21 | E19: 66.96 | F19: 4.58 | G19: 5.75 | H19: 27.82 | I19: 73.52 | J19: 7.32 | K19: 5.88 | L19: 39.09 | M19: 84.99 | N19: 8.95 | O19: 5.98 | P19: 45.42 | Q19: 93.22 | R19: 17 | S19: 4 | T19: 3 | U19: 4 | V19: 0 | W19: 3.48 | X19: 5.83 | Y19: 37.05 | Z19: 84.04 | AA19: 5.81 | AB19: 6.04 | AC19: 57.21 | AD19: 102.91 | AE19: 6.83 | AF19: 6.09 | AG19: 59.57 | AH19: 105.47 | AI19: 7.35 | AJ19: 6.12 | AK19: 59.31 | AL19: 107.11 | AM19: 4 | AN19: 1 | AO19: 4 | AP19: 0 | AQ19: 0
A20: 30/09/2005 | B20: 2.69 | C20: 5.96 | D20: 20.41 | E20: 66.18 | F20: 4.75 | G20: 6.07 | H20: 30.3 | I20: 73.7 | J20: 7.34 | K20: 6.16 | L20: 37.05 | M20: 82.35 | N20: 8.89 | O20: 6.3 | P20: 47.6 | Q20: 93.4 | R20: 17 | S20: 3 | T20: 3 | U20: 4 | V20: 0 | W20: 3.43 | X20: 6.11 | Y20: 35.08 | Z20: 81.07 | AA20: 5.45 | AB20: 6.31 | AC20: 54.21 | AD20: 97.61 | AE20: 6.26 | AF20: 6.32 | AG20: 53.06 | AH20: 98.36 | AI20: 8.52 | AJ20: 6.37 | AK20: 55.13 | AL20: 100.93 | AM20: 4 | AN20: 1 | AO20: 3 | AP20: 1 | AQ20: 0
A21: 31/10/2005 | B21: 2.67 | C21: 5.97 | D21: 16.34 | E21: 61.83 | F21: 4.78 | G21: 6.13 | H21: 27.58 | I21: 72.68 | J21: 7.33 | K21: 6.23 | L21: 33.72 | M21: 77.82 | N21: 8.83 | O21: 6.38 | P21: 44.8 | Q21: 89.9 | R21: 17 | S21: 3 | T21: 3 | U21: 4 | V21: 0 | W21: 3.5 | X21: 6.14 | Y21: 33.17 | Z21: 78.92 | AA21: 5.79 | AB21: 6.4 | AC21: 54.55 | AD21: 99.65 | AE21: 6.98 | AF21: 6.45 | AG21: 55.98 | AH21: 100.08 | AI21: 9.09 | AJ21: 6.52 | AK21: 58.58 | AL21: 103.68 | AM21: 4 | AN21: 2 | AO21: 3 | AP21: 2 | AQ21: 0
A22: 30/11/2005 | B22: 2.96 | C22: 5.97 | D22: 21.56 | E22: 67.75 | F22: 5.09 | G22: 6.12 | H22: 31.41 | I22: 78.11 | J22: 7.23 | K22: 6.18 | L22: 34.18 | M22: 81.78 | N22: 8.76 | O22: 6.33 | P22: 46.89 | Q22: 95.19 | R22: 11 | S22: 5 | T22: 3 | U22: 3 | V22: 0 | W22: 3.26 | X22: 6.09 | Y22: 33.53 | Z22: 79.9 | AA22: 5.49 | AB22: 6.32 | AC22: 51.7 | AD22: 98.4 | AE22: 6.91 | AF22: 6.4 | AG22: 56.28 | AH22: 103.88 | AI22: 9.05 | AJ22: 6.44 | AK22: 57.53 | AL22: 105.83 | AM22: 6 | AN22: 2 | AO22: 3 | AP22: 2 | AQ22: 0
A23: 31/12/2005 | B23: 3.1 | C23: 5.88 | D23: 21.49 | E23: 67.26 | F23: 5.09 | G23: 5.95 | H23: 27.28 | I23: 73.28 | J23: 7.21 | K23: 6 | L23: 31.32 | M23: 77.52 | N23: 9.09 | O23: 6.1 | P23: 41.07 | Q23: 90.07 | R23: 12 | S23: 5 | T23: 3 | U23: 4 | V23: 0 | W23: 3.26 | X23: 6.01 | Y23: 33.92 | Z23: 79.87 | AA23: 5.48 | AB23: 6.17 | AC23: 49.21 | AD23: 95.21 | AE23: 6.88 | AF23: 6.23 | AG23: 53.54 | AH23: 99.74 | AI23: 9 | AJ23: 6.25 | AK23: 55.62 | AL23: 104.62 | AM23: 6 | AN23: 2 | AO23: 3 | AP23: 2 | AQ23: 0
A24: 31/01/2006 | B24: 2.84 | C24: 5.88 | D24: 16.39 | E24: 59.84 | F24: 4.95 | G24: 6.04 | H24: 29.32 | I24: 74.62 | J24: 7.36 | K24: 6.14 | L24: 35.64 | M24: 80.34 | N24: 9.04 | O24: 6.24 | P24: 42.48 | Q24: 88.68 | R24: 12 | S24: 4 | T24: 3 | U24: 4 | V24: 0 | W24: 3.26 | X24: 6.08 | Y24: 36.36 | Z24: 80.11 | AA24: 5.48 | AB24: 6.26 | AC24: 51.75 | AD24: 97.05 | AE24: 6.85 | AF24: 6.35 | AG24: 56.03 | AH24: 100.73 | AI24: 8.95 | AJ24: 6.44 | AK24: 62.32 | AL24: 108.52 | AM24: 6 | AN24: 2 | AO24: 3 | AP24: 2 | AQ24: 0
A25: 28/02/2006 | B25: 3.32 | C25: 5.9 | D25: 21.36 | E25: 64.35 | F25: 5.15 | G25: 6.03 | H25: 31.93 | I25: 77.13 | J25: 6.68 | K25: 6.11 | L25: 36.67 | M25: 82.47 | N25: 8.6 | O25: 6.27 | P25: 52.04 | Q25: 98.04 | R25: 12 | S25: 6 | T25: 4 | U25: 4 | V25: 0 | W25: 3.19 | X25: 6.04 | Y25: 34.74 | Z25: 77.93 | AA25: 5.07 | AB25: 6.2 | AC25: 48.19 | AD25: 93.39 | AE25: 6.66 | AF25: 6.25 | AG25: 51.19 | AH25: 96.99 | AI25: 9.19 | AJ25: 6.39 | AK25: 64.12 | AL25: 110.12 | AM25: 6 | AN25: 2 | AO25: 2 | AP25: 2 | AQ25: 0
A26: 31/03/2006 | B26: 3.59 | C26: 6 | D26: 21.48 | E26: 65.12 | F26: 5.13 | G26: 6.11 | H26: 29.26 | I26: 73.76 | J26: 6.72 | K26: 6.2 | L26: 36.09 | M26: 79.79 | N26: 8.9 | O26: 6.31 | P26: 45.3 | Q26: 89.3 | R26: 12 | S26: 6 | T26: 4 | U26: 5 | V26: 0 | W26: 3.26 | X26: 6.13 | Y26: 34.11 | Z26: 77.93 | AA26: 4.96 | AB26: 6.27 | AC26: 45.37 | AD26: 89.87 | AE26: 6.63 | AF26: 6.35 | AG26: 51.2 | AH26: 94.9 | AI26: 9.12 | AJ26: 6.49 | AK26: 63.25 | AL26: 107.25 | AM26: 7 | AN26: 2 | AO26: 2 | AP26: 2 | AQ26: 0
A27: 30/04/2006 | B27: 3.58 | C27: 6.34 | D27: 24.29 | E27: 70.24 | F27: 5.21 | G27: 6.45 | H27: 32.6 | I27: 77.6 | J27: 6.79 | K27: 6.52 | L27: 38.92 | M27: 82.52 | N27: 8.96 | O27: 6.63 | P27: 47.67 | Q27: 92.67 | R27: 11 | S27: 7 | T27: 3 | U27: 6 | V27: 0 | W27: 3.34 | X27: 6.44 | Y27: 34.11 | Z27: 80.22 | AA27: 5.35 | AB27: 6.63 | AC27: 51.38 | AD27: 96.38 | AE27: 6.85 | AF27: 6.74 | AG27: 61 | AH27: 104.6 | AI27: 9.22 | AJ27: 6.88 | AK27: 72.66 | AL27: 117.66 | AM27: 7 | AN27: 2 | AO27: 3 | AP27: 3 | AQ27: 0
A28: 31/05/2006 | B28: 3.69 | C28: 6.38 | D28: 24.8 | E28: 68.31 | F28: 5.14 | G28: 6.44 | H28: 28.27 | I28: 73.77 | J28: 6.62 | K28: 6.5 | L28: 33.96 | M28: 79.46 | N28: 8.78 | O28: 6.63 | P28: 46.26 | Q28: 90.26 | R28: 11 | S28: 8 | T28: 3 | U28: 5 | V28: 0 | W28: 3.25 | X28: 6.49 | Y28: 35.07 | Z28: 78.75 | AA28: 4.9 | AB28: 6.62 | AC28: 46.01 | AD28: 91.51 | AE28: 6.67 | AF28: 6.69 | AG28: 52.03 | AH28: 97.53 | AI28: 8.97 | AJ28: 6.77 | AK28: 60.48 | AL28: 104.48 | AM28: 7 | AN28: 2 | AO28: 2 | AP28: 2 | AQ28: 0
A29: 30/06/2006 | B29: 3.68 | C29: 6.49 | D29: 25.04 | E29: 70.73 | F29: 5.1 | G29: 6.55 | H29: 29.02 | I29: 76.72 | J29: 6.5 | K29: 6.62 | L29: 36.72 | M29: 84.62 | N29: 8.36 | O29: 6.81 | P29: 55.69 | Q29: 102.69 | R29: 12 | S29: 7 | T29: 3 | U29: 4 | V29: 0 | W29: 3.34 | X29: 6.62 | Y29: 37.89 | Z29: 83.78 | AA29: 5.32 | AB29: 6.78 | AC29: 52.04 | AD29: 99.74 | AE29: 6.86 | AF29: 6.84 | AG29: 58.63 | AH29: 106.53 | AI29: 9.16 | AJ29: 6.95 | AK29: 69.64 | AL29: 116.64 | AM29: 7 | AN29: 2 | AO29: 3 | AP29: 3 | AQ29: 0
A30: 31/07/2006 | B30: 3.67 | C30: 6.66 | D30: 24.2 | E30: 69.66 | F30: 5.07 | G30: 6.71 | H30: 30.09 | I30: 78.69 | J30: 6.48 | K30: 6.78 | L30: 41.06 | M30: 92.06 | N30: 8.3 | O30: 6.94 | P30: 61.2 | Q30: 109.7 | R30: 12 | S30: 7 | T30: 4 | U30: 3 | V30: 0 | W30: 3.39 | X30: 6.82 | Y30: 40.01 | Z30: 85.73 | AA30: 4.86 | AB30: 6.93 | AC30: 51.97 | AD30: 100.57 | AE30: 6.73 | AF30: 6.97 | AG30: 60.09 | AH30: 111.09 | AI30: 8.82 | AJ30: 7.03 | AK30: 70.27 | AL30: 118.77 | AM30: 6 | AN30: 3 | AO30: 1 | AP30: 2 | AQ30: 0
A31: 31/08/2006 | B31: 3.72 | C31: 6.52 | D31: 25.03 | E31: 72.36 | F31: 5.04 | G31: 6.54 | H31: 30.9 | I31: 80.2 | J31: 6.47 | K31: 6.61 | L31: 39.52 | M31: 89.82 | N31: 8.24 | O31: 6.76 | P31: 59.88 | Q31: 110.28 | R31: 10 | S31: 7 | T31: 4 | U31: 3 | V31: 0 | W31: 3.44 | X31: 6.7 | Y31: 42.25 | Z31: 89.86 | AA31: 5.21 | AB31: 6.81 | AC31: 57.58 | AD31: 106.88 | AE31: 6.65 | AF31: 6.84 | AG31: 63.26 | AH31: 113.56 | AI31: 8.56 | AJ31: 6.8 | AK31: 63.47 | AL31: 113.87 | AM31: 7 | AN31: 3 | AO31: 2 | AP31: 2 | AQ31: 0
A32: 30/09/2006 | B32: 3.78 | C32: 6.43 | D32: 22.8 | E32: 67.08 | F32: 5.01 | G32: 6.43 | H32: 28.69 | I32: 75.29 | J32: 6.54 | K32: 6.47 | L32: 38.83 | M32: 87.63 | N32: 8.51 | O32: 6.53 | P32: 51.07 | Q32: 101.97 | R32: 10 | S32: 9 | T32: 6 | U32: 4 | V32: 0 | W32: 3.43 | X32: 6.64 | Y32: 43.58 | Z32: 88.2 | AA32: 5.19 | AB32: 6.73 | AC32: 58.51 | AD32: 105.11 | AE32: 6.64 | AF32: 6.73 | AG32: 65.38 | AH32: 114.18 | AI32: 8.5 | AJ32: 6.68 | AK32: 66.23 | AL32: 117.13 | AM32: 7 | AN32: 3 | AO32: 2 | AP32: 2 | AQ32: 0
A33: 31/10/2006 | B33: 3.54 | C33: 6.67 | D33: 22.77 | E33: 64.45 | F33: 4.97 | G33: 6.68 | H33: 32.41 | I33: 78.41 | J33: 6.63 | K33: 6.7 | L33: 43.38 | M33: 92.18 | N33: 8.65 | O33: 6.7 | P33: 52.19 | Q33: 103.89 | R33: 10 | S33: 8 | T33: 5 | U33: 5 | V33: 0 | W33: 3.72 | X33: 6.9 | Y33: 45.46 | Z33: 87.51 | AA33: 5.2 | AB33: 6.97 | AC33: 60.71 | AD33: 106.71 | AE33: 6.81 | AF33: 6.99 | AG33: 71.51 | AH33: 120.31 | AI33: 8.92 | AJ33: 6.97 | AK33: 79.03 | AL33: 130.73 | AM33: 5 | AN33: 4 | AO33: 2 | AP33: 3 | AQ33: 0
A34: 30/11/2006 | B34: 3.54 | C34: 6.58 | D34: 20.15 | E34: 63.07 | F34: 4.96 | G34: 6.59 | H34: 29.58 | I34: 75.68 | J34: 6.65 | K34: 6.62 | L34: 42.53 | M34: 90.53 | N34: 8.6 | O34: 6.64 | P34: 53.12 | Q34: 104.72 | R34: 9 | S34: 8 | T34: 5 | U34: 4 | V34: 0 | W34: 3.76 | X34: 6.85 | Y34: 46.41 | Z34: 89.77 | AA34: 5.08 | AB34: 6.93 | AC34: 63.54 | AD34: 109.64 | AE34: 6.51 | AF34: 6.98 | AG34: 78.58 | AH34: 126.58 | AI34: 8.36 | AJ34: 6.95 | AK34: 84.38 | AL34: 135.98 | AM34: 5 | AN34: 5 | AO34: 2 | AP34: 2 | AQ34: 0
A35: 31/12/2006 | B35: 3.74 | C35: 6.75 | D35: 19.59 | E35: 64 | F35: 4.88 | G35: 6.77 | H35: 28.44 | I35: 74.24 | J35: 6.68 | K35: 6.83 | L35: 39.5 | M35: 85.5 | N35: 8.62 | O35: 6.87 | P35: 48 | Q35: 98.8 | R35: 9 | S35: 8 | T35: 4 | U35: 5 | V35: 0 | W35: 3.74 | X35: 7.02 | Y35: 46.13 | Z35: 90.98 | AA35: 5.05 | AB35: 7.08 | AC35: 58.61 | AD35: 104.41 | AE35: 6.5 | AF35: 7.11 | AG35: 66.53 | AH35: 112.53 | AI35: 8.3 | AJ35: 7.14 | AK35: 74.89 | AL35: 125.69 | AM35: 5 | AN35: 5 | AO35: 2 | AP35: 2 | AQ35: 0
A36: 31/01/2007 | B36: 3.59 | C36: 6.75 | D36: 21.76 | E36: 64.57 | F36: 4.79 | G36: 6.79 | H36: 29.55 | I36: 73.25 | J36: 6.65 | K36: 6.86 | L36: 39.68 | M36: 83.98 | N36: 8.39 | O36: 6.88 | P36: 46.56 | Q36: 94.36 | R36: 10 | S36: 8 | T36: 4 | U36: 4 | V36: 0 | W36: 3.71 | X36: 7.07 | Y36: 52.81 | Z36: 96.15 | AA36: 5.04 | AB36: 7.12 | AC36: 62.65 | AD36: 106.35 | AE36: 6.6 | AF36: 7.2 | AG36: 73.88 | AH36: 118.18 | AI36: 8.31 | AJ36: 7.32 | AK36: 90.79 | AL36: 138.59 | AM36: 5 | AN36: 5 | AO36: 2 | AP36: 3 | AQ36: 0
A37: 28/02/2007 | B37: 3.69 | C37: 6.6 | D37: 20.4 | E37: 64.95 | F37: 4.93 | G37: 6.6 | H37: 26.74 | I37: 73.94 | J37: 6.56 | K37: 6.63 | L37: 36.85 | M37: 84.35 | N37: 7.98 | O37: 6.7 | P37: 50.15 | Q37: 101.55 | R37: 9 | S37: 8 | T37: 6 | U37: 3 | V37: 0 | W37: 3.68 | X37: 6.88 | Y37: 47.8 | Z37: 92.81 | AA37: 4.99 | AB37: 6.89 | AC37: 55.33 | AD37: 102.53 | AE37: 6.47 | AF37: 6.91 | AG37: 64.25 | AH37: 111.75 | AI37: 8.16 | AJ37: 6.94 | AK37: 74.05 | AL37: 125.45 | AM37: 5 | AN37: 6 | AO37: 1 | AP37: 2 | AQ37: 0
A38: 31/03/2007 | B38: 3.72 | C38: 6.8 | D38: 17.55 | E38: 59.14 | F38: 4.92 | G38: 6.81 | H38: 26.78 | I38: 70.38 | J38: 6.67 | K38: 6.84 | L38: 36.87 | M38: 105.47 | N38: 9.23 | O38: 6.88 | P38: 48.76 | Q38: 100.26 | R38: 10 | S38: 8 | T38: 6 | U38: 6 | V38: 0 | W38: 3.44 | X38: 7.09 | Y38: 45.75 | Z38: 87.82 | AA38: 4.58 | AB38: 7.1 | AC38: 56.08 | AD38: 99.68 | AE38: 6.84 | AF38: 7.13 | AG38: 65.83 | AH38: 134.43 | AI38: 8.21 | AJ38: 7.16 | AK38: 76.08 | AL38: 127.58 | AM38: 6 | AN38: 5 | AO38: 0 | AP38: 2 | AQ38: 0
A39: 30/04/2007 | B39: 3.68 | C39: 6.72 | D39: 18.51 | E39: 65.16 | F39: 4.85 | G39: 6.74 | H39: 25.49 | I39: 71.79 | J39: 6.59 | K39: 6.8 | L39: 36.97 | M39: 102.07 | N39: 9.26 | O39: 6.86 | P39: 48.2 | Q39: 97.8 | R39: 10 | S39: 9 | T39: 5 | U39: 4 | V39: 0 | W39: 3.39 | X39: 7.01 | Y39: 47.21 | Z39: 94.34 | AA39: 4.33 | AB39: 7.03 | AC39: 53.78 | AD39: 100.08 | AE39: 5.28 | AF39: 7.02 | AG39: 58.16 | AH39: 123.26 | AI39: 8.13 | AJ39: 7.06 | AK39: 68.59 | AL39: 118.19 | AM39: 6 | AN39: 5 | AO39: 0 | AP39: 1 | AQ39: 0
A40: 31/05/2007 | B40: 3.59 | C40: 6.87 | D40: 19.05 | E40: 67.46 | F40: 4.92 | G40: 6.91 | H40: 26.32 | I40: 76.42 | J40: 6.78 | K40: 6.97 | L40: 37.87 | M40: 118.97 | N40: 9.16 | O40: 6.99 | P40: 45.42 | Q40: 97.42 | R40: 10 | S40: 7 | T40: 5 | U40: 5 | V40: 0 | W40: 3.36 | X40: 7.14 | Y40: 45.33 | Z40: 94.2 | AA40: 4.55 | AB40: 7.18 | AC40: 52.92 | AD40: 103.02 | AE40: 7.11 | AF40: 7.2 | AG40: 60.48 | AH40: 141.58 | AI40: 8.43 | AJ40: 7.22 | AK40: 68.77 | AL40: 120.77 | AM40: 7 | AN40: 4 | AO40: 0 | AP40: 3 | AQ40: 0
A41: 30/06/2007 | B41: 3.7 | C41: 7.18 | D41: 24.02 | E41: 73.56 | F41: 4.94 | G41: 7.24 | H41: 27.48 | I41: 83.08 | J41: 6.92 | K41: 7.29 | L41: 37.8 | M41: 150.4 | N41: 9.03 | O41: 7.28 | P41: 42.45 | Q41: 102.35 | R41: 9 | S41: 7 | T41: 5 | U41: 6 | V41: 0 | W41: 3.55 | X41: 7.4 | Y41: 45.37 | Z41: 95.3 | AA41: 4.94 | AB41: 7.43 | AC41: 46.78 | AD41: 102.38 | AE41: 6.65 | AF41: 7.47 | AG41: 55.96 | AH41: 168.56 | AI41: 8.3 | AJ41: 7.55 | AK41: 69.83 | AL41: 129.73 | AM41: 7 | AN41: 5 | AO41: 1 | AP41: 2 | AQ41: 0
A42: 31/07/2007 | B42: 3.47 | C42: 7.19 | D42: 20.18 | E42: 79.22 | F42: 4.76 | G42: 7.24 | H42: 28.72 | I42: 94.92 | J42: 6.69 | K42: 7.31 | L42: 44.82 | M42: 152.92 | N42: 9.06 | O42: 7.31 | P42: 54.37 | Q42: 128.27 | R42: 13 | S42: 7 | T42: 6 | U42: 4 | V42: 0 | W42: 3.53 | X42: 7.43 | Y42: 44.37 | Z42: 103.85 | AA42: 4.91 | AB42: 7.41 | AC42: 45.41 | AD42: 111.61 | AE42: 6.65 | AF42: 7.48 | AG42: 61.02 | AH42: 169.12 | AI42: 8.23 | AJ42: 7.63 | AK42: 85.79 | AL42: 159.69 | AM42: 7 | AN42: 5 | AO42: 1 | AP42: 2 | AQ42: 0
A43: 31/08/2007 | B43: 3.59 | C43: 7.09 | D43: 20.21 | E43: 88.58 | F43: 4.79 | G43: 7.14 | H43: 30.44 | I43: 100.64 | J43: 6.84 | K43: 7.22 | L43: 48.25 | M43: 143.85 | N43: 8.92 | O43: 7.25 | P43: 60.43 | Q43: 133.13 | R43: 11 | S43: 7 | T43: 6 | U43: 5 | V43: 0 | W43: 3.58 | X43: 7.32 | Y43: 43.28 | Z43: 112.07 | AA43: 4.89 | AB43: 7.35 | AC43: 51.05 | AD43: 121.25 | AE43: 6.65 | AF43: 7.45 | AG43: 70.85 | AH43: 166.45 | AI43: 8.16 | AJ43: 7.59 | AK43: 94.2 | AL43: 166.9 | AM43: 6 | AN43: 5 | AO43: 1 | AP43: 2 | AQ43: 0
A44: 30/09/2007 | B44: 3.58 | C44: 7.32 | D44: 29.63 | E44: 87.81 | F44: 4.78 | G44: 7.39 | H44: 41.04 | I44: 98.44 | J44: 6.79 | K44: 7.47 | L44: 57.72 | M44: 168.82 | N44: 8.86 | O44: 7.49 | P44: 68.83 | Q44: 134.83 | R44: 11 | S44: 6 | T44: 6 | U44: 4 | V44: 0 | W44: 3.55 | X44: 7.69 | Y44: 66 | Z44: 124.85 | AA44: 4.84 | AB44: 8.02 | AC44: 104.8 | AD44: 162.2 | AE44: 6.42 | AF44: 8.09 | AG44: 119.85 | AH44: 230.95 | AI44: 7.66 | AJ44: 7.88 | AK44: 107.61 | AL44: 173.61 | AM44: 6 | AN44: 5 | AO44: 2 | AP44: 0 | AQ44: 0
A45: 31/10/2007 | B45: 3.65 | C45: 7.62 | D45: 26.46 | E45: 93.38 | F45: 4.8 | G45: 7.62 | H45: 39.16 | I45: 106.56 | J45: 6.84 | K45: 7.59 | L45: 51.71 | M45: 180.31 | N45: 8.81 | O45: 7.55 | P45: 63.45 | Q45: 141.75 | R45: 10 | S45: 6 | T45: 6 | U45: 5 | V45: 0 | W45: 3.52 | X45: 7.84 | Y45: 48.91 | Z45: 116.25 | AA45: 4.81 | AB45: 7.89 | AC45: 66.2 | AD45: 133.6 | AE45: 6.4 | AF45: 7.91 | AG45: 84.01 | AH45: 212.61 | AI45: 7.58 | AJ45: 7.91 | AK45: 98.64 | AL45: 176.94 | AM45: 8 | AN45: 3 | AO45: 2 | AP45: 0 | AQ45: 0
A46: 30/11/2007 | B46: 3.65 | C46: 8.01 | D46: 52.05 | E46: 154.12 | F46: 4.78 | G46: 8.01 | H46: 66.74 | I46: 168.44 | J46: 6.8 | K46: 7.97 | L46: 82.43 | M46: 219.03 | N46: 8.75 | O46: 7.95 | P46: 100.32 | Q46: 195.12 | R46: 9 | S46: 6 | T46: 6 | U46: 3 | V46: 0 | W46: 3.39 | X46: 8.2 | Y46: 70.65 | Z46: 173.09 | AA46: 4.77 | AB46: 8.49 | AC46: 115.45 | AD46: 217.15 | AE46: 6.39 | AF46: 8.43 | AG46: 128.05 | AH46: 264.65 | AI46: 7.5 | AJ46: 8.19 | AK46: 124.98 | AL46: 219.78 | AM46: 9 | AN46: 3 | AO46: 2 | AP46: 0 | AQ46: 0
A47: 31/12/2007 | B47: 3.56 | C47: 8.23 | D47: 63.28 | E47: 134.08 | F47: 4.65 | G47: 8.26 | H47: 75.28 | I47: 155.48 | J47: 6.73 | K47: 8.38 | L47: 102.7 | M47: 259.3 | N47: 8.87 | O47: 8.43 | P47: 126.42 | Q47: 210.82 | R47: 9 | S47: 4 | T47: 5 | U47: 2 | V47: 0 | W47: 3.48 | X47: 8.4 | Y47: 79.58 | Z47: 150.71 | AA47: 4.88 | AB47: 8.69 | AC47: 118.33 | AD47: 198.53 | AE47: 6.22 | AF47: 8.62 | AG47: 127.1 | AH47: 283.7 | AI47: 7.37 | AJ47: 8.39 | AK47: 122.31 | AL47: 206.71 | AM47: 9 | AN47: 3 | AO47: 2 | AP47: 0 | AQ47: 0
A48: 31/01/2008 | B48: 3.49 | C48: 8.34 | D48: 93.71 | E48: 173.04 | F48: 4.81 | G48: 8.37 | H48: 107.72 | I48: 188.72 | J48: 6.8 | K48: 8.4 | L48: 126.39 | M48: 261.99 | N48: 8.63 | O48: 8.49 | P48: 152.28 | Q48: 240.48 | R48: 10 | S48: 5 | T48: 7 | U48: 2 | V48: 0 | W48: 3.49 | X48: 8.45 | Y48: 104.27 | Z48: 183.82 | AA48: 4.86 | AB48: 8.78 | AC48: 148.7 | AD48: 229.7 | AE48: 6.17 | AF48: 8.65 | AG48: 151.34 | AH48: 286.94 | AI48: 7.29 | AJ48: 8.36 | AK48: 138.97 | AL48: 227.17 | AM48: 9 | AN48: 4 | AO48: 2 | AP48: 0 | AQ48: 0
A49: 29/02/2008 | B49: 3.53 | C49: 8.83 | D49: 104.58 | E49: 214.42 | F49: 4.76 | G49: 8.92 | H49: 123.49 | I49: 236.39 | J49: 6.8 | K49: 8.99 | L49: 148.4 | M49: 320.5 | N49: 8.6 | O49: 9.13 | P49: 178.05 | Q49: 291.25 | R49: 10 | S49: 6 | T49: 5 | U49: 2 | V49: 0 | W49: 3.32 | X49: 8.93 | Y49: 114.47 | Z49: 224.52 | AA49: 4.7 | AB49: 9.42 | AC49: 173.01 | AD49: 285.91 | AE49: 6.33 | AF49: 9.42 | AG49: 191.42 | AH49: 363.52 | AI49: 7.27 | AJ49: 9.19 | AK49: 184.14 | AL49: 297.34 | AM49: 9 | AN49: 3 | AO49: 2 | AP49: 0 | AQ49: 0
A50: 31/03/2008 | B50: 3.38 | C50: 8.42 | D50: 106.86 | E50: 229.44 | F50: 4.78 | G50: 8.51 | H50: 120.92 | I50: 242.62 | J50: 6.78 | K50: 8.7 | L50: 150.28 | M50: 262.48 | N50: 8.59 | O50: 8.69 | P50: 159.87 | Q50: 263.97 | R50: 10 | S50: 5 | T50: 4 | U50: 2 | V50: 0 | W50: 3.24 | X50: 8.73 | Y50: 137.31 | Z50: 260.54 | AA50: 4.33 | AB50: 9.32 | AC50: 201.71 | AD50: 323.41 | AE50: 5.21 | AF50: 9.55 | AG50: 234.94 | AH50: 347.14 | AI50: 7.13 | AJ50: 8.91 | AK50: 181.31 | AL50: 285.41 | AM50: 8 | AN50: 2 | AO50: 1 | AP50: 0 | AQ50: 0
A51: 30/04/2008 | B51: 3.42 | C51: 8.53 | D51: 88.8 | E51: 216.01 | F51: 4.82 | G51: 8.61 | H51: 110.86 | I51: 235.76 | J51: 6.74 | K51: 8.78 | L51: 138.7 | M51: 250.2 | N51: 8.47 | O51: 8.93 | P51: 166.99 | Q51: 264.39 | R51: 12 | S51: 5 | T51: 5 | U51: 2 | V51: 0 | W51: 3.35 | X51: 8.96 | Y51: 130.91 | Z51: 259.03 | AA51: 4.7 | AB51: 9.4 | AC51: 189.8 | AD51: 314.7 | AE51: 6.57 | AF51: 9.43 | AG51: 203.76 | AH51: 315.26 | AI51: 7.59 | AJ51: 9.36 | AK51: 210.35 | AL51: 307.75 | AM51: 9 | AN51: 3 | AO51: 2 | AP51: 1 | AQ51: 0
A52: 31/05/2008 | B52: 3.42 | C52: 8.6 | D52: 82 | E52: 187.25 | F52: 4.79 | G52: 8.67 | H52: 107.88 | I52: 208.38 | J52: 6.69 | K52: 8.77 | L52: 132.91 | M52: 220.71 | N52: 8.39 | O52: 8.78 | P52: 148.5 | Q52: 225 | R52: 13 | S52: 5 | T52: 6 | U52: 2 | V52: 0 | W52: 3.5 | X52: 9.11 | Y52: 131.69 | Z52: 238.03 | AA52: 4.8 | AB52: 9.38 | AC52: 178.69 | AD52: 279.19 | AE52: 6.34 | AF52: 9.3 | AG52: 186.43 | AH52: 274.23 | AI52: 7.5 | AJ52: 9.28 | AK52: 198.77 | AL52: 275.27 | AM52: 8 | AN52: 4 | AO52: 2 | AP52: 1 | AQ52: 0
A53: 30/06/2008 | B53: 3.32 | C53: 8.87 | D53: 95.95 | E53: 216.27 | F53: 4.82 | G53: 8.89 | H53: 117.47 | I53: 233.37 | J53: 6.69 | K53: 8.97 | L53: 140.82 | M53: 250.12 | N53: 8.38 | O53: 9.1 | P53: 168.18 | Q53: 264.98 | R53: 14 | S53: 9 | T53: 8 | U53: 4 | V53: 0 | W53: 3.98 | X53: 9.46 | Y53: 154.46 | Z53: 276.1 | AA53: 4.98 | AB53: 9.59 | AC53: 186.91 | AD53: 302.81 | AE53: 6.17 | AF53: 9.72 | AG53: 215.36 | AH53: 324.66 | AI53: 7.54 | AJ53: 10.1 | AK53: 268.45 | AL53: 365.25 | AM53: 7 | AN53: 6 | AO53: 4 | AP53: 0 | AQ53: 0
A54: 31/07/2008 | B54: 3.28 | C54: 8.31 | D54: 101.79 | E54: 215.15 | F54: 4.82 | G54: 8.46 | H54: 123.85 | I54: 230.95 | J54: 6.68 | K54: 8.61 | L54: 143.3 | M54: 241.5 | N54: 8.32 | O54: 8.71 | P54: 156.2 | Q54: 248.9 | R54: 14 | S54: 10 | T54: 7 | U54: 4 | V54: 0 | W54: 3.95 | X54: 8.91 | Y54: 159.93 | Z54: 274.53 | AA54: 4.94 | AB54: 9.05 | AC54: 183.03 | AD54: 290.13 | AE54: 6.41 | AF54: 9.26 | AG54: 207.76 | AH54: 305.96 | AI54: 9.43 | AJ54: 9.22 | AK54: 207.43 | AL54: 300.13 | AM54: 8 | AN54: 4 | AO54: 4 | AP54: 1 | AQ54: 1
A55: 31/08/2008 | B55: 3.25 | C55: 7.7 | D55: 94.29 | E55: 204.75 | F55: 4.79 | G55: 7.84 | H55: 113.52 | I55: 215.02 | J55: 6.65 | K55: 8.06 | L55: 141.79 | M55: 234.89 | N55: 8.27 | O55: 8.25 | P55: 166.23 | Q55: 249.33 | R55: 15 | S55: 11 | T55: 7 | U55: 4 | V55: 0 | W55: 3.97 | X55: 8.48 | Y55: 171.07 | Z55: 283.07 | AA55: 4.9 | AB55: 8.61 | AC55: 190.77 | AD55: 292.27 | AE55: 6.42 | AF55: 8.8 | AG55: 215.97 | AH55: 309.07 | AI55: 9.39 | AJ55: 8.78 | AK55: 219.2 | AL55: 302.3 | AM55: 7 | AN55: 4 | AO55: 4 | AP55: 1 | AQ55: 1
A56: 30/09/2008 | B56: 3.18 | C56: 7.66 | D56: 135.94 | E56: 256.53 | F56: 4.87 | G56: 7.82 | H56: 153.49 | I56: 263.19 | J56: 6.68 | K56: 8.08 | L56: 181.91 | M56: 279.31 | N56: 8.2 | O56: 8.46 | P56: 221.04 | Q56: 306.54 | R56: 13 | S56: 10 | T56: 8 | U56: 3 | V56: 0 | W56: 3.93 | X56: 8.35 | Y56: 204.01 | Z56: 325.95 | AA56: 4.82 | AB56: 8.64 | AC56: 235.9 | AD56: 345.6 | AE56: 6.31 | AF56: 8.98 | AG56: 272 | AH56: 369.4 | AI56: 9.43 | AJ56: 9.05 | AK56: 279.64 | AL56: 365.14 | AM56: 7 | AN56: 4 | AO56: 3 | AP56: 1 | AQ56: 1
A57: 31/10/2008 | B57: 3.18 | C57: 8.59 | D57: 307.56 | E57: 409.68 | F57: 4.8 | G57: 9.02 | H57: 330.12 | I57: 430.72 | J57: 6.64 | K57: 9.26 | L57: 348.51 | M57: 436.91 | N57: 8.14 | O57: 9.38 | P57: 355.36 | Q57: 420.96 | R57: 14 | S57: 10 | T57: 8 | U57: 3 | V57: 0 | W57: 3.81 | X57: 9.75 | Y57: 421.64 | Z57: 526.34 | AA57: 4.9 | AB57: 10.63 | AC57: 491.02 | AD57: 591.62 | AE57: 6.57 | AF57: 9.62 | AG57: 385.28 | AH57: 473.68 | AI57: 9.29 | AJ57: 10.93 | AK57: 510.09 | AL57: 575.69 | AM57: 7 | AN57: 3 | AO57: 4 | AP57: 1 | AQ57: 1
A58: 30/11/2008 | B58: 3.16 | C58: 6.99 | D58: 252.71 | E58: 341 | F58: 4.77 | G58: 7.73 | H58: 294.02 | I58: 384.22 | J58: 6.61 | K58: 8.45 | L58: 348.36 | M58: 428.06 | N58: 8.08 | O58: 9.13 | P58: 403.65 | Q58: 453.45 | R58: 16 | S58: 11 | T58: 7 | U58: 3 | V58: 0 | W58: 3.8 | X58: 11.58 | Y58: 701.56 | Z58: 800.15 | AA58: 4.92 | AB58: 13.15 | AC58: 836.49 | AD58: 926.69 | AE58: 6.69 | AF58: 10.59 | AG58: 562.33 | AH58: 642.03 | AI58: 9.25 | AJ58: 12.85 | AK58: 775.51 | AL58: 825.31 | AM58: 5 | AN58: 2 | AO58: 4 | AP58: 1 | AQ58: 1
A59: 31/12/2008 | B59: 3.15 | C59: 6.59 | D59: 268.16 | E59: 351.9 | F59: 4.76 | G59: 7.36 | H59: 310.88 | I59: 394.48 | J59: 6.59 | K59: 8 | L59: 369.64 | M59: 437.44 | N59: 8.02 | O59: 8.38 | P59: 405.03 | Q59: 438.83 | R59: 15 | S59: 10 | T59: 7 | U59: 3 | V59: 0 | W59: 3.78 | X59: 11.11 | Y59: 710.17 | Z59: 803.57 | AA59: 4.98 | AB59: 12.31 | AC59: 805.57 | AD59: 889.17 | AE59: 6.73 | AF59: 9.91 | AG59: 560.43 | AH59: 628.23 | AI59: 9.19 | AJ59: 13.26 | AK59: 892.64 | AL59: 926.44 | AM59: 4 | AN59: 2 | AO59: 4 | AP59: 1 | AQ59: 1
A60: 31/01/2009 | B60: 3.1 | C60: 6.19 | D60: 271.28 | E60: 328.99 | F60: 4.78 | G60: 6.74 | H60: 286.04 | I60: 338.64 | J60: 6.59 | K60: 7.15 | L60: 295.6 | M60: 326.6 | N60: 7.96 | O60: 7.83 | P60: 341.29 | Q60: 372.89 | R60: 14 | S60: 10 | T60: 7 | U60: 3 | V60: 0 | W60: 3.73 | X60: 8.89 | Y60: 536.22 | Z60: 598.88 | AA60: 4.85 | AB60: 9.77 | AC60: 588.67 | AD60: 641.27 | AE60: 6.69 | AF60: 8.82 | AG60: 462.45 | AH60: 493.45 | AI60: 9.13 | AJ60: 11.37 | AK60: 695.24 | AL60: 726.84 | AM60: 5 | AN60: 3 | AO60: 4 | AP60: 1 | AQ60: 1
A61: 28/02/2009 | B61: 3.1 | C61: 6.38 | D61: 267.42 | E61: 313.42 | F61: 4.8 | G61: 7.26 | H61: 304.64 | I61: 346.34 | J61: 6.58 | K61: 7.97 | L61: 337.68 | M61: 378.78 | N61: 8.62 | O61: 9.23 | P61: 432.94 | Q61: 483.14 | R61: 15 | S61: 11 | T61: 8 | U61: 4 | V61: 0 | W61: 3.64 | X61: 8.83 | Y61: 507.79 | Z61: 558.33 | AA61: 4.82 | AB61: 9.32 | AC61: 510.67 | AD61: 552.37 | AE61: 6.7 | AF61: 9.01 | AG61: 441.32 | AH61: 482.42 | AI61: 9.08 | AJ61: 10.21 | AK61: 530.89 | AL61: 581.09 | AM61: 7 | AN61: 2 | AO61: 4 | AP61: 1 | AQ61: 1
A62: 31/03/2009 | B62: 3.27 | C62: 7.06 | D62: 320.55 | E62: 366.17 | F62: 4.86 | G62: 7.82 | H62: 343.76 | I62: 386.66 | J62: 6.6 | K62: 8.34 | L62: 362.65 | M62: 410.25 | N62: 9.17 | O62: 9.24 | P62: 426.69 | Q62: 481.89 | R62: 13 | S62: 12 | T62: 11 | U62: 3 | V62: 0 | W62: 3.66 | X62: 9.7 | Y62: 579.7 | Z62: 630.69 | AA62: 4.8 | AB62: 10.2 | AC62: 581.35 | AD62: 624.25 | AE62: 6.71 | AF62: 9.66 | AG62: 494.88 | AH62: 542.48 | AI62: 9.02 | AJ62: 11.22 | AK62: 624.24 | AL62: 679.44 | AM62: 6 | AN62: 2 | AO62: 4 | AP62: 1 | AQ62: 1
A63: 30/04/2009 | B63: 3.22 | C63: 6.35 | D63: 240.18 | E63: 290.83 | F63: 4.83 | G63: 7.18 | H63: 266.67 | I63: 315.47 | J63: 6.59 | K63: 7.69 | L63: 284.32 | M63: 329.92 | N63: 9.14 | O63: 8.5 | P63: 339.05 | Q63: 393.15 | R63: 15 | S63: 11 | T63: 10 | U63: 3 | V63: 0 | W63: 3.92 | X63: 9.24 | Y63: 523.87 | Z63: 580 | AA63: 4.87 | AB63: 9.84 | AC63: 532.27 | AD63: 581.07 | AE63: 6.49 | AF63: 9.79 | AG63: 494.01 | AH63: 539.61 | AI63: 9.51 | AJ63: 10.82 | AK63: 570.73 | AL63: 624.83 | AM63: 7 | AN63: 3 | AO63: 4 | AP63: 2 | AQ63: 1
A64: 31/05/2009 | B64: 3.19 | C64: 6.17 | D64: 187.73 | E64: 221.02 | F64: 4.82 | G64: 6.97 | H64: 201.21 | I64: 229.21 | J64: 6.58 | K64: 7.5 | L64: 212.36 | M64: 238.46 | N64: 9.1 | O64: 8.14 | P64: 241.76 | Q64: 285.86 | R64: 15 | S64: 10 | T64: 10 | U64: 3 | V64: 0 | W64: 3.88 | X64: 8.73 | Y64: 438.57 | Z64: 476.49 | AA64: 4.82 | AB64: 9.21 | AC64: 425.35 | AD64: 453.35 | AE64: 6.52 | AF64: 9.1 | AG64: 372.83 | AH64: 398.93 | AI64: 9.45 | AJ64: 9.92 | AK64: 420.22 | AL64: 464.32 | AM64: 7 | AN64: 3 | AO64: 4 | AP64: 2 | AQ64: 1
A65: 30/06/2009 | B65: 3.27 | C65: 6.58 | D65: 169.04 | E65: 202.27 | F65: 4.82 | G65: 7.24 | H65: 169.62 | I65: 202.22 | J65: 6.57 | K65: 7.61 | L65: 181.83 | M65: 219.73 | N65: 9.06 | O65: 8.02 | P65: 205.48 | Q65: 250.28 | R65: 13 | S65: 10 | T65: 10 | U65: 3 | V65: 0 | W65: 3.84 | X65: 8.5 | Y65: 356.96 | Z65: 393.7 | AA65: 4.78 | AB65: 8.88 | AC65: 333.05 | AD65: 365.65 | AE65: 6.56 | AF65: 9.16 | AG65: 337.11 | AH65: 375.01 | AI65: 9.38 | AJ65: 9.7 | AK65: 373.25 | AL65: 418.05 | AM65: 7 | AN65: 4 | AO65: 3 | AP65: 2 | AQ65: 1
A66: 31/07/2009 | B66: 3.23 | C66: 6.49 | D66: 135.2 | E66: 167.77 | F66: 4.81 | G66: 7.08 | H66: 137.83 | I66: 165.93 | J66: 6.56 | K66: 7.38 | L66: 143.19 | M66: 182.69 | N66: 9.02 | O66: 7.7 | P66: 161.75 | Q66: 209.75 | R66: 13 | S66: 11 | T66: 9 | U66: 3 | V66: 0 | W66: 3.86 | X66: 7.86 | Y66: 269.72 | Z66: 304.69 | AA66: 4.75 | AB66: 8.3 | AC66: 260.19 | AD66: 288.29 | AE66: 6.56 | AF66: 8.87 | AG66: 292.5 | AH66: 332 | AI66: 9.31 | AJ66: 8.89 | AK66: 280.3 | AL66: 328.3 | AM66: 7 | AN66: 4 | AO66: 3 | AP66: 2 | AQ66: 1
A67: 31/08/2009 | B67: 3.2 | C67: 6.64 | D67: 122.28 | E67: 169.19 | F67: 4.8 | G67: 7.13 | H67: 131.73 | I67: 183.43 | J67: 6.55 | K67: 7.41 | L67: 146.37 | M67: 205.07 | N67: 8.98 | O67: 7.7 | P67: 170.9 | Q67: 228.8 | R67: 13 | S67: 11 | T67: 9 | U67: 3 | V67: 0 | W67: 3.82 | X67: 8 | Y67: 256.25 | Z67: 305.59 | AA67: 4.71 | AB67: 8.32 | AC67: 251.28 | AD67: 302.98 | AE67: 6.6 | AF67: 8.69 | AG67: 274.45 | AH67: 333.15 | AI67: 9.25 | AJ67: 8.76 | AK67: 276.87 | AL67: 334.77 | AM67: 7 | AN67: 4 | AO67: 3 | AP67: 2 | AQ67: 1
A68: 30/09/2009 | B68: 3.18 | C68: 6.65 | D68: 119.08 | E68: 181.61 | F68: 4.79 | G68: 7.16 | H68: 132.03 | I68: 195.03 | J68: 6.54 | K68: 7.47 | L68: 147.17 | M68: 216.97 | N68: 8.93 | O68: 7.76 | P68: 170.31 | Q68: 239.81 | R68: 13 | S68: 12 | T68: 8 | U68: 3 | V68: 0 | W68: 3.74 | X68: 7.84 | Y68: 236.77 | Z68: 301.41 | AA68: 4.58 | AB68: 8.1 | AC68: 226.69 | AD68: 289.69 | AE68: 6.53 | AF68: 8.49 | AG68: 248.75 | AH68: 318.55 | AI68: 9.18 | AJ68: 8.67 | AK68: 261.59 | AL68: 331.09 | AM68: 9 | AN68: 6 | AO68: 2 | AP68: 2 | AQ68: 1
A69: 31/10/2009 | B69: 3.17 | C69: 6.84 | D69: 119.53 | E69: 181.98 | F69: 4.79 | G69: 7.29 | H69: 136.43 | I69: 198.53 | J69: 6.52 | K69: 7.63 | L69: 153.74 | M69: 216.74 | N69: 9.01 | O69: 8 | P69: 179.78 | Q69: 245.48 | R69: 13 | S69: 13 | T69: 8 | U69: 4 | V69: 1 | W69: 3.69 | X69: 7.87 | Y69: 220.44 | Z69: 284.73 | AA69: 4.6 | AB69: 8.27 | AC69: 234.35 | AD69: 296.45 | AE69: 6.62 | AF69: 8.67 | AG69: 257.91 | AH69: 320.91 | AI69: 9.11 | AJ69: 8.79 | AK69: 259.28 | AL69: 324.98 | AM69: 8 | AN69: 6 | AO69: 2 | AP69: 2 | AQ69: 1
A70: 30/11/2009 | B70: 3.19 | C70: 6.51 | D70: 121.24 | E70: 190.16 | F70: 4.78 | G70: 7.09 | H70: 140.23 | I70: 212.83 | J70: 6.47 | K70: 7.44 | L70: 160.71 | M70: 226.81 | N70: 8.96 | O70: 7.78 | P70: 187.55 | Q70: 253.55 | R70: 17 | S70: 11 | T70: 7 | U70: 4 | V70: 1 | W70: 3.65 | X70: 7.55 | Y70: 222.83 | Z70: 293.52 | AA70: 4.56 | AB70: 7.94 | AC70: 225.09 | AD70: 297.69 | AE70: 6.67 | AF70: 8.38 | AG70: 254.97 | AH70: 321.07 | AI70: 9.04 | AJ70: 8.5 | AK70: 260.32 | AL70: 326.32 | AM70: 8 | AN70: 6 | AO70: 2 | AP70: 2 | AQ70: 1
A71: 31/12/2009 | B71: 3.21 | C71: 6.61 | D71: 118.66 | E71: 194.32 | F71: 4.76 | G71: 7.11 | H71: 126.85 | I71: 194.85 | J71: 6.48 | K71: 7.48 | L71: 139.38 | M71: 196.28 | N71: 9.01 | O71: 7.72 | P71: 147.08 | Q71: 207.68 | R71: 17 | S71: 12 | T71: 6 | U71: 5 | V71: 1 | W71: 3.6 | X71: 7.32 | Y71: 189.07 | Z71: 265.95 | AA71: 4.52 | AB71: 7.63 | AC71: 178.9 | AD71: 246.9 | AE71: 6.72 | AF71: 8.05 | AG71: 196.3 | AH71: 253.2 | AI71: 8.97 | AJ71: 8.09 | AK71: 184.46 | AL71: 245.06 | AM71: 9 | AN71: 5 | AO71: 2 | AP71: 2 | AQ71: 1
A72: 31/01/2010 | B72: 3.18 | C72: 6.33 | D72: 109.76 | E72: 182.19 | F72: 4.75 | G72: 6.78 | H72: 117.52 | I72: 178.72 | J72: 6.48 | K72: 7.15 | L72: 130.59 | M72: 187.29 | N72: 8.97 | O72: 7.64 | P72: 163.34 | Q72: 225.94 | R72: 17 | S72: 12 | T72: 6 | U72: 5 | V72: 1 | W72: 3.55 | X72: 7.09 | Y72: 184.05 | Z72: 257.72 | AA72: 4.43 | AB72: 7.35 | AC72: 174.22 | AD72: 235.42 | AE72: 6.74 | AF72: 7.79 | AG72: 194.97 | AH72: 251.67 | AI72: 8.99 | AJ72: 8.09 | AK72: 208.76 | AL72: 271.36 | AM72: 10 | AN72: 5 | AO72: 2 | AP72: 3 | AQ72: 1
A73: 28/02/2010 | B73: 3.16 | C73: 6.29 | D73: 107.77 | E73: 147.44 | F73: 4.73 | G73: 6.78 | H73: 118.12 | I73: 165.62 | J73: 6.48 | K73: 7.17 | L73: 133.29 | M73: 184.69 | N73: 8.92 | O73: 7.69 | P73: 168.18 | Q73: 225.68 | R73: 17 | S73: 12 | T73: 6 | U73: 5 | V73: 1 | W73: 3.52 | X73: 6.85 | Y73: 163.14 | Z73: 203.71 | AA73: 4.46 | AB73: 7.18 | AC73: 158.75 | AD73: 206.25 | AE73: 6.81 | AF73: 7.69 | AG73: 185.41 | AH73: 236.81 | AI73: 8.92 | AJ73: 7.92 | AK73: 191.02 | AL73: 248.52 | AM73: 9 | AN73: 5 | AO73: 2 | AP73: 3 | AQ73: 1
A74: 31/03/2010 | B74: 3.14 | C74: 6.53 | D74: 96.34 | E74: 125.58 | F74: 4.73 | G74: 6.97 | H74: 110.59 | I74: 145.09 | J74: 6.57 | K74: 7.35 | L74: 131 | M74: 169.6 | N74: 9.13 | O74: 7.75 | P74: 158.08 | Q74: 197.08 | R74: 19 | S74: 11 | T74: 6 | U74: 6 | V74: 2 | W74: 3.63 | X74: 7.07 | Y74: 148.98 | Z74: 179.11 | AA74: 4.51 | AB74: 7.38 | AC74: 151.97 | AD74: 186.47 | AE74: 6.69 | AF74: 7.76 | AG74: 171.88 | AH74: 210.48 | AI74: 8.85 | AJ74: 7.92 | AK74: 174.51 | AL74: 213.51 | AM74: 9 | AN74: 7 | AO74: 2 | AP74: 3 | AQ74: 1
A75: 30/04/2010 | B75: 3.13 | C75: 6.48 | D75: 88.57 | E75: 120.14 | F75: 4.71 | G75: 6.92 | H75: 102.06 | I75: 139.86 | J75: 6.57 | K75: 7.26 | L75: 122.31 | M75: 166.01 | N75: 9.07 | O75: 7.57 | P75: 144.24 | Q75: 186.14 | R75: 21 | S75: 11 | T75: 6 | U75: 5 | V75: 2 | W75: 3.53 | X75: 6.98 | Y75: 137.92 | Z75: 170.32 | AA75: 4.44 | AB75: 7.31 | AC75: 141.18 | AD75: 178.98 | AE75: 6.75 | AF75: 7.68 | AG75: 164.25 | AH75: 207.95 | AI75: 8.83 | AJ75: 7.8 | AK75: 166.78 | AL75: 208.68 | AM75: 9 | AN75: 8 | AO75: 1 | AP75: 4 | AQ75: 1
A76: 31/05/2010 | B76: 3.16 | C76: 6.4 | D76: 114.81 | E76: 162.26 | F76: 4.7 | G76: 6.79 | H76: 120.37 | I76: 171.87 | J76: 6.58 | K76: 7.17 | L76: 138.86 | M76: 191.36 | N76: 9.02 | O76: 7.59 | P76: 166.37 | Q76: 217.57 | R76: 20 | S76: 11 | T76: 6 | U76: 5 | V76: 2 | W76: 3.54 | X76: 7.02 | Y76: 175.46 | Z76: 223.92 | AA76: 4.47 | AB76: 7.35 | AC76: 175.95 | AD76: 227.45 | AE76: 6.8 | AF76: 7.89 | AG76: 210.09 | AH76: 262.59 | AI76: 8.77 | AJ76: 8.17 | AK76: 224.46 | AL76: 275.66 | AM76: 8 | AN76: 7 | AO76: 1 | AP76: 4 | AQ76: 1
A77: 30/06/2010 | B77: 3.27 | C77: 6.28 | D77: 127.9 | E77: 184.35 | F77: 4.69 | G77: 6.61 | H77: 134.38 | I77: 193.28 | J77: 6.6 | K77: 6.97 | L77: 151.11 | M77: 206.41 | N77: 8.99 | O77: 7.38 | P77: 178.59 | Q77: 228.69 | R77: 19 | S77: 11 | T77: 6 | U77: 6 | V77: 2 | W77: 3.44 | X77: 6.85 | Y77: 183.83 | Z77: 241.19 | AA77: 4.38 | AB77: 7.15 | AC77: 188.08 | AD77: 246.98 | AE77: 6.83 | AF77: 7.64 | AG77: 217.86 | AH77: 273.16 | AI77: 8.71 | AJ77: 7.79 | AK77: 219.49 | AL77: 269.59 | AM77: 9 | AN77: 8 | AO77: 0 | AP77: 4 | AQ77: 1
A78: 31/07/2010 | B78: 3.24 | C78: 6.19 | D78: 117.96 | E78: 162.78 | F78: 4.67 | G78: 6.52 | H78: 124.5 | I78: 175 | J78: 6.6 | K78: 6.86 | L78: 139.16 | M78: 185.36 | N78: 8.93 | O78: 7.18 | P78: 156.85 | Q78: 197.85 | R78: 22 | S78: 10 | T78: 6 | U78: 6 | V78: 2 | W78: 3.5 | X78: 6.63 | Y78: 161.44 | Z78: 206.95 | AA78: 4.5 | AB78: 7.02 | AC78: 175.48 | AD78: 225.98 | AE78: 6.8 | AF78: 7.46 | AG78: 199.37 | AH78: 245.57 | AI78: 8.86 | AJ78: 7.64 | AK78: 202.56 | AL78: 243.56 | AM78: 9 | AN78: 10 | AO78: 2 | AP78: 5 | AQ78: 1
A79: 31/08/2010 | B79: 3.23 | C79: 5.98 | D79: 125.19 | E79: 174.09 | F79: 4.67 | G79: 6.3 | H79: 134.07 | I79: 191.07 | J79: 6.56 | K79: 6.62 | L79: 150.88 | M79: 202.48 | N79: 8.86 | O79: 6.85 | P79: 162.58 | Q79: 208.28 | R79: 25 | S79: 13 | T79: 5 | U79: 6 | V79: 2 | W79: 3.47 | X79: 6.3 | Y79: 157.02 | Z79: 206.41 | AA79: 4.49 | AB79: 6.69 | AC79: 173.09 | AD79: 230.09 | AE79: 6.8 | AF79: 7.04 | AG79: 192.81 | AH79: 244.41 | AI79: 8.81 | AJ79: 7.12 | AK79: 190.4 | AL79: 236.1 | AM79: 9 | AN79: 11 | AO79: 2 | AP79: 5 | AQ79: 1
A80: 30/09/2010 | B80: 3.23 | C80: 6.45 | D80: 119.42 | E80: 169.24 | F80: 4.66 | G80: 6.71 | H80: 129.19 | I80: 186.09 | J80: 6.62 | K80: 6.96 | L80: 147.34 | M80: 205.04 | N80: 9.12 | O80: 7.06 | P80: 155.48 | Q80: 210.18 | R80: 24 | S80: 15 | T80: 4 | U80: 8 | V80: 2 | W80: 3.46 | X80: 6.78 | Y80: 152.63 | Z80: 202.98 | AA80: 4.5 | AB80: 7.15 | AC80: 173.11 | AD80: 230.01 | AE80: 6.8 | AF80: 7.32 | AG80: 183.15 | AH80: 240.85 | AI80: 8.98 | AJ80: 7.47 | AK80: 195.83 | AL80: 250.53 | AM80: 10 | AN80: 12 | AO80: 2 | AP80: 6 | AQ80: 1
A81: 31/10/2010 | B81: 3.21 | C81: 6.4 | D81: 111.97 | E81: 153.51 | F81: 4.65 | G81: 6.72 | H81: 120.22 | I81: 174.82 | J81: 6.66 | K81: 6.99 | L81: 135.44 | M81: 189.14 | N81: 9.19 | O81: 7.17 | P81: 145.88 | Q81: 197.08 | R81: 24 | S81: 15 | T81: 4 | U81: 9 | V81: 2 | W81: 3.72 | X81: 6.79 | Y81: 150.51 | Z81: 192.68 | AA81: 4.65 | AB81: 7.14 | AC81: 162.23 | AD81: 216.83 | AE81: 6.89 | AF81: 7.21 | AG81: 157.43 | AH81: 211.13 | AI81: 9.26 | AJ81: 7.45 | AK81: 173.44 | AL81: 224.64 | AM81: 8 | AN81: 13 | AO81: 2 | AP81: 7 | AQ81: 2
A82: 30/11/2010 | B82: 3.18 | C82: 6.47 | D82: 103.76 | E82: 148.81 | F82: 4.63 | G82: 6.84 | H82: 111.38 | I82: 172.18 | J82: 6.7 | K82: 7.16 | L82: 129.58 | M82: 186.88 | N82: 9.15 | O82: 7.41 | P82: 145.66 | Q82: 200.26 | R82: 26 | S82: 12 | T82: 4 | U82: 9 | V82: 2 | W82: 3.67 | X82: 6.93 | Y82: 149.51 | Z82: 195.32 | AA82: 4.62 | AB82: 7.35 | AC82: 162.18 | AD82: 222.98 | AE82: 6.92 | AF82: 7.45 | AG82: 158.7 | AH82: 216 | AI82: 9.2 | AJ82: 7.69 | AK82: 173.85 | AL82: 228.45 | AM82: 8 | AN82: 13 | AO82: 2 | AP82: 7 | AQ82: 2
A83: 31/12/2010 | B83: 3.16 | C83: 6.58 | D83: 93.9 | E83: 126.52 | F83: 4.68 | G83: 6.98 | H83: 104.93 | I83: 152.73 | J83: 6.66 | K83: 7.23 | L83: 115.01 | M83: 168.61 | N83: 9.16 | O83: 7.5 | P83: 133.83 | Q83: 188.53 | R83: 21 | S83: 12 | T83: 4 | U83: 8 | V83: 2 | W83: 3.61 | X83: 7.22 | Y83: 157.15 | Z83: 190.86 | AA83: 4.53 | AB83: 7.58 | AC83: 165.2 | AD83: 213 | AE83: 6.96 | AF83: 7.69 | AG83: 160.9 | AH83: 214.5 | AI83: 9.06 | AJ83: 7.86 | AK83: 169.89 | AL83: 224.59 | AM83: 11 | AN83: 14 | AO83: 2 | AP83: 8 | AQ83: 2
A84: 31/01/2011 | B84: 3.11 | C84: 6.31 | D84: 94.75 | E84: 125.25 | F84: 4.64 | G84: 6.67 | H84: 99.9 | I84: 142.7 | J84: 6.68 | K84: 6.99 | L84: 111.26 | M84: 156.36 | N84: 9.09 | O84: 7.32 | P84: 131.1 | Q84: 180.2 | R84: 23 | S84: 12 | T84: 4 | U84: 8 | V84: 2 | W84: 3.49 | X84: 6.84 | Y84: 147.32 | Z84: 178.67 | AA84: 4.48 | AB84: 7.22 | AC84: 154.32 | AD84: 197.12 | AE84: 6.99 | AF84: 7.45 | AG84: 157.83 | AH84: 202.93 | AI84: 9 | AJ84: 7.71 | AK84: 170.68 | AL84: 219.78 | AM84: 13 | AN84: 13 | AO84: 2 | AP84: 8 | AQ84: 2
A85: 28/02/2011 | B85: 3.09 | C85: 6.28 | D85: 87.04 | E85: 115.2 | F85: 4.61 | G85: 6.66 | H85: 92.58 | I85: 134.38 | J85: 6.7 | K85: 6.97 | L85: 107.31 | M85: 155.91 | N85: 9.04 | O85: 7.31 | P85: 129.82 | Q85: 181.42 | R85: 24 | S85: 12 | T85: 4 | U85: 8 | V85: 2 | W85: 3.51 | X85: 6.83 | Y85: 141.18 | Z85: 170.21 | AA85: 4.49 | AB85: 7.2 | AC85: 146.85 | AD85: 188.65 | AE85: 7.02 | AF85: 7.42 | AG85: 151.84 | AH85: 200.44 | AI85: 8.96 | AJ85: 7.66 | AK85: 164.56 | AL85: 216.16 | AM85: 12 | AN85: 13 | AO85: 2 | AP85: 8 | AQ85: 2
A86: 31/03/2011 | B86: 3.16 | C86: 6.18 | D86: 82.56 | E86: 113.55 | F86: 4.59 | G86: 6.57 | H86: 89.38 | I86: 132.58 | J86: 6.62 | K86: 6.88 | L86: 102.86 | M86: 150.66 | N86: 8.97 | O86: 7.23 | P86: 122.5 | Q86: 173.9 | R86: 26 | S86: 17 | T86: 2 | U86: 8 | V86: 2 | W86: 3.46 | X86: 6.68 | Y86: 131.89 | Z86: 163.68 | AA86: 4.57 | AB86: 7.11 | AC86: 143.34 | AD86: 186.54 | AE86: 7.19 | AF86: 7.42 | AG86: 156.76 | AH86: 204.56 | AI86: 8.84 | AJ86: 7.62 | AK86: 162.35 | AL86: 213.75 | AM86: 10 | AN86: 12 | AO86: 3 | AP86: 8 | AQ86: 2
A87: 30/04/2011 | B87: 3.28 | C87: 6.23 | D87: 82.9 | E87: 114.97 | F87: 4.62 | G87: 6.57 | H87: 86.1 | I87: 132.4 | J87: 6.93 | K87: 6.97 | L87: 109.93 | M87: 164.23 | N87: 9.07 | O87: 7.24 | P87: 125.67 | Q87: 180.47 | R87: 28 | S87: 18 | T87: 4 | U87: 12 | V87: 4 | W87: 3.7 | X87: 7.18 | Y87: 176.93 | Z87: 210.57 | AA87: 4.61 | AB87: 7.51 | AC87: 180.01 | AD87: 226.31 | AE87: 6.88 | AF87: 7.76 | AG87: 188.64 | AH87: 242.94 | AI87: 9.02 | AJ87: 7.96 | AK87: 197.9 | AL87: 252.7 | AM87: 8 | AN87: 11 | AO87: 4 | AP87: 7 | AQ87: 0
A88: 31/05/2011 | B88: 3.28 | C88: 6.05 | D88: 84.17 | E88: 119.58 | F88: 4.64 | G88: 6.35 | H88: 88.49 | I88: 135.99 | J88: 6.91 | K88: 6.78 | L88: 113.84 | M88: 165.24 | N88: 9.1 | O88: 7.09 | P88: 133.31 | Q88: 187.81 | R88: 28 | S88: 20 | T88: 5 | U88: 12 | V88: 4 | W88: 3.65 | X88: 6.95 | Y88: 172.48 | Z88: 209.31 | AA88: 4.6 | AB88: 7.25 | AC88: 178.48 | AD88: 225.98 | AE88: 6.97 | AF88: 7.52 | AG88: 188.04 | AH88: 239.44 | AI88: 9.17 | AJ88: 7.73 | AK88: 197.19 | AL88: 251.69 | AM88: 8 | AN88: 11 | AO88: 5 | AP88: 8 | AQ88: 0
A89: 30/06/2011 | B89: 3.26 | C89: 6.08 | D89: 92 | E89: 131.85 | F89: 4.64 | G89: 6.42 | H89: 94.6 | I89: 154.8 | J89: 6.93 | K89: 6.88 | L89: 122.75 | M89: 185.45 | N89: 9.05 | O89: 7.22 | P89: 142.97 | Q89: 201.77 | R89: 26 | S89: 20 | T89: 5 | U89: 12 | V89: 4 | W89: 3.45 | X89: 6.9 | Y89: 172.74 | Z89: 213.89 | AA89: 4.54 | AB89: 7.3 | AC89: 183.1 | AD89: 243.3 | AE89: 6.99 | AF89: 7.64 | AG89: 198.71 | AH89: 261.41 | AI89: 9.12 | AJ89: 7.9 | AK89: 210.16 | AL89: 268.96 | AM89: 10 | AN89: 10 | AO89: 5 | AP89: 8 | AQ89: 0
A90: 31/07/2011 | B90: 3.26 | C90: 5.67 | D90: 81.63 | E90: 131.39 | F90: 4.62 | G90: 5.99 | H90: 82.26 | I90: 151.26 | J90: 6.93 | K90: 6.42 | L90: 105.25 | M90: 180.55 | N90: 9 | O90: 6.75 | P90: 122.15 | Q90: 194.85 | R90: 29 | S90: 19 | T90: 5 | U90: 12 | V90: 4 | W90: 3.41 | X90: 6.59 | Y90: 171.7 | Z90: 222.84 | AA90: 4.53 | AB90: 6.95 | AC90: 178.77 | AD90: 247.77 | AE90: 7.01 | AF90: 7.27 | AG90: 189.71 | AH90: 265.01 | AI90: 9.08 | AJ90: 7.53 | AK90: 200.22 | AL90: 272.92 | AM90: 12 | AN90: 8 | AO90: 6 | AP90: 7 | AQ90: 0
A91: 31/08/2011 | B91: 3.21 | C91: 5.46 | D91: 108.39 | E91: 168.87 | F91: 4.61 | G91: 5.84 | H91: 111.26 | I91: 191.36 | J91: 6.94 | K91: 6.34 | L91: 140.32 | M91: 223.92 | N91: 8.94 | O91: 6.69 | P91: 158.03 | Q91: 231.33 | R91: 30 | S91: 18 | T91: 5 | U91: 12 | V91: 4 | W91: 3.59 | X91: 6.58 | Y91: 219.37 | Z91: 281.5 | AA91: 4.56 | AB91: 6.92 | AC91: 219.28 | AD91: 299.38 | AE91: 7.03 | AF91: 7.31 | AG91: 236.72 | AH91: 320.32 | AI91: 9.03 | AJ91: 7.61 | AK91: 250.83 | AL91: 324.13 | AM91: 11 | AN91: 7 | AO91: 6 | AP91: 7 | AQ91: 0
A92: 30/09/2011 | B92: 3.19 | C92: 5.41 | D92: 122.11 | E92: 178.71 | F92: 4.62 | G92: 5.78 | H92: 127.08 | I92: 199.38 | J92: 6.96 | K92: 6.29 | L92: 157.42 | M92: 233.72 | N92: 9.01 | O92: 6.61 | P92: 173.72 | Q92: 239.22 | R92: 32 | S92: 18 | T92: 4 | U92: 13 | V92: 4 | W92: 3.53 | X92: 6.54 | Y92: 233.4 | Z92: 291.65 | AA92: 4.55 | AB92: 6.9 | AC92: 238.75 | AD92: 311.05 | AE92: 7.04 | AF92: 7.2 | AG92: 248.23 | AH92: 324.53 | AI92: 8.98 | AJ92: 7.49 | AK92: 261.2 | AL92: 326.7 | AM92: 15 | AN92: 4 | AO92: 5 | AP92: 7 | AQ92: 0
A93: 31/10/2011 | B93: 3.16 | C93: 5.54 | D93: 115.23 | E93: 166.11 | F93: 4.62 | G93: 5.94 | H93: 121.1 | I93: 189.3 | J93: 6.98 | K93: 6.45 | L93: 147.75 | M93: 220.65 | N93: 8.96 | O93: 6.72 | P93: 155.54 | Q93: 221.14 | R93: 31 | S93: 18 | T93: 5 | U93: 12 | V93: 4 | W93: 3.46 | X93: 6.76 | Y93: 235.84 | Z93: 288.56 | AA93: 4.58 | AB93: 7.17 | AC93: 244.7 | AD93: 312.9 | AE93: 7.07 | AF93: 7.59 | AG93: 262.23 | AH93: 335.13 | AI93: 9.07 | AJ93: 7.99 | AK93: 282.44 | AL93: 348.04 | AM93: 17 | AN93: 5 | AO93: 6 | AP93: 9 | AQ93: 0
A94: 30/11/2011 | B94: 3.19 | C94: 5.13 | D94: 121.33 | E94: 200.87 | F94: 4.61 | G94: 5.55 | H94: 122.25 | I94: 224.35 | J94: 6.97 | K94: 6.18 | L94: 161.65 | M94: 261.75 | N94: 9.15 | O94: 6.5 | P94: 177.31 | Q94: 257.21 | R94: 32 | S94: 18 | T94: 5 | U94: 14 | V94: 4 | W94: 3.41 | X94: 6.35 | Y94: 241.12 | Z94: 322.38 | AA94: 4.61 | AB94: 6.84 | AC94: 251.16 | AD94: 353.26 | AE94: 7.13 | AF94: 7.34 | AG94: 278.29 | AH94: 378.39 | AI94: 9.19 | AJ94: 7.71 | AK94: 298.11 | AL94: 378.01 | AM94: 17 | AN94: 5 | AO94: 7 | AP94: 10 | AQ94: 1
A95: 31/12/2011 | B95: 3.23 | C95: 5.17 | D95: 122.37 | E95: 203.87 | F95: 4.61 | G95: 5.5 | H95: 119.75 | I95: 224.35 | J95: 6.98 | K95: 6.05 | L95: 157.67 | M95: 265.87 | N95: 9.1 | O95: 6.31 | P95: 173.98 | Q95: 264.68 | R95: 32 | S95: 17 | T95: 5 | U95: 14 | V95: 4 | W95: 3.35 | X95: 6.33 | Y95: 236.75 | Z95: 319.88 | AA95: 4.61 | AB95: 6.85 | AC95: 254.93 | AD95: 359.53 | AE95: 7.13 | AF95: 7.35 | AG95: 287.79 | AH95: 395.99 | AI95: 9.15 | AJ95: 7.66 | AK95: 308.36 | AL95: 399.06 | AM95: 19 | AN95: 4 | AO95: 7 | AP95: 10 | AQ95: 1
A96: 31/01/2012 | B96: 3.12 | C96: 5.04 | D96: 117.32 | E96: 187.76 | F96: 4.59 | G96: 5.41 | H96: 120.36 | I96: 210.56 | J96: 6.99 | K96: 5.97 | L96: 153.58 | M96: 242.98 | N96: 9.04 | O96: 6.27 | P96: 167.66 | Q96: 255.36 | R96: 34 | S96: 17 | T96: 6 | U96: 13 | V96: 4 | W96: 3.3 | X96: 6.39 | Y96: 250.11 | Z96: 322.44 | AA96: 4.62 | AB96: 6.89 | AC96: 267.8 | AD96: 358 | AE96: 7.14 | AF96: 7.35 | AG96: 292.19 | AH96: 381.59 | AI96: 9.09 | AJ96: 7.71 | AK96: 311.09 | AL96: 398.79 | AM96: 19 | AN96: 4 | AO96: 8 | AP96: 9 | AQ96: 1
A97: 29/02/2012 | B97: 3.14 | C97: 5.37 | D97: 111.12 | E97: 175.88 | F97: 4.59 | G97: 5.67 | H97: 116.63 | I97: 199.03 | J97: 6.93 | K97: 6.15 | L97: 149.27 | M97: 234.17 | N97: 9.08 | O97: 6.42 | P97: 162.97 | Q97: 245.27 | R97: 36 | S97: 20 | T97: 6 | U97: 14 | V97: 5 | W97: 3.27 | X97: 6.81 | Y97: 252.47 | Z97: 319.36 | AA97: 4.62 | AB97: 7.2 | AC97: 270.49 | AD97: 352.89 | AE97: 7.15 | AF97: 7.48 | AG97: 281.76 | AH97: 366.66 | AI97: 9.06 | AJ97: 7.79 | AK97: 299.27 | AL97: 381.57 | AM97: 16 | AN97: 3 | AO97: 8 | AP97: 8 | AQ97: 1
A98: 31/03/2012 | B98: 3.11 | C98: 5.11 | D98: 102.65 | E98: 163.27 | F98: 4.63 | G98: 5.47 | H98: 109.13 | I98: 190.33 | J98: 6.95 | K98: 6.01 | L98: 143.52 | M98: 222.82 | N98: 9.14 | O98: 6.31 | P98: 154.55 | Q98: 232.35 | R98: 40 | S98: 19 | T98: 9 | U98: 14 | V98: 5 | W98: 3.21 | X98: 6.47 | Y98: 237.28 | Z98: 299.84 | AA98: 4.61 | AB98: 6.88 | AC98: 250.98 | AD98: 332.18 | AE98: 7.14 | AF98: 7.19 | AG98: 261.37 | AH98: 340.67 | AI98: 9.01 | AJ98: 7.54 | AK98: 278.38 | AL98: 356.18 | AM98: 17 | AN98: 3 | AO98: 8 | AP98: 8 | AQ98: 1
A99: 30/04/2012 | B99: 3.15 | C99: 4.84 | D99: 104.21 | E99: 183 | F99: 4.64 | G99: 5.18 | H99: 108.18 | I99: 205.88 | J99: 6.96 | K99: 5.71 | L99: 140.51 | M99: 234.11 | N99: 9.09 | O99: 5.96 | P99: 148.92 | Q99: 229.02 | R99: 41 | S99: 18 | T99: 8 | U99: 14 | V99: 5 | W99: 3.18 | X99: 6.16 | Y99: 234.36 | Z99: 314.93 | AA99: 4.64 | AB99: 6.57 | AC99: 247.92 | AD99: 345.62 | AE99: 7.1 | AF99: 6.9 | AG99: 260.48 | AH99: 354.08 | AI99: 8.96 | AJ99: 7.22 | AK99: 274.72 | AL99: 354.82 | AM99: 18 | AN99: 4 | AO99: 7 | AP99: 8 | AQ99: 1
A100: 31/05/2012 | B100: 3.13 | C100: 4.2 | D100: 110.24 | E100: 207.33 | F100: 4.72 | G100: 4.57 | H100: 112.19 | I100: 228.49 | J100: 6.94 | K100: 5.08 | L100: 140.62 | M100: 249.82 | N100: 9.14 | O100: 5.38 | P100: 150.87 | Q100: 246.27 | R100: 43 | S100: 16 | T100: 9 | U100: 17 | V100: 5 | W100: 3.13 | X100: 5.49 | Y100: 238.16 | Z100: 336.78 | AA100: 4.66 | AB100: 5.94 | AC100: 249.01 | AD100: 365.31 | AE100: 7.1 | AF100: 6.25 | AG100: 257.32 | AH100: 366.52 | AI100: 8.9 | AJ100: 6.57 | AK100: 269.76 | AL100: 365.16 | AM100: 18 | AN100: 4 | AO100: 7 | AP100: 8 | AQ100: 1
A101: 30/06/2012 | B101: 3.11 | C101: 4.44 | D101: 119.54 | E101: 204.98 | F101: 4.73 | G101: 4.81 | H101: 124.62 | I101: 230.22 | J101: 6.92 | K101: 5.29 | L101: 152.87 | M101: 255.47 | N101: 9.12 | O101: 5.56 | P101: 160.8 | Q101: 252 | R101: 43 | S101: 18 | T101: 9 | U101: 18 | V101: 5 | W101: 3.12 | X101: 5.83 | Y101: 256.25 | Z101: 343.44 | AA101: 4.74 | AB101: 6.23 | AC101: 267.47 | AD101: 373.07 | AE101: 7.03 | AF101: 6.5 | AG101: 273.64 | AH101: 376.24 | AI101: 8.88 | AJ101: 6.96 | AK101: 301.41 | AL101: 392.61 | AM101: 20 | AN101: 4 | AO101: 9 | AP101: 9 | AQ101: 1
A102: 31/07/2012 | B102: 3.11 | C102: 4.32 | D102: 103.79 | E102: 175.39 | F102: 4.72 | G102: 4.63 | H102: 110.15 | I102: 197.85 | J102: 6.9 | K102: 5.01 | L102: 131.61 | M102: 224.91 | N102: 9.09 | O102: 5.18 | P102: 131.34 | Q102: 207.84 | R102: 43 | S102: 18 | T102: 8 | U102: 17 | V102: 4 | W102: 3.13 | X102: 5.69 | Y102: 238.82 | Z102: 312.11 | AA102: 4.83 | AB102: 6.06 | AC102: 252.5 | AD102: 340.2 | AE102: 6.98 | AF102: 6.27 | AG102: 257.36 | AH102: 350.66 | AI102: 8.78 | AJ102: 6.72 | AK102: 284.58 | AL102: 361.08 | AM102: 20 | AN102: 7 | AO102: 10 | AP102: 8 | AQ102: 2
A103: 31/08/2012 | B103: 3.09 | C103: 4.22 | D103: 105.28 | E103: 175.39 | F103: 4.72 | G103: 4.59 | H103: 114.22 | I103: 201.22 | J103: 6.92 | K103: 5.05 | L103: 140.85 | M103: 233.55 | N103: 9.11 | O103: 5.3 | P103: 144.35 | Q103: 220.65 | R103: 45 | S103: 16 | T103: 8 | U103: 18 | V103: 4 | W103: 3.1 | X103: 5.5 | Y103: 231.67 | Z103: 303.31 | AA103: 4.84 | AB103: 5.88 | AC103: 243.07 | AD103: 330.07 | AE103: 6.96 | AF103: 6.16 | AG103: 251.76 | AH103: 344.46 | AI103: 8.73 | AJ103: 6.65 | AK103: 279.48 | AL103: 355.78 | AM103: 20 | AN103: 7 | AO103: 10 | AP103: 8 | AQ103: 2
A104: 30/09/2012 | B104: 3.05 | C104: 4.01 | D104: 103.69 | E104: 157.38 | F104: 4.75 | G104: 4.41 | H104: 117.99 | I104: 188.79 | J104: 6.98 | K104: 4.92 | L104: 149.06 | M104: 225.96 | N104: 9.01 | O104: 5.18 | P104: 153.69 | Q104: 219.09 | R104: 49 | S104: 15 | T104: 11 | U104: 16 | V104: 5 | W104: 3.06 | X104: 5.25 | Y104: 226.23 | Z104: 281.32 | AA104: 4.86 | AB104: 5.6 | AC104: 236.51 | AD104: 307.31 | AE104: 6.94 | AF104: 5.94 | AG104: 251.02 | AH104: 327.92 | AI104: 8.68 | AJ104: 6.48 | AK104: 284.18 | AL104: 349.58 | AM104: 20 | AN104: 7 | AO104: 12 | AP104: 6 | AQ104: 2
A105: 31/10/2012 | B105: 3.05 | C105: 3.88 | D105: 86.26 | E105: 130.92 | F105: 4.77 | G105: 4.26 | H105: 97.62 | I105: 160.32 | J105: 6.94 | K105: 4.74 | L105: 123.69 | M105: 195.09 | N105: 9.03 | O105: 5.03 | P105: 128.99 | Q105: 190.39 | R105: 51 | S105: 15 | T105: 11 | U105: 17 | V105: 5 | W105: 3.06 | X105: 4.95 | Y105: 192.86 | Z105: 238.69 | AA105: 5 | AB105: 5.38 | AC105: 209.68 | AD105: 272.38 | AE105: 7.03 | AF105: 5.73 | AG105: 222.86 | AH105: 294.26 | AI105: 9.24 | AJ105: 6.27 | AK105: 253.46 | AL105: 314.86 | AM105: 19 | AN105: 8 | AO105: 13 | AP105: 9 | AQ105: 2
A106: 30/11/2012 | B106: 3.08 | C106: 3.94 | D106: 85.86 | E106: 132.29 | F106: 4.79 | G106: 4.33 | H106: 98.73 | I106: 163.03 | J106: 6.91 | K106: 4.83 | L106: 127.71 | M106: 198.71 | N106: 8.98 | O106: 5.16 | P106: 137.09 | Q106: 199.89 | R106: 50 | S106: 15 | T106: 12 | U106: 16 | V106: 5 | W106: 3.08 | X106: 5.02 | Y106: 192.3 | Z106: 239.91 | AA106: 5.03 | AB106: 5.52 | AC106: 218.07 | AD106: 282.37 | AE106: 7.04 | AF106: 5.88 | AG106: 233.44 | AH106: 304.44 | AI106: 9.26 | AJ106: 6.46 | AK106: 267.29 | AL106: 330.09 | AM106: 18 | AN106: 11 | AO106: 12 | AP106: 10 | AQ106: 2
A107: 31/12/2012 | B107: 3.08 | C107: 3.82 | D107: 84.28 | E107: 114.99 | F107: 4.79 | G107: 4.26 | H107: 97.26 | I107: 150.36 | J107: 6.88 | K107: 4.79 | L107: 124.81 | M107: 186.81 | N107: 8.94 | O107: 5.19 | P107: 136.07 | Q107: 191.27 | R107: 51 | S107: 16 | T107: 12 | U107: 16 | V107: 5 | W107: 3.05 | X107: 4.92 | Y107: 193.49 | Z107: 225.39 | AA107: 5.05 | AB107: 5.47 | AC107: 218.59 | AD107: 271.69 | AE107: 7.03 | AF107: 5.86 | AG107: 231.81 | AH107: 293.81 | AI107: 9.21 | AJ107: 6.43 | AK107: 260.13 | AL107: 315.33 | AM107: 18 | AN107: 11 | AO107: 12 | AP107: 10 | AQ107: 2
A108: 31/01/2013 | B108: 3.06 | C108: 3.88 | D108: 79.43 | E108: 105.99 | F108: 4.79 | G108: 4.32 | H108: 90.51 | I108: 134.11 | J108: 6.87 | K108: 4.85 | L108: 117.4 | M108: 165.7 | N108: 8.91 | O108: 5.28 | P108: 132.48 | Q108: 183.68 | R108: 51 | S108: 17 | T108: 12 | U108: 16 | V108: 5 | W108: 3.02 | X108: 4.79 | Y108: 170.03 | Z108: 197.57 | AA108: 5.06 | AB108: 5.44 | AC108: 202.03 | AD108: 245.63 | AE108: 7.02 | AF108: 5.91 | AG108: 223.32 | AH108: 271.62 | AI108: 9.16 | AJ108: 6.48 | AK108: 251.71 | AL108: 302.91 | AM108: 18 | AN108: 11 | AO108: 12 | AP108: 10 | AQ108: 2
A109: 28/02/2013 | B109: 3.07 | C109: 3.82 | D109: 77.43 | E109: 108.54 | F109: 4.81 | G109: 4.27 | H109: 87.69 | I109: 135.19 | J109: 6.87 | K109: 4.8 | L109: 113.78 | M109: 169.68 | N109: 8.87 | O109: 5.22 | P109: 126.85 | Q109: 187.05 | R109: 53 | S109: 14 | T109: 13 | U109: 16 | V109: 5 | W109: 2.99 | X109: 4.79 | Y109: 173.04 | Z109: 205.17 | AA109: 5.08 | AB109: 5.41 | AC109: 201.82 | AD109: 249.32 | AE109: 7.01 | AF109: 5.88 | AG109: 221.67 | AH109: 277.57 | AI109: 9.12 | AJ109: 6.45 | AK109: 249.5 | AL109: 309.7 | AM109: 18 | AN109: 11 | AO109: 13 | AP109: 9 | AQ109: 2
A110: 31/03/2013 | B110: 3.07 | C110: 3.95 | D110: 72 | E110: 108.44 | F110: 4.83 | G110: 4.41 | H110: 85.87 | I110: 138.27 | J110: 6.85 | K110: 4.93 | L110: 113.93 | M110: 170.63 | N110: 9 | O110: 5.36 | P110: 130.08 | Q110: 193.78 | R110: 53 | S110: 15 | T110: 14 | U110: 16 | V110: 5 | W110: 3.04 | X110: 4.86 | Y110: 161.13 | Z110: 198.54 | AA110: 5.1 | AB110: 5.42 | AC110: 187.31 | AD110: 239.71 | AE110: 7.02 | AF110: 5.91 | AG110: 212.44 | AH110: 269.14 | AI110: 9.14 | AJ110: 6.47 | AK110: 241.35 | AL110: 305.05 | AM110: 17 | AN110: 12 | AO110: 12 | AP110: 10 | AQ110: 2
A111: 30/04/2013 | B111: 3.12 | C111: 3.72 | D111: 77.4 | E111: 113.42 | F111: 4.85 | G111: 4.17 | H111: 90.47 | I111: 144.17 | J111: 6.84 | K111: 4.69 | L111: 118.42 | M111: 177.22 | N111: 8.97 | O111: 5.11 | P111: 133.33 | Q111: 201.53 | R111: 51 | S111: 16 | T111: 14 | U111: 14 | V111: 6 | W111: 3.02 | X111: 4.54 | Y111: 158.92 | Z111: 195.77 | AA111: 5.22 | AB111: 5.16 | AC111: 189.31 | AD111: 243.01 | AE111: 7.07 | AF111: 5.65 | AG111: 213.86 | AH111: 272.66 | AI111: 9.03 | AJ111: 6.19 | AK111: 241.43 | AL111: 309.63 | AM111: 18 | AN111: 13 | AO111: 12 | AP111: 11 | AQ111: 2
A112: 31/05/2013 | B112: 3.21 | C112: 3.68 | D112: 73.5 | E112: 107.68 | F112: 4.89 | G112: 4.18 | H112: 85.54 | I112: 137.94 | J112: 6.83 | K112: 4.74 | L112: 111.57 | M112: 163.77 | N112: 8.9 | O112: 5.15 | P112: 121.75 | Q112: 178.95 | R112: 44 | S112: 15 | T112: 12 | U112: 11 | V112: 6 | W112: 3 | X112: 4.45 | Y112: 149.95 | Z112: 184.9 | AA112: 5.09 | AB112: 5.07 | AC112: 175.25 | AD112: 227.65 | AE112: 7.05 | AF112: 5.64 | AG112: 201.85 | AH112: 254.05 | AI112: 9.02 | AJ112: 6.18 | AK112: 225.23 | AL112: 282.43 | AM112: 24 | AN112: 15 | AO112: 14 | AP112: 12 | AQ112: 2
A113: 30/06/2013 | B113: 3.2 | C113: 4.02 | D113: 92.2 | E113: 126.9 | F113: 4.91 | G113: 4.69 | H113: 109.84 | I113: 164.74 | J113: 6.81 | K113: 5.31 | L113: 136.59 | M113: 189.59 | N113: 8.87 | O113: 5.73 | P113: 142.05 | Q113: 196.55 | R113: 46 | S113: 13 | T113: 14 | U113: 11 | V113: 6 | W113: 2.98 | X113: 4.82 | Y113: 171.07 | Z113: 206.64 | AA113: 5.1 | AB113: 5.64 | AC113: 205.01 | AD113: 259.91 | AE113: 7.03 | AF113: 6.38 | AG113: 243.23 | AH113: 296.23 | AI113: 8.97 | AJ113: 7.04 | AK113: 273.28 | AL113: 327.78 | AM113: 24 | AN113: 15 | AO113: 14 | AP113: 12 | AQ113: 2
A114: 31/07/2013 | B114: 3.2 | C114: 3.73 | D114: 85.16 | E114: 119.38 | F114: 4.91 | G114: 4.42 | H114: 103.18 | I114: 151.38 | J114: 6.79 | K114: 5.03 | L114: 123.64 | M114: 168.94 | N114: 8.85 | O114: 5.43 | P114: 124.65 | Q114: 170.65 | R114: 45 | S114: 13 | T114: 14 | U114: 11 | V114: 6 | W114: 3 | X114: 4.52 | Y114: 163.13 | Z114: 198.16 | AA114: 5.22 | AB114: 5.39 | AC114: 200.53 | AD114: 248.73 | AE114: 7.01 | AF114: 6.09 | AG114: 229.91 | AH114: 275.21 | AI114: 8.87 | AJ114: 6.8 | AK114: 261.38 | AL114: 307.38 | AM114: 26 | AN114: 13 | AO114: 16 | AP114: 12 | AQ114: 2
A115: 31/08/2013 | B115: 3.17 | C115: 3.9 | D115: 82.79 | E115: 119.77 | F115: 4.91 | G115: 4.65 | H115: 104.21 | I115: 156.11 | J115: 6.78 | K115: 5.28 | L115: 127.38 | M115: 176.88 | N115: 8.82 | O115: 5.67 | P115: 127.89 | Q115: 177.29 | R115: 44 | S115: 13 | T115: 14 | U115: 11 | V115: 6 | W115: 3 | X115: 4.68 | Y115: 160.35 | Z115: 198.16 | AA115: 5.23 | AB115: 5.6 | AC115: 199.99 | AD115: 251.89 | AE115: 6.98 | AF115: 6.32 | AG115: 231.36 | AH115: 280.86 | AI115: 8.81 | AJ115: 7.07 | AK115: 268.16 | AL115: 317.56 | AM115: 26 | AN115: 14 | AO115: 16 | AP115: 12 | AQ115: 2
A116: 30/09/2013 | B116: 3.19 | C116: 3.89 | D116: 83.17 | E116: 118.34 | F116: 4.92 | G116: 4.6 | H116: 102.68 | I116: 155.68 | J116: 6.79 | K116: 5.23 | L116: 127.32 | M116: 176.32 | N116: 9.07 | O116: 5.68 | P116: 136.33 | Q116: 186.63 | R116: 44 | S116: 13 | T116: 15 | U116: 12 | V116: 7 | W116: 2.99 | X116: 4.79 | Y116: 172.42 | Z116: 208.56 | AA116: 5.24 | AB116: 5.63 | AC116: 205.49 | AD116: 258.49 | AE116: 6.95 | AF116: 6.35 | AG116: 238.8 | AH116: 287.8 | AI116: 8.76 | AJ116: 7.09 | AK116: 277.1 | AL116: 327.4 | AM116: 28 | AN116: 12 | AO116: 16 | AP116: 12 | AQ116: 2
A117: 31/10/2013 | B117: 3.16 | C117: 3.94 | D117: 74.26 | E117: 93.78 | F117: 4.94 | G117: 4.64 | H117: 92.64 | I117: 124.84 | J117: 6.79 | K117: 5.26 | L117: 116.59 | M117: 149.59 | N117: 9.02 | O117: 5.66 | P117: 122.63 | Q117: 163.23 | R117: 45 | S117: 13 | T117: 16 | U117: 11 | V117: 7 | W117: 3.07 | X117: 4.9 | Y117: 168.57 | Z117: 189.13 | AA117: 5.32 | AB117: 5.67 | AC117: 195.45 | AD117: 227.65 | AE117: 6.96 | AF117: 6.32 | AG117: 222.72 | AH117: 255.72 | AI117: 8.6 | AJ117: 7.06 | AK117: 262.59 | AL117: 303.19 | AM117: 28 | AN117: 14 | AO117: 19 | AP117: 11 | AQ117: 2
A118: 30/11/2013 | B118: 3.22 | C118: 4 | D118: 78.65 | E118: 94.03 | F118: 4.95 | G118: 4.7 | H118: 92.06 | I118: 119.96 | J118: 6.76 | K118: 5.36 | L118: 116.34 | M118: 145.24 | N118: 8.99 | O118: 5.83 | P118: 125.16 | Q118: 160.96 | R118: 46 | S118: 13 | T118: 17 | U118: 10 | V118: 7 | W118: 3.22 | X118: 5.03 | Y118: 181.12 | Z118: 197.65 | AA118: 5.32 | AB118: 5.78 | AC118: 199.66 | AD118: 227.56 | AE118: 6.9 | AF118: 6.45 | AG118: 225.15 | AH118: 254.05 | AI118: 8.55 | AJ118: 7.21 | AK118: 263.05 | AL118: 298.85 | AM118: 26 | AN118: 15 | AO118: 20 | AP118: 10 | AQ118: 2
A119: 31/12/2013 | B119: 3.2 | C119: 3.99 | D119: 79.63 | E119: 103.8 | F119: 4.95 | G119: 4.64 | H119: 87.21 | I119: 117.71 | J119: 6.72 | K119: 5.23 | L119: 104.44 | M119: 136.24 | N119: 8.95 | O119: 5.7 | P119: 111.21 | Q119: 146.21 | R119: 48 | S119: 15 | T119: 19 | U119: 10 | V119: 7 | W119: 3.27 | X119: 4.97 | Y119: 176.86 | Z119: 202.11 | AA119: 5.35 | AB119: 5.73 | AC119: 196.26 | AD119: 226.76 | AE119: 6.92 | AF119: 6.38 | AG119: 219.24 | AH119: 251.04 | AI119: 8.51 | AJ119: 7.12 | AK119: 253.86 | AL119: 288.86 | AM119: 22 | AN119: 14 | AO119: 17 | AP119: 10 | AQ119: 2
A120: 31/01/2014 | B120: 3.2 | C120: 3.79 | D120: 69.3 | E120: 94.67 | F120: 4.94 | G120: 4.42 | H120: 80.4 | I120: 111.3 | J120: 6.7 | K120: 4.97 | L120: 95.63 | M120: 130.13 | N120: 8.93 | O120: 5.42 | P120: 103.57 | Q120: 141.67 | R120: 47 | S120: 16 | T120: 18 | U120: 10 | V120: 7 | W120: 3.27 | X120: 4.83 | Y120: 172.61 | Z120: 199.1 | AA120: 5.34 | AB120: 5.46 | AC120: 184.97 | AD120: 215.87 | AE120: 6.89 | AF120: 6.09 | AG120: 207.66 | AH120: 242.16 | AI120: 8.45 | AJ120: 6.8 | AK120: 241.75 | AL120: 279.85 | AM120: 22 | AN120: 15 | AO120: 16 | AP120: 10 | AQ120: 2
A121: 28/02/2014 | B121: 3.21 | C121: 3.75 | D121: 67.76 | E121: 91.6 | F121: 4.94 | G121: 4.37 | H121: 77.12 | I121: 107.12 | J121: 6.7 | K121: 4.91 | L121: 92.76 | M121: 123.46 | N121: 8.96 | O121: 5.38 | P121: 101.53 | Q121: 136.03 | R121: 47 | S121: 15 | T121: 19 | U121: 10 | V121: 7 | W121: 3.28 | X121: 4.73 | Y121: 165 | Z121: 189.87 | AA121: 5.33 | AB121: 5.38 | AC121: 178.19 | AD121: 208.19 | AE121: 6.87 | AF121: 5.96 | AG121: 197.47 | AH121: 228.17 | AI121: 8.4 | AJ121: 6.59 | AK121: 222.49 | AL121: 256.99 | AM121: 22 | AN121: 16 | AO121: 15 | AP121: 10 | AQ121: 2
A122: 31/03/2014 | B122: 3.19 | C122: 3.86 | D122: 63.6 | E122: 86.79 | F122: 4.93 | G122: 4.47 | H122: 75.55 | I122: 103.05 | J122: 6.68 | K122: 4.97 | L122: 89.16 | M122: 120.91 | N122: 8.93 | O122: 5.41 | P122: 98.48 | Q122: 132.43 | R122: 47 | S122: 16 | T122: 17 | U122: 11 | V122: 6 | W122: 3.32 | X122: 4.77 | Y122: 153.5 | Z122: 177.65 | AA122: 5.37 | AB122: 5.44 | AC122: 172.75 | AD122: 200.25 | AE122: 6.85 | AF122: 5.96 | AG122: 187.77 | AH122: 219.52 | AI122: 8.3 | AJ122: 6.53 | AK122: 210.94 | AL122: 244.89 | AM122: 21 | AN122: 16 | AO122: 17 | AP122: 10 | AQ122: 2
A123: 30/04/2014 | B123: 3.19 | C123: 3.74 | D123: 64.31 | E123: 83.84 | F123: 4.95 | G123: 4.29 | H123: 72.15 | I123: 97.05 | J123: 6.68 | K123: 4.79 | L123: 87.57 | M123: 116.07 | N123: 8.88 | O123: 5.21 | P123: 95.09 | Q123: 125.59 | R123: 46 | S123: 15 | T123: 16 | U123: 12 | V123: 6 | W123: 3.37 | X123: 4.64 | Y123: 153.77 | Z123: 174.23 | AA123: 5.27 | AB123: 5.15 | AC123: 159 | AD123: 183.9 | AE123: 6.76 | AF123: 5.7 | AG123: 179.32 | AH123: 207.82 | AI123: 8.69 | AJ123: 6.22 | AK123: 197 | AL123: 227.5 | AM123: 22 | AN123: 15 | AO123: 17 | AP123: 9 | AQ123: 2
A124: 31/05/2014 | B124: 3.17 | C124: 3.57 | D124: 61 | E124: 82.58 | F124: 4.94 | G124: 4.05 | H124: 69.92 | I124: 96.52 | J124: 6.66 | K124: 4.5 | L124: 82.5 | M124: 113.6 | N124: 8.86 | O124: 4.89 | P124: 87.62 | Q124: 123.02 | R124: 46 | S124: 15 | T124: 19 | U124: 9 | V124: 6 | W124: 3.38 | X124: 4.36 | Y124: 139.22 | Z124: 161.56 | AA124: 5.31 | AB124: 4.87 | AC124: 151.73 | AD124: 178.33 | AE124: 6.8 | AF124: 5.37 | AG124: 169.25 | AH124: 200.35 | AI124: 8.58 | AJ124: 5.79 | AK124: 177.81 | AL124: 213.21 | AM124: 22 | AN124: 15 | AO124: 19 | AP124: 9 | AQ124: 2
A125: 30/06/2014 | B125: 3.15 | C125: 3.51 | D125: 61.77 | E125: 90.1 | F125: 4.93 | G125: 3.99 | H125: 70.11 | I125: 103.21 | J125: 6.65 | K125: 4.42 | L125: 82.37 | M125: 117.97 | N125: 8.83 | O125: 4.8 | P125: 88.74 | Q125: 125.64 | R125: 46 | S125: 16 | T125: 19 | U125: 8 | V125: 6 | W125: 3.5 | X125: 4.31 | Y125: 140.55 | Z125: 169.65 | AA125: 5.31 | AB125: 4.73 | AC125: 144.48 | AD125: 177.58 | AE125: 6.78 | AF125: 5.18 | AG125: 158.2 | AH125: 193.8 | AI125: 8.53 | AJ125: 5.56 | AK125: 164.55 | AL125: 201.45 | AM125: 21 | AN125: 16 | AO125: 18 | AP125: 9 | AQ125: 2
A126: 31/07/2014 | B126: 3.18 | C126: 3.49 | D126: 58.77 | E126: 77.48 | F126: 4.93 | G126: 3.93 | H126: 64.54 | I126: 96.64 | J126: 6.63 | K126: 4.33 | L126: 76.15 | M126: 111.15 | N126: 8.82 | O126: 4.72 | P126: 85.28 | Q126: 121.68 | R126: 46 | S126: 17 | T126: 17 | U126: 9 | V126: 6 | W126: 3.66 | X126: 4.29 | Y126: 138.61 | Z126: 158.09 | AA126: 5.34 | AB126: 4.66 | AC126: 137.72 | AD126: 169.82 | AE126: 6.83 | AF126: 5.06 | AG126: 148.9 | AH126: 183.9 | AI126: 8.63 | AJ126: 5.34 | AK126: 147.39 | AL126: 183.79 | AM126: 20 | AN126: 21 | AO126: 17 | AP126: 10 | AQ126: 3
A127: 31/08/2014 | B127: 3.16 | C127: 3.44 | D127: 60.4 | E127: 81.37 | F127: 4.92 | G127: 3.84 | H127: 66.41 | I127: 101.71 | J127: 6.62 | K127: 4.2 | L127: 78.97 | M127: 115.17 | N127: 8.79 | O127: 4.55 | P127: 88.62 | Q127: 125.32 | R127: 46 | S127: 17 | T127: 18 | U127: 8 | V127: 6 | W127: 3.77 | X127: 4.29 | Y127: 143.78 | Z127: 165.55 | AA127: 5.33 | AB127: 4.58 | AC127: 139.97 | AD127: 175.27 | AE127: 6.79 | AF127: 4.94 | AG127: 153.34 | AH127: 189.54 | AI127: 8.59 | AJ127: 5.19 | AK127: 152.96 | AL127: 189.66 | AM127: 18 | AN127: 22 | AO127: 17 | AP127: 10 | AQ127: 2
A128: 30/09/2014 | B128: 3.15 | C128: 3.61 | D128: 70.52 | E128: 90.63 | F128: 4.91 | G128: 4.06 | H128: 76.33 | I128: 116.33 | J128: 6.6 | K128: 4.44 | L128: 87.78 | M128: 125.98 | N128: 8.77 | O128: 4.79 | P128: 96.78 | Q128: 131.28 | R128: 44 | S128: 20 | T128: 16 | U128: 7 | V128: 6 | W128: 3.92 | X128: 4.45 | Y128: 153.47 | Z128: 174.42 | AA128: 5.31 | AB128: 4.76 | AC128: 146.53 | AD128: 186.53 | AE128: 6.77 | AF128: 5.19 | AG128: 162.76 | AH128: 200.96 | AI128: 8.54 | AJ128: 5.46 | AK128: 163.53 | AL128: 198.03 | AM128: 14 | AN128: 22 | AO128: 16 | AP128: 10 | AQ128: 2
A129: 31/10/2014 | B129: 3.13 | C129: 3.55 | D129: 72.27 | E129: 99.24 | F129: 4.93 | G129: 3.98 | H129: 81.78 | I129: 115.98 | J129: 6.62 | K129: 4.35 | L129: 92.36 | M129: 135.06 | N129: 8.85 | O129: 4.72 | P129: 104.01 | Q129: 143.11 | R129: 45 | S129: 20 | T129: 16 | U129: 8 | V129: 6 | W129: 3.94 | X129: 4.32 | Y129: 148.34 | Z129: 176.05 | AA129: 5.33 | AB129: 4.65 | AC129: 148.33 | AD129: 182.53 | AE129: 6.75 | AF129: 5.11 | AG129: 167.59 | AH129: 210.29 | AI129: 8.68 | AJ129: 5.37 | AK129: 168.51 | AL129: 207.61 | AM129: 15 | AN129: 24 | AO129: 16 | AP129: 9 | AQ129: 2
A130: 30/11/2014 | B130: 3.16 | C130: 3.5 | D130: 80.27 | E130: 111.09 | F130: 4.93 | G130: 3.89 | H130: 90.9 | I130: 132.5 | J130: 6.61 | K130: 4.24 | L130: 101.65 | M130: 149.75 | N130: 8.89 | O130: 4.61 | P130: 115.18 | Q130: 158.58 | R130: 45 | S130: 21 | T130: 16 | U130: 9 | V130: 6 | W130: 3.95 | X130: 4.23 | Y130: 151.93 | Z130: 183.44 | AA130: 5.33 | AB130: 4.54 | AC130: 155.86 | AD130: 197.46 | AE130: 6.72 | AF130: 4.99 | AG130: 177.33 | AH130: 225.43 | AI130: 8.61 | AJ130: 5.23 | AK130: 177.01 | AL130: 220.41 | AM130: 16 | AN130: 25 | AO130: 17 | AP130: 8 | AQ130: 2
A131: 31/12/2014 | B131: 3.18 | C131: 3.22 | D131: 82.12 | E131: 109.71 | F131: 4.93 | G131: 3.52 | H131: 84.78 | I131: 125.58 | J131: 6.59 | K131: 3.81 | L131: 91.22 | M131: 136.92 | N131: 8.86 | O131: 4.14 | P131: 99.29 | Q131: 139.89 | R131: 45 | S131: 18 | T131: 16 | U131: 9 | V131: 6 | W131: 3.99 | X131: 3.97 | Y131: 155.85 | Z131: 184.09 | AA131: 5.32 | AB131: 4.28 | AC131: 160.86 | AD131: 201.66 | AE131: 6.7 | AF131: 4.68 | AG131: 178.82 | AH131: 224.52 | AI131: 8.56 | AJ131: 4.75 | AK131: 160.86 | AL131: 201.46 | AM131: 15 | AN131: 25 | AO131: 17 | AP131: 8 | AQ131: 2
A132: 31/01/2015 | B132: 3.17 | C132: 3.02 | D132: 77.91 | E132: 107.54 | F132: 4.92 | G132: 3.3 | H132: 87.07 | I132: 127.97 | J132: 6.57 | K132: 3.54 | L132: 96.36 | M132: 139.36 | N132: 8.84 | O132: 3.79 | P132: 102.6 | Q132: 134.3 | R132: 45 | S132: 19 | T132: 16 | U132: 9 | V132: 6 | W132: 3.95 | X132: 3.86 | Y132: 160.83 | Z132: 191.17 | AA132: 5.3 | AB132: 4.13 | AC132: 169.76 | AD132: 210.66 | AE132: 6.67 | AF132: 4.45 | AG132: 186.67 | AH132: 229.67 | AI132: 8.51 | AJ132: 4.36 | AK132: 160.39 | AL132: 192.09 | AM132: 15 | AN132: 25 | AO132: 17 | AP132: 8 | AQ132: 2
A133: 28/02/2015 | B133: 3.15 | C133: 2.82 | D133: 72.68 | E133: 102.76 | F133: 4.89 | G133: 3.16 | H133: 79.25 | I133: 125.95 | J133: 6.55 | K133: 3.45 | L133: 88.04 | M133: 135.64 | N133: 8.82 | O133: 3.77 | P133: 98.24 | Q133: 130.84 | R133: 46 | S133: 19 | T133: 16 | U133: 9 | V133: 6 | W133: 3.96 | X133: 3.68 | Y133: 157.71 | Z133: 188.49 | AA133: 5.26 | AB133: 3.96 | AC133: 159.03 | AD133: 205.73 | AE133: 6.62 | AF133: 4.3 | AG133: 173.76 | AH133: 221.36 | AI133: 8.47 | AJ133: 4.37 | AK133: 158.87 | AL133: 191.47 | AM133: 16 | AN133: 26 | AO133: 16 | AP133: 8 | AQ133: 2
A134: 31/03/2015 | B134: 3.17 | C134: 2.75 | D134: 74.74 | E134: 105.18 | F134: 4.88 | G134: 3.13 | H134: 83.68 | I134: 133.08 | J134: 6.53 | K134: 3.45 | L134: 95.97 | M134: 148.77 | N134: 8.96 | O134: 3.84 | P134: 112.32 | Q134: 151.92 | R134: 46 | S134: 18 | T134: 15 | U134: 10 | V134: 6 | W134: 3.93 | X134: 3.58 | Y134: 157.07 | Z134: 188.16 | AA134: 5.23 | AB134: 3.88 | AC134: 158.83 | AD134: 208.23 | AE134: 6.63 | AF134: 4.27 | AG134: 177.29 | AH134: 230.09 | AI134: 8.78 | AJ134: 4.45 | AK134: 173.31 | AL134: 212.91 | AM134: 17 | AN134: 28 | AO134: 16 | AP134: 7 | AQ134: 2
A135: 30/04/2015 | B135: 3.21 | C135: 3.01 | D135: 77.65 | E135: 108.18 | F135: 4.86 | G135: 3.43 | H135: 87.18 | I135: 132.28 | J135: 6.54 | K135: 3.78 | L135: 101.7 | M135: 136.9 | N135: 9.09 | O135: 4.17 | P135: 119.07 | Q135: 152.47 | R135: 45 | S135: 17 | T135: 13 | U135: 10 | V135: 6 | W135: 3.94 | X135: 3.8 | Y135: 155.41 | Z135: 186.59 | AA135: 5.21 | AB135: 4.11 | AC135: 155.05 | AD135: 200.15 | AE135: 6.66 | AF135: 4.5 | AG135: 173.57 | AH135: 208.77 | AI135: 9.18 | AJ135: 4.81 | AK135: 182.77 | AL135: 216.17 | AM135: 19 | AN135: 28 | AO135: 19 | AP135: 7 | AQ135: 3
A136: 31/05/2015 | B136: 3.24 | C136: 2.98 | D136: 80.65 | E136: 109.55 | F136: 4.89 | G136: 3.4 | H136: 87.01 | I136: 129.21 | J136: 6.56 | K136: 3.78 | L136: 100.03 | M136: 132.93 | N136: 9.05 | O136: 4.19 | P136: 116.15 | Q136: 146.15 | R136: 44 | S136: 18 | T136: 13 | U136: 10 | V136: 7 | W136: 3.89 | X136: 3.76 | Y136: 158.29 | Z136: 187.84 | AA136: 5.18 | AB136: 4.08 | AC136: 155.59 | AD136: 197.79 | AE136: 6.68 | AF136: 4.49 | AG136: 171.38 | AH136: 204.28 | AI136: 9.24 | AJ136: 4.83 | AK136: 180.38 | AL136: 210.38 | AM136: 21 | AN136: 29 | AO136: 17 | AP136: 9 | AQ136: 3
A137: 30/06/2015 | B137: 3.25 | C137: 3.21 | D137: 88.44 | E137: 118.61 | F137: 4.89 | G137: 3.68 | H137: 92.35 | I137: 139.25 | J137: 6.54 | K137: 4.1 | L137: 104.96 | M137: 142.56 | N137: 9.04 | O137: 4.57 | P137: 122.94 | Q137: 156.44 | R137: 43 | S137: 18 | T137: 14 | U137: 10 | V137: 7 | W137: 3.89 | X137: 4.01 | Y137: 167.85 | Z137: 198.74 | AA137: 5.19 | AB137: 4.38 | AC137: 162.92 | AD137: 209.82 | AE137: 6.68 | AF137: 4.79 | AG137: 174.21 | AH137: 211.81 | AI137: 9.27 | AJ137: 5.17 | AK137: 182.08 | AL137: 215.58 | AM137: 20 | AN137: 29 | AO137: 17 | AP137: 10 | AQ137: 3
A138: 31/07/2015 | B138: 3.24 | C138: 3.19 | D138: 99.91 | E138: 128.27 | F138: 4.88 | G138: 3.62 | H138: 104.83 | I138: 155.23 | J138: 6.57 | K138: 4.02 | L138: 117.23 | M138: 158.83 | N138: 9.2 | O138: 4.6 | P138: 148.22 | Q138: 183.92 | R138: 40 | S138: 18 | T138: 14 | U138: 11 | V138: 7 | W138: 3.87 | X138: 3.96 | Y138: 176.45 | Z138: 205.49 | AA138: 5.15 | AB138: 4.35 | AC138: 177.91 | AD138: 228.31 | AE138: 6.66 | AF138: 4.76 | AG138: 191.5 | AH138: 233.1 | AI138: 9.24 | AJ138: 5.01 | AK138: 189.75 | AL138: 225.45 | AM138: 21 | AN138: 30 | AO138: 16 | AP138: 10 | AQ138: 3
A139: 31/08/2015 | B139: 3.2 | C139: 3.15 | D139: 109.9 | E139: 137.53 | F139: 4.86 | G139: 3.56 | H139: 112.86 | I139: 162.36 | J139: 6.59 | K139: 3.96 | L139: 124.1 | M139: 163.1 | N139: 9.2 | O139: 4.54 | P139: 153.82 | Q139: 188.02 | R139: 39 | S139: 16 | T139: 14 | U139: 11 | V139: 7 | W139: 3.86 | X139: 3.98 | Y139: 192.42 | Z139: 220.78 | AA139: 5.1 | AB139: 4.39 | AC139: 195.44 | AD139: 244.94 | AE139: 6.6 | AF139: 4.79 | AG139: 207.33 | AH139: 246.33 | AI139: 9.19 | AJ139: 5.07 | AK139: 206.05 | AL139: 240.25 | AM139: 22 | AN139: 33 | AO139: 15 | AP139: 10 | AQ139: 3
A140: 30/09/2015 | B140: 3.23 | C140: 3.39 | D140: 135.2 | E140: 156.12 | F140: 4.88 | G140: 3.76 | H140: 138.19 | I140: 177.49 | J140: 6.56 | K140: 4.13 | L140: 150.1 | M140: 179 | N140: 9.17 | O140: 4.75 | P140: 186.05 | Q140: 214.55 | R140: 36 | S140: 18 | T140: 16 | U140: 10 | V140: 6 | W140: 3.83 | X140: 4.3 | Y140: 225.31 | Z140: 247.1 | AA140: 5.07 | AB140: 4.68 | AC140: 230.07 | AD140: 269.37 | AE140: 6.6 | AF140: 5.08 | AG140: 245.54 | AH140: 274.44 | AI140: 9.15 | AJ140: 5.32 | AK140: 242.54 | AL140: 271.04 | AM140: 23 | AN140: 32 | AO140: 15 | AP140: 10 | AQ140: 3
A141: 31/10/2015 | B141: 3.21 | C141: 3.31 | D141: 132.32 | E141: 151.17 | F141: 4.87 | G141: 3.67 | H141: 132.72 | I141: 160.32 | J141: 6.55 | K141: 4.02 | L141: 141.77 | M141: 171.97 | N141: 9.17 | O141: 4.63 | P141: 175.83 | Q141: 201.73 | R141: 37 | S141: 19 | T141: 15 | U141: 9 | V141: 6 | W141: 3.8 | X141: 4.37 | Y141: 237.47 | Z141: 257.33 | AA141: 5.04 | AB141: 4.71 | AC141: 237.02 | AD141: 264.62 | AE141: 6.6 | AF141: 5.05 | AG141: 244.97 | AH141: 275.17 | AI141: 9.11 | AJ141: 5.28 | AK141: 241.44 | AL141: 267.34 | AM141: 25 | AN141: 32 | AO141: 13 | AP141: 10 | AQ141: 3
A142: 30/11/2015 | B142: 3.24 | C142: 3.62 | D142: 139.21 | E142: 152.44 | F142: 4.86 | G142: 3.93 | H142: 138 | I142: 162.2 | J142: 6.54 | K142: 4.26 | L142: 150.46 | M142: 171.96 | N142: 9.18 | O142: 4.87 | P142: 187.28 | Q142: 200.88 | R142: 35 | S142: 19 | T142: 14 | U142: 10 | V142: 6 | W142: 3.77 | X142: 4.62 | Y142: 238.28 | Z142: 252.52 | AA142: 5.03 | AB142: 4.96 | AC142: 240.98 | AD142: 265.18 | AE142: 6.59 | AF142: 5.26 | AG142: 250 | AH142: 271.5 | AI142: 9.16 | AJ142: 5.41 | AK142: 241.42 | AL142: 255.02 | AM142: 28 | AN142: 34 | AO142: 12 | AP142: 11 | AQ142: 3
A143: 31/12/2015 | B143: 3.23 | C143: 3.79 | D143: 151.03 | E143: 177.32 | F143: 4.87 | G143: 4.18 | H143: 155.85 | I143: 193.48 | J143: 6.53 | K143: 4.52 | L143: 168.66 | M143: 191.16 | N143: 9.18 | O143: 5.13 | P143: 204.12 | Q143: 224.8 | R143: 31 | S143: 19 | T143: 13 | U143: 10 | V143: 6 | W143: 3.7 | X143: 4.71 | Y143: 241.29 | Z143: 268.52 | AA143: 4.97 | AB143: 5.08 | AC143: 245.53 | AD143: 283.16 | AE143: 6.58 | AF143: 5.36 | AG143: 252.14 | AH143: 274.64 | AI143: 9.12 | AJ143: 5.45 | AK143: 236.23 | AL143: 256.91 | AM143: 32 | AN143: 35 | AO143: 11 | AP143: 11 | AQ143: 3
A144: 31/01/2016 | B144: 3.3 | C144: 3.97 | D144: 190.86 | E144: 209.52 | F144: 4.85 | G144: 4.27 | H144: 192.05 | I144: 220.45 | J144: 6.53 | K144: 4.59 | L144: 205.95 | M144: 219.55 | N144: 9.09 | O144: 5.22 | P144: 247.93 | Q144: 258.68 | R144: 30 | S144: 21 | T144: 14 | U144: 10 | V144: 7 | W144: 3.67 | X144: 5.06 | Y144: 298.7 | Z144: 318.56 | AA144: 4.94 | AB144: 5.5 | AC144: 315.12 | AD144: 343.52 | AE144: 6.58 | AF144: 5.71 | AG144: 317.96 | AH144: 331.56 | AI144: 9.08 | AJ144: 5.57 | AK144: 283.19 | AL144: 293.94 | AM144: 35 | AN144: 32 | AO144: 11 | AP144: 11 | AQ144: 3
A145: 29/02/2016 | B145: 3.32 | C145: 3.86 | D145: 185.5 | E145: 212.85 | F145: 4.83 | G145: 4.08 | H145: 185.04 | I145: 216.89 | J145: 6.52 | K145: 4.32 | L145: 195.09 | M145: 212.68 | N145: 9.09 | O145: 4.89 | P145: 235.29 | Q145: 249.14 | R145: 30 | S145: 21 | T145: 14 | U145: 9 | V145: 7 | W145: 3.69 | X145: 5.22 | Y145: 319.68 | Z145: 348.53 | AA145: 4.92 | AB145: 5.55 | AC145: 331.6 | AD145: 363.45 | AE145: 6.59 | AF145: 5.68 | AG145: 331.59 | AH145: 349.18 | AI145: 9.04 | AJ145: 5.57 | AK145: 303.41 | AL145: 317.26 | AM145: 33 | AN145: 32 | AO145: 12 | AP145: 12 | AQ145: 3
A146: 31/03/2016 | B146: 3.39 | C146: 3.56 | D146: 144.01 | E146: 165.88 | F146: 4.83 | G146: 3.79 | H146: 143.96 | I146: 169.91 | J146: 6.51 | K146: 4.07 | L146: 158.87 | M146: 178.88 | N146: 9.09 | O146: 4.6 | P146: 196.29 | Q146: 211.39 | R146: 30 | S146: 19 | T146: 14 | U146: 9 | V146: 7 | W146: 3.65 | X146: 4.91 | Y146: 277.14 | Z146: 300.41 | AA146: 4.9 | AB146: 5.16 | AC146: 281.22 | AD146: 307.17 | AE146: 6.6 | AF146: 5.26 | AG146: 278.52 | AH146: 298.53 | AI146: 8.99 | AJ146: 5.23 | AK146: 258.87 | AL146: 273.97 | AM146: 34 | AN146: 32 | AO146: 11 | AP146: 12 | AQ146: 3
A147: 30/04/2016 | B147: 3.37 | C147: 3.28 | D147: 119.53 | E147: 142.14 | F147: 4.81 | G147: 3.55 | H147: 120.72 | I147: 149.52 | J147: 6.52 | K147: 3.83 | L147: 134.62 | M147: 153.11 | N147: 9.21 | O147: 4.16 | P147: 151.54 | Q147: 164.62 | R147: 29 | S147: 19 | T147: 14 | U147: 10 | V147: 7 | W147: 3.65 | X147: 4.44 | Y147: 234.96 | Z147: 258.68 | AA147: 4.88 | AB147: 4.71 | AC147: 236.4 | AD147: 265.2 | AE147: 6.61 | AF147: 4.87 | AG147: 239.24 | AH147: 257.73 | AI147: 8.95 | AJ147: 4.97 | AK147: 232.48 | AL147: 245.56 | AM147: 33 | AN147: 31 | AO147: 12 | AP147: 11 | AQ147: 3
A148: 31/05/2016 | B148: 3.35 | C148: 3.1 | D148: 122.73 | E148: 146.52 | F148: 4.8 | G148: 3.4 | H148: 126.4 | I148: 157.48 | J148: 6.51 | K148: 3.72 | L148: 144.74 | M148: 165.24 | N148: 9.21 | O148: 4.13 | P148: 168.31 | Q148: 182.51 | R148: 30 | S148: 21 | T148: 12 | U148: 9 | V148: 7 | W148: 3.61 | X148: 4.14 | Y148: 225.05 | Z148: 249.77 | AA148: 4.83 | AB148: 4.47 | AC148: 232.9 | AD148: 263.98 | AE148: 6.7 | AF148: 4.66 | AG148: 239.45 | AH148: 259.95 | AI148: 9.11 | AJ148: 4.79 | AK148: 234.12 | AL148: 248.32 | AM148: 33 | AN148: 31 | AO148: 9 | AP148: 12 | AQ148: 3
A149: 30/06/2016 | B149: 3.38 | C149: 2.95 | D149: 114.6 | E149: 139.28 | F149: 4.8 | G149: 3.18 | H149: 117.23 | I149: 152.83 | J149: 6.5 | K149: 3.43 | L149: 134.35 | M149: 161.34 | N149: 9.2 | O149: 3.78 | P149: 157.71 | Q149: 180.16 | R149: 30 | S149: 22 | T149: 10 | U149: 9 | V149: 7 | W149: 3.59 | X149: 3.98 | Y149: 216.9 | Z149: 242.46 | AA149: 4.81 | AB149: 4.22 | AC149: 221.85 | AD149: 257.45 | AE149: 6.74 | AF149: 4.39 | AG149: 231.12 | AH149: 258.11 | AI149: 9.13 | AJ149: 4.65 | AK149: 244.78 | AL149: 267.23 | AM149: 34 | AN149: 30 | AO149: 9 | AP149: 12 | AQ149: 3
A150: 31/07/2016 | B150: 3.31 | C150: 2.71 | D150: 100.21 | E150: 125.07 | F150: 4.79 | G150: 2.91 | H150: 99.71 | I150: 135.91 | J150: 6.55 | K150: 3.15 | L150: 115.55 | M150: 145.3 | N150: 9.2 | O150: 3.51 | P150: 139.54 | Q150: 163.42 | R150: 32 | S150: 20 | T150: 11 | U150: 9 | V150: 6 | W150: 3.6 | X150: 3.76 | Y150: 204.34 | Z150: 230.04 | AA150: 4.8 | AB150: 3.96 | AC150: 204.59 | AD150: 240.79 | AE150: 6.76 | AF150: 4.05 | AG150: 205.69 | AH150: 235.44 | AI150: 9.08 | AJ150: 4.27 | AK150: 215.45 | AL150: 239.33 | AM150: 34 | AN150: 27 | AO150: 10 | AP150: 12 | AQ150: 3
A151: 31/08/2016 | B151: 3.28 | C151: 2.54 | D151: 94.2 | E151: 113.8 | F151: 4.77 | G151: 2.75 | H151: 93.18 | I151: 124.08 | J151: 6.53 | K151: 3.02 | L151: 112.03 | M151: 135.43 | N151: 9.19 | O151: 3.44 | P151: 141.15 | Q151: 161.25 | R151: 33 | S151: 20 | T151: 10 | U151: 9 | V151: 6 | W151: 3.56 | X151: 3.41 | Y151: 180.62 | Z151: 200.86 | AA151: 4.8 | AB151: 3.62 | AC151: 179.59 | AD151: 210.49 | AE151: 6.79 | AF151: 3.81 | AG151: 190.5 | AH151: 213.9 | AI151: 9.08 | AJ151: 4.1 | AK151: 207.36 | AL151: 227.46 | AM151: 36 | AN151: 27 | AO151: 11 | AP151: 13 | AQ151: 3
A152: 30/09/2016 | B152: 3.29 | C152: 2.65 | D152: 99.76 | E152: 112.63 | F152: 4.81 | G152: 2.82 | H152: 93.52 | I152: 122.32 | J152: 6.51 | K152: 3.08 | L152: 111.75 | M152: 132.7 | N152: 9.22 | O152: 3.48 | P152: 139.06 | Q152: 157.26 | R152: 35 | S152: 22 | T152: 10 | U152: 10 | V152: 6 | W152: 3.47 | X152: 3.47 | Y152: 181.42 | Z152: 194.91 | AA152: 4.72 | AB152: 3.65 | AC152: 175.98 | AD152: 204.78 | AE152: 6.89 | AF152: 3.86 | AG152: 190.08 | AH152: 211.03 | AI152: 9.19 | AJ152: 4.2 | AK152: 210.52 | AL152: 228.72 | AM152: 37 | AN152: 23 | AO152: 12 | AP152: 12 | AQ152: 3
A153: 31/10/2016 | B153: 3.32 | C153: 2.8 | D153: 96.39 | E153: 110.12 | F153: 4.81 | G153: 3.08 | H153: 90.86 | I153: 112.66 | J153: 6.5 | K153: 3.39 | L153: 109.26 | M153: 120.21 | N153: 9.21 | O153: 3.8 | P153: 135.29 | Q153: 145.69 | R153: 34 | S153: 22 | T153: 10 | U153: 9 | V153: 6 | W153: 3.43 | X153: 3.61 | Y153: 176.9 | Z153: 191.27 | AA153: 4.74 | AB153: 3.83 | AC153: 166.2 | AD153: 188 | AE153: 6.92 | AF153: 4.12 | AG153: 182.35 | AH153: 193.3 | AI153: 9.13 | AJ153: 4.47 | AK153: 201.67 | AL153: 212.07 | AM153: 42 | AN153: 20 | AO153: 13 | AP153: 13 | AQ153: 3
A154: 30/11/2016 | B154: 3.33 | C154: 3.1 | D154: 103.43 | E154: 119.82 | F154: 4.81 | G154: 3.44 | H154: 95.12 | I154: 119.12 | J154: 6.5 | K154: 3.79 | L154: 113.49 | M154: 127.69 | N154: 9.22 | O154: 4.24 | P154: 138.52 | Q154: 151.47 | R154: 34 | S154: 20 | T154: 10 | U154: 10 | V154: 6 | W154: 3.39 | X154: 3.87 | Y154: 179.84 | Z154: 196.89 | AA154: 4.72 | AB154: 4.17 | AC154: 167.63 | AD154: 191.63 | AE154: 6.93 | AF154: 4.55 | AG154: 188.75 | AH154: 202.95 | AI154: 9.09 | AJ154: 4.94 | AK154: 208.28 | AL154: 221.23 | AM154: 43 | AN154: 19 | AO154: 13 | AP154: 13 | AQ154: 3
A155: 31/12/2016 | B155: 3.3 | C155: 3.17 | D155: 97.56 | E155: 120.9 | F155: 4.8 | G155: 3.52 | H155: 89.36 | I155: 119.16 | J155: 6.49 | K155: 3.87 | L155: 106.17 | M155: 129.47 | N155: 9.21 | O155: 4.3 | P155: 130.25 | Q155: 153.25 | R155: 34 | S155: 20 | T155: 10 | U155: 10 | V155: 6 | W155: 3.45 | X155: 3.94 | Y155: 174.13 | Z155: 198.15 | AA155: 4.77 | AB155: 4.3 | AC155: 167.83 | AD155: 197.63 | AE155: 6.77 | AF155: 4.63 | AG155: 182.36 | AH155: 205.66 | AI155: 9.01 | AJ155: 4.93 | AK155: 193.45 | AL155: 216.45 | AM155: 44 | AN155: 19 | AO155: 13 | AP155: 12 | AQ155: 3
A156: 31/01/2017 | B156: 3.27 | C156: 3 | D156: 93.14 | E156: 109.3 | F156: 4.78 | G156: 3.38 | H156: 83.98 | I156: 116.38 | J156: 6.48 | K156: 3.76 | L156: 100.05 | M156: 126.8 | N156: 9.2 | O156: 4.24 | P156: 125.39 | Q156: 152.84 | R156: 33 | S156: 20 | T156: 10 | U156: 10 | V156: 6 | W156: 3.42 | X156: 3.67 | Y156: 159.86 | Z156: 176.58 | AA156: 4.76 | AB156: 3.98 | AC156: 144.05 | AD156: 176.45 | AE156: 6.78 | AF156: 4.39 | AG156: 163.22 | AH156: 189.97 | AI156: 8.96 | AJ156: 4.79 | AK156: 180.66 | AL156: 208.11 | AM156: 44 | AN156: 19 | AO156: 13 | AP156: 12 | AQ156: 3
A157: 28/02/2017 | B157: 3.28 | C157: 2.87 | D157: 77.55 | E157: 91.42 | F157: 4.77 | G157: 3.23 | H157: 67.32 | I157: 97.62 | J157: 6.47 | K157: 3.6 | L157: 84.21 | M157: 108.46 | N157: 9.26 | O157: 4.1 | P157: 112.34 | Q157: 137.77 | R157: 32 | S157: 20 | T157: 10 | U157: 11 | V157: 6 | W157: 3.39 | X157: 3.53 | Y157: 143.6 | Z157: 158 | AA157: 4.74 | AB157: 3.85 | AC157: 130.19 | AD157: 160.49 | AE157: 6.78 | AF157: 4.26 | AG157: 149.93 | AH157: 174.18 | AI157: 8.91 | AJ157: 4.63 | AK157: 164.99 | AL157: 190.42 | AM157: 44 | AN157: 18 | AO157: 13 | AP157: 12 | AQ157: 3
A158: 31/03/2017 | B158: 3.3 | C158: 2.93 | D158: 83.16 | E158: 102.37 | F158: 4.78 | G158: 3.28 | H158: 74.55 | I158: 104.15 | J158: 6.51 | K158: 3.65 | L158: 90.93 | M158: 116.98 | N158: 9.25 | O158: 4.11 | P158: 114.45 | Q158: 141.35 | R158: 33 | S158: 17 | T158: 10 | U158: 11 | V158: 6 | W158: 3.36 | X158: 3.52 | Y158: 141.62 | Z158: 161.31 | AA158: 4.73 | AB158: 3.87 | AC158: 133.36 | AD158: 162.96 | AE158: 6.78 | AF158: 4.25 | AG158: 150.68 | AH158: 176.73 | AI158: 8.86 | AJ158: 4.61 | AK158: 163.79 | AL158: 190.69 | AM158: 45 | AN158: 20 | AO158: 13 | AP158: 10 | AQ158: 3
A159: 30/04/2017 | B159: 3.29 | C159: 2.85 | D159: 85.25 | E159: 105.3 | F159: 4.76 | G159: 3.2 | H159: 77.08 | I159: 109.43 | J159: 6.51 | K159: 3.58 | L159: 93.76 | M159: 122.41 | N159: 9.29 | O159: 4.03 | P159: 116.31 | Q159: 145.88 | R159: 34 | S159: 17 | T159: 10 | U159: 11 | V159: 6 | W159: 3.38 | X159: 3.37 | Y159: 136.92 | Z159: 157.37 | AA159: 4.72 | AB159: 3.66 | AC159: 122.46 | AD159: 154.81 | AE159: 6.79 | AF159: 4.08 | AG159: 144.23 | AH159: 172.88 | AI159: 8.81 | AJ159: 4.47 | AK159: 159.72 | AL159: 189.28 | AM159: 44 | AN159: 21 | AO159: 11 | AP159: 10 | AQ159: 3
A160: 31/05/2017 | B160: 3.25 | C160: 2.66 | D160: 81.21 | E160: 103.35 | F160: 4.75 | G160: 2.98 | H160: 77.11 | I160: 107.46 | J160: 6.5 | K160: 3.35 | L160: 92.15 | M160: 119.35 | N160: 9.28 | O160: 3.79 | P160: 112.14 | Q160: 140.54 | R160: 36 | S160: 16 | T160: 10 | U160: 11 | V160: 6 | W160: 3.35 | X160: 3.14 | Y160: 128.69 | Z160: 151.17 | AA160: 4.72 | AB160: 3.38 | AC160: 116.88 | AD160: 147.23 | AE160: 6.8 | AF160: 3.84 | AG160: 140.93 | AH160: 168.13 | AI160: 8.79 | AJ160: 4.25 | AK160: 157.98 | AL160: 186.38 | AM160: 46 | AN160: 19 | AO160: 14 | AP160: 9 | AQ160: 3
A161: 30/06/2017 | B161: 3.28 | C161: 2.94 | D161: 85.27 | E161: 103.24 | F161: 4.79 | G161: 3.28 | H161: 81.15 | I161: 109.65 | J161: 6.51 | K161: 3.6 | L161: 93.42 | M161: 119.47 | N161: 9.26 | O161: 3.97 | P161: 109.69 | Q161: 137.29 | R161: 34 | S161: 16 | T161: 10 | U161: 10 | V161: 6 | W161: 3.33 | X161: 3.39 | Y161: 130.35 | Z161: 148.67 | AA161: 4.73 | AB161: 3.7 | AC161: 123.08 | AD161: 151.58 | AE161: 6.8 | AF161: 4.08 | AG161: 141.61 | AH161: 167.66 | AI161: 8.73 | AJ161: 4.41 | AK161: 153.84 | AL161: 181.44 | AM161: 47 | AN161: 20 | AO161: 14 | AP161: 9 | AQ161: 3
A162: 31/07/2017 | B162: 3.25 | C162: 2.82 | D162: 75.78 | E162: 84.72 | F162: 4.78 | G162: 3.14 | H162: 70.74 | I162: 97.34 | J162: 6.51 | K162: 3.48 | L162: 84.36 | M162: 107.51 | N162: 9.3 | O162: 3.93 | P162: 107.85 | Q162: 125.05 | R162: 34 | S162: 17 | T162: 10 | U162: 11 | V162: 6 | W162: 3.29 | X162: 3.25 | Y162: 118.92 | Z162: 128.18 | AA162: 4.7 | AB162: 3.54 | AC162: 110.56 | AD162: 137.16 | AE162: 6.79 | AF162: 3.97 | AG162: 133.46 | AH162: 156.61 | AI162: 8.67 | AJ162: 4.35 | AK162: 149.68 | AL162: 166.88 | AM162: 48 | AN162: 19 | AO162: 14 | AP162: 9 | AQ162: 3
A163: 31/08/2017 | B163: 3.23 | C163: 2.88 | D163: 77.66 | E163: 83.74 | F163: 4.79 | G163: 3.19 | H163: 71.5 | I163: 95.25 | J163: 6.51 | K163: 3.51 | L163: 86.18 | M163: 105.26 | N163: 9.28 | O163: 3.94 | P163: 110.22 | Q163: 122.95 | R163: 34 | S163: 18 | T163: 11 | U163: 12 | V163: 6 | W163: 3.25 | X163: 3.3 | Y163: 118.59 | Z163: 124.99 | AA163: 4.7 | AB163: 3.6 | AC163: 112.47 | AD163: 136.22 | AE163: 6.79 | AF163: 4 | AG163: 135.64 | AH163: 154.73 | AI163: 8.62 | AJ163: 4.36 | AK163: 151.4 | AL163: 164.12 | AM163: 49 | AN163: 18 | AO163: 15 | AP163: 8 | AQ163: 3
A164: 30/09/2017 | B164: 3.2 | C164: 2.92 | D164: 72.93 | E164: 77.77 | F164: 4.78 | G164: 3.26 | H164: 68.09 | I164: 90.69 | J164: 6.58 | K164: 3.62 | L164: 84.7 | M164: 104.1 | N164: 9.28 | O164: 4.04 | P164: 106.08 | Q164: 120.48 | R164: 34 | S164: 21 | T164: 11 | U164: 13 | V164: 6 | W164: 3.24 | X164: 3.32 | Y164: 112.67 | Z164: 117.81 | AA164: 4.7 | AB164: 3.65 | AC164: 106.66 | AD164: 129.26 | AE164: 6.81 | AF164: 4.06 | AG164: 128.61 | AH164: 148.01 | AI164: 8.75 | AJ164: 4.46 | AK164: 147.49 | AL164: 161.89 | AM164: 48 | AN164: 20 | AO164: 14 | AP164: 9 | AQ164: 3
A165: 31/10/2017 | B165: 3.17 | C165: 2.72 | D165: 66.85 | E165: 74.87 | F165: 4.77 | G165: 3.04 | H165: 60.91 | I165: 86.16 | J165: 6.57 | K165: 3.38 | L165: 75.53 | M165: 88.78 | N165: 9.25 | O165: 3.8 | P165: 95.24 | Q165: 112.94 | R165: 36 | S165: 21 | T165: 9 | U165: 13 | V165: 6 | W165: 3.24 | X165: 3.12 | Y165: 106.14 | Z165: 114.44 | AA165: 4.7 | AB165: 3.42 | AC165: 98.96 | AD165: 124.21 | AE165: 6.81 | AF165: 3.8 | AG165: 117.5 | AH165: 130.75 | AI165: 8.69 | AJ165: 4.18 | AK165: 133.22 | AL165: 150.92 | AM165: 48 | AN165: 21 | AO165: 12 | AP165: 9 | AQ165: 3
A166: 30/11/2017 | B166: 3.24 | C166: 2.67 | D166: 67.74 | E166: 77.05 | F166: 4.77 | G166: 2.95 | H166: 62.18 | I166: 86.98 | J166: 6.58 | K166: 3.27 | L166: 76.89 | M166: 91.79 | N166: 9.28 | O166: 3.66 | P166: 98.03 | Q166: 116.28 | R166: 35 | S166: 21 | T166: 10 | U166: 13 | V166: 6 | W166: 3.25 | X166: 3.08 | Y166: 108.26 | Z166: 117.87 | AA166: 4.71 | AB166: 3.36 | AC166: 103.5 | AD166: 128.3 | AE166: 6.88 | AF166: 3.7 | AG166: 119.94 | AH166: 134.84 | AI166: 9.2 | AJ166: 4.16 | AK166: 148.18 | AL166: 166.43 | AM166: 47 | AN166: 21 | AO166: 12 | AP166: 14 | AQ166: 3
A167: 31/12/2017 | B167: 3.24 | C167: 2.85 | D167: 68.44 | E167: 72.37 | F167: 4.78 | G167: 3.14 | H167: 63.63 | I167: 84.58 | J167: 6.57 | K167: 3.43 | L167: 79.42 | M167: 91.12 | N167: 9.25 | O167: 3.78 | P167: 97.99 | Q167: 115.3 | R167: 33 | S167: 22 | T167: 11 | U167: 13 | V167: 6 | W167: 3.14 | X167: 3.17 | Y167: 100.49 | Z167: 104.66 | AA167: 4.78 | AB167: 3.52 | AC167: 102.1 | AD167: 123.05 | AE167: 6.95 | AF167: 3.86 | AG167: 122.34 | AH167: 134.04 | AI167: 9.15 | AJ167: 4.28 | AK167: 147.65 | AL167: 164.96 | AM167: 48 | AN167: 19 | AO167: 12 | AP167: 14 | AQ167: 3
A168: 31/01/2018 | B168: 3.21 | C168: 2.87 | D168: 64.55 | E168: 72.26 | F168: 4.77 | G168: 3.18 | H168: 57.06 | I168: 76.76 | J168: 6.57 | K168: 3.5 | L168: 71.4 | M168: 84.1 | N168: 9.21 | O168: 3.84 | P168: 87.19 | Q168: 103.19 | R168: 34 | S168: 22 | T168: 11 | U168: 13 | V168: 6 | W168: 3.2 | X168: 3.24 | Y168: 101.26 | Z168: 109.26 | AA168: 4.7 | AB168: 3.58 | AC168: 97.45 | AD168: 117.15 | AE168: 6.88 | AF168: 3.91 | AG168: 112.6 | AH168: 125.3 | AI168: 9.1 | AJ168: 4.31 | AK168: 134.06 | AL168: 150.06 | AM168: 48 | AN168: 20 | AO168: 12 | AP168: 14 | AQ168: 3
A169: 28/02/2018 | B169: 3.18 | C169: 2.82 | D169: 63.32 | E169: 73.43 | F169: 4.76 | G169: 3.13 | H169: 54.87 | I169: 75.57 | J169: 6.58 | K169: 3.46 | L169: 70.41 | M169: 83.21 | N169: 9.27 | O169: 3.81 | P169: 87.64 | Q169: 100.34 | R169: 35 | S169: 22 | T169: 10 | U169: 14 | V169: 6 | W169: 3.17 | X169: 3.19 | Y169: 100.12 | Z169: 110.5 | AA169: 4.7 | AB169: 3.54 | AC169: 96.12 | AD169: 116.82 | AE169: 6.88 | AF169: 3.88 | AG169: 112.71 | AH169: 125.51 | AI169: 9.06 | AJ169: 4.29 | AK169: 135.02 | AL169: 147.72 | AM169: 47 | AN169: 20 | AO169: 13 | AP169: 13 | AQ169: 3
A170: 31/03/2018 | B170: 3.16 | C170: 2.89 | D170: 70.77 | E170: 83.4 | F170: 4.69 | G170: 3.16 | H170: 64.35 | I170: 85.95 | J170: 6.54 | K170: 3.46 | L170: 81.6 | M170: 96.8 | N170: 9.29 | O170: 3.8 | P170: 99.03 | Q170: 120.03 | R170: 45 | S170: 26 | T170: 11 | U170: 15 | V170: 6 | W170: 3.21 | X170: 3.19 | Y170: 100.79 | Z170: 113.65 | AA170: 4.78 | AB170: 3.53 | AC170: 101.41 | AD170: 123.01 | AE170: 6.88 | AF170: 3.92 | AG170: 126.71 | AH170: 141.91 | AI170: 9.06 | AJ170: 4.37 | AK170: 156.38 | AL170: 177.38 | AM170: 48 | AN170: 21 | AO170: 14 | AP170: 15 | AQ170: 3
A171: 30/04/2018 | B171: 3.16 | C171: 2.98 | D171: 71.72 | E171: 79.77 | F171: 4.68 | G171: 3.25 | H171: 64.67 | I171: 81.99 | J171: 6.55 | K171: 3.56 | L171: 81.08 | M171: 94.03 | N171: 9.26 | O171: 3.92 | P171: 99.28 | Q171: 114.88 | R171: 44 | S171: 26 | T171: 12 | U171: 15 | V171: 5 | W171: 3.17 | X171: 3.37 | Y171: 110.87 | Z171: 119.23 | AA171: 4.81 | AB171: 3.72 | AC171: 111.89 | AD171: 129.22 | AE171: 6.94 | AF171: 4.05 | AG171: 129.64 | AH171: 142.59 | AI171: 9.12 | AJ171: 4.46 | AK171: 153.92 | AL171: 169.52 | AM171: 49 | AN171: 23 | AO171: 15 | AP171: 16 | AQ171: 3
A172: 31/05/2018 | B172: 3.14 | C172: 2.9 | D172: 68.52 | E172: 80.85 | F172: 4.66 | G172: 3.19 | H172: 63.34 | I172: 87.93 | J172: 6.56 | K172: 3.53 | L172: 81.82 | M172: 101.92 | N172: 9.23 | O172: 3.89 | P172: 99.97 | Q172: 121.72 | R172: 45 | S172: 24 | T172: 11 | U172: 15 | V172: 6 | W172: 3.17 | X172: 3.33 | Y172: 110.85 | Z172: 123.5 | AA172: 4.88 | AB172: 3.69 | AC172: 113.65 | AD172: 138.24 | AE172: 6.94 | AF172: 4.04 | AG172: 132.23 | AH172: 152.33 | AI172: 9.1 | AJ172: 4.49 | AK172: 160.08 | AL172: 181.83 | AM172: 50 | AN172: 22 | AO172: 16 | AP172: 17 | AQ172: 3
A173: 30/06/2018 | B173: 3.11 | C173: 2.93 | D173: 75.91 | E173: 87.42 | F173: 4.65 | G173: 3.21 | H173: 70.44 | I173: 94.02 | J173: 6.56 | K173: 3.56 | L173: 89.76 | M173: 109.27 | N173: 9.2 | O173: 3.91 | P173: 107.7 | Q173: 128.22 | R173: 47 | S173: 22 | T173: 11 | U173: 15 | V173: 6 | W173: 3.14 | X173: 3.3 | Y173: 112.3 | Z173: 124.1 | AA173: 4.91 | AB173: 3.68 | AC173: 117.78 | AD173: 141.37 | AE173: 6.93 | AF173: 4.03 | AG173: 136.6 | AH173: 156.11 | AI173: 9.04 | AJ173: 4.49 | AK173: 165.68 | AL173: 186.21 | AM173: 50 | AN173: 23 | AO173: 16 | AP173: 16 | AQ173: 3
A174: 31/07/2018 | B174: 3.08 | C174: 2.98 | D174: 77.88 | E174: 89.75 | F174: 4.64 | G174: 3.26 | H174: 75.84 | I174: 99.74 | J174: 6.57 | K174: 3.62 | L174: 94.23 | M174: 114.81 | N174: 9.17 | O174: 3.98 | P174: 112.23 | Q174: 132.98 | R174: 49 | S174: 21 | T174: 11 | U174: 14 | V174: 6 | W174: 3.12 | X174: 3.37 | Y174: 116.76 | Z174: 128.93 | AA174: 4.92 | AB174: 3.76 | AC174: 125.69 | AD174: 149.59 | AE174: 6.92 | AF174: 4.13 | AG174: 144.35 | AH174: 164.94 | AI174: 8.99 | AJ174: 4.58 | AK174: 171.85 | AL174: 192.6 | AM174: 50 | AN174: 22 | AO174: 16 | AP174: 16 | AQ174: 3
A175: 31/08/2018 | B175: 3.05 | C175: 2.88 | D175: 83.78 | E175: 90.68 | F175: 4.62 | G175: 3.13 | H175: 78.36 | I175: 99.56 | J175: 6.58 | K175: 3.47 | L175: 96.39 | M175: 113.59 | N175: 9.14 | O175: 3.83 | P175: 113.77 | Q175: 130.74 | R175: 52 | S175: 19 | T175: 10 | U175: 14 | V175: 6 | W175: 3.11 | X175: 3.26 | Y175: 121.77 | Z175: 128.96 | AA175: 4.91 | AB175: 3.6 | AC175: 125.62 | AD175: 146.82 | AE175: 6.91 | AF175: 3.94 | AG175: 142.96 | AH175: 160.16 | AI175: 8.93 | AJ175: 4.38 | AK175: 169.53 | AL175: 186.51 | AM175: 50 | AN175: 22 | AO175: 16 | AP175: 16 | AQ175: 3
A176: 30/09/2018 | B176: 3.06 | C176: 2.93 | D176: 79.73 | E176: 88.14 | F176: 4.62 | G176: 3.22 | H176: 73.75 | I176: 98.57 | J176: 6.55 | K176: 3.58 | L176: 91.99 | M176: 112.09 | N176: 9.12 | O176: 3.96 | P176: 110.11 | Q176: 129.06 | R176: 58 | S176: 17 | T176: 8 | U176: 14 | V176: 6 | W176: 3.11 | X176: 3.34 | Y176: 120.13 | Z176: 128.87 | AA176: 4.92 | AB176: 3.73 | AC176: 124.61 | AD176: 149.43 | AE176: 6.9 | AF176: 4.09 | AG176: 142.33 | AH176: 162.44 | AI176: 8.89 | AJ176: 4.53 | AK176: 167.01 | AL176: 185.96 | AM176: 51 | AN176: 22 | AO176: 15 | AP176: 15 | AQ176: 3
A177: 31/10/2018 | B177: 3.06 | C177: 2.89 | D177: 79.37 | E177: 89.6 | F177: 4.61 | G177: 3.19 | H177: 75.72 | I177: 102.32 | J177: 6.56 | K177: 3.57 | L177: 96.17 | M177: 116.77 | N177: 9.09 | O177: 3.92 | P177: 111.72 | Q177: 129.42 | R177: 57 | S177: 18 | T177: 6 | U177: 14 | V177: 6 | W177: 3.12 | X177: 3.32 | Y177: 122.18 | Z177: 132.74 | AA177: 4.93 | AB177: 3.71 | AC177: 127.7 | AD177: 154.3 | AE177: 6.89 | AF177: 4.08 | AG177: 146.85 | AH177: 167.45 | AI177: 8.83 | AJ177: 4.52 | AK177: 171.71 | AL177: 189.41 | AM177: 52 | AN177: 19 | AO177: 16 | AP177: 14 | AQ177: 3
A178: 30/11/2018 | B178: 3.04 | C178: 2.98 | D178: 85.44 | E178: 96.67 | F178: 4.6 | G178: 3.29 | H178: 84.32 | I178: 109.87 | J178: 6.57 | K178: 3.66 | L178: 105.54 | M178: 127.16 | N178: 9.06 | O178: 3.98 | P178: 120.57 | Q178: 139.12 | R178: 55 | S178: 18 | T178: 7 | U178: 13 | V178: 6 | W178: 3.12 | X178: 3.45 | Y178: 132.25 | Z178: 143.85 | AA178: 4.94 | AB178: 3.84 | AC178: 139.43 | AD178: 164.98 | AE178: 6.88 | AF178: 4.22 | AG178: 162.21 | AH178: 183.83 | AI178: 8.77 | AJ178: 4.69 | AK178: 190.91 | AL178: 209.46 | AM178: 49 | AN178: 18 | AO178: 16 | AP178: 14 | AQ178: 3
A179: 31/12/2018 | B179: 2.99 | C179: 2.89 | D179: 96.39 | E179: 104.33 | F179: 4.5 | G179: 3.17 | H179: 95.77 | I179: 126.57 | J179: 6.6 | K179: 3.55 | L179: 117.89 | M179: 143.49 | N179: 9.07 | O179: 3.84 | P179: 128.41 | Q179: 152.21 | R179: 54 | S179: 17 | T179: 6 | U179: 13 | V179: 6 | W179: 3.04 | X179: 3.4 | Y179: 146.64 | Z179: 154.97 | AA179: 4.88 | AB179: 3.78 | AC179: 156.39 | AD179: 187.19 | AE179: 6.76 | AF179: 4.17 | AG179: 178.91 | AH179: 204.51 | AI179: 8.51 | AJ179: 4.63 | AK179: 207.5 | AL179: 231.3 | AM179: 49 | AN179: 16 | AO179: 13 | AP179: 10 | AQ179: 3
A180: 31/01/2019 | B180: 2.99 | C180: 2.88 | D180: 98.2 | E180: 113.02 | F180: 4.57 | G180: 3.11 | H180: 96.84 | I180: 122.91 | J180: 6.58 | K180: 3.44 | L180: 114.96 | M180: 136.56 | N180: 9.01 | O180: 3.75 | P180: 126.8 | Q180: 150.5 | R180: 55 | S180: 18 | T180: 7 | U180: 13 | V180: 6 | W180: 3.12 | X180: 3.38 | Y180: 147.67 | Z180: 162.88 | AA180: 4.98 | AB180: 3.71 | AC180: 156.16 | AD180: 182.24 | AE180: 6.87 | AF180: 4.09 | AG180: 179.32 | AH180: 200.92 | AI180: 8.66 | AJ180: 4.53 | AK180: 204.8 | AL180: 228.5 | AM180: 44 | AN180: 18 | AO180: 13 | AP180: 14 | AQ180: 3
A181: 28/02/2019 | B181: 2.98 | C181: 2.69 | D181: 93.06 | E181: 106.66 | F181: 4.56 | G181: 2.92 | H181: 90.72 | I181: 119.42 | J181: 6.59 | K181: 3.25 | L181: 108.38 | M181: 133.12 | N181: 8.99 | O181: 3.53 | P181: 117.9 | Q181: 143.15 | R181: 55 | S181: 17 | T181: 8 | U181: 12 | V181: 6 | W181: 3.1 | X181: 3.19 | Y181: 142.26 | Z181: 156.23 | AA181: 4.99 | AB181: 3.51 | AC181: 149.69 | AD181: 178.39 | AE181: 6.85 | AF181: 3.87 | AG181: 171.11 | AH181: 195.85 | AI181: 8.6 | AJ181: 4.32 | AK181: 196.02 | AL181: 221.27 | AM181: 44 | AN181: 18 | AO181: 13 | AP181: 14 | AQ181: 3
A182: 31/03/2019 | B182: 3.07 | C182: 2.35 | D182: 86.28 | E182: 96.97 | F182: 4.57 | G182: 2.54 | H182: 83.85 | I182: 110.48 | J182: 6.6 | K182: 2.87 | L182: 101.64 | M182: 125.47 | N182: 8.96 | O182: 3.16 | P182: 112.7 | Q182: 138.9 | R182: 48 | S182: 17 | T182: 8 | U182: 12 | V182: 6 | W182: 3.09 | X182: 2.85 | Y182: 135.84 | Z182: 146.86 | AA182: 4.99 | AB182: 3.14 | AC182: 143.6 | AD182: 170.22 | AE182: 6.84 | AF182: 3.5 | AG182: 165.39 | AH182: 189.22 | AI182: 8.55 | AJ182: 3.94 | AK182: 190.42 | AL182: 216.62 | AM182: 45 | AN182: 18 | AO182: 13 | AP182: 12 | AQ182: 3
A183: 30/04/2019 | B183: 3.05 | C183: 2.2 | D183: 80.38 | E183: 91.88 | F183: 4.56 | G183: 2.42 | H183: 76.19 | I183: 103.89 | J183: 6.64 | K183: 2.78 | L183: 95.14 | M183: 120.79 | N183: 9.09 | O183: 3.12 | P183: 106.24 | Q183: 133.44 | R183: 49 | S183: 17 | T183: 8 | U183: 12 | V183: 6 | W183: 3.11 | X183: 2.61 | Y183: 121.59 | Z183: 133.33 | AA183: 4.99 | AB183: 2.95 | AC183: 129.98 | AD183: 157.68 | AE183: 6.83 | AF183: 3.4 | AG183: 156.44 | AH183: 182.09 | AI183: 8.62 | AJ183: 3.93 | AK183: 187.21 | AL183: 214.41 | AM183: 48 | AN183: 19 | AO183: 12 | AP183: 13 | AQ183: 3
A184: 31/05/2019 | B184: 3.1 | C184: 2 | D184: 80.75 | E184: 90.35 | F184: 4.56 | G184: 2.2 | H184: 81.89 | I184: 104.39 | J184: 6.65 | K184: 2.55 | L184: 101.67 | M184: 124.48 | N184: 9.06 | O184: 2.85 | P184: 112.36 | Q184: 139.56 | R184: 46 | S184: 17 | T184: 8 | U184: 12 | V184: 6 | W184: 3.09 | X184: 2.4 | Y184: 120.18 | Z184: 129.99 | AA184: 4.99 | AB184: 2.73 | AC184: 134.81 | AD184: 157.3 | AE184: 6.84 | AF184: 3.19 | AG184: 165.78 | AH184: 188.58 | AI184: 8.72 | AJ184: 3.68 | AK184: 194.94 | AL184: 222.14 | AM184: 48 | AN184: 21 | AO184: 11 | AP184: 12 | AQ184: 3
A185: 30/06/2019 | B185: 3.09 | C185: 1.83 | D185: 80.46 | E185: 87.87 | F185: 4.55 | G185: 2.01 | H185: 81.3 | I185: 100.1 | J185: 6.68 | K185: 2.34 | L185: 98.08 | M185: 117.98 | N185: 9.15 | O185: 2.68 | P185: 111.25 | Q185: 135.3 | R185: 45 | S185: 18 | T185: 7 | U185: 13 | V185: 6 | W185: 3.12 | X185: 2.21 | Y185: 118.27 | Z185: 125.88 | AA185: 5 | AB185: 2.49 | AC185: 129.3 | AD185: 148.1 | AE185: 6.83 | AF185: 2.94 | AG185: 158.73 | AH185: 178.63 | AI185: 8.67 | AJ185: 3.42 | AK185: 185.88 | AL185: 209.93 | AM185: 46 | AN185: 20 | AO185: 11 | AP185: 12 | AQ185: 3
A186: 31/07/2019 | B186: 3.1 | C186: 1.67 | D186: 81.21 | E186: 86.05 | F186: 4.47 | G186: 1.82 | H186: 79.2 | I186: 98.1 | J186: 6.59 | K186: 2.15 | L186: 96.17 | M186: 113.72 | N186: 8.6 | O186: 2.41 | P186: 100.79 | Q186: 122.69 | R186: 44 | S186: 17 | T186: 7 | U186: 10 | V186: 6 | W186: 3.14 | X186: 2.01 | Y186: 115.74 | Z186: 120.74 | AA186: 5 | AB186: 2.25 | AC186: 121.61 | AD186: 140.51 | AE186: 6.79 | AF186: 2.69 | AG186: 150.59 | AH186: 168.14 | AI186: 8.44 | AJ186: 3.22 | AK186: 181.62 | AL186: 203.52 | AM186: 42 | AN186: 21 | AO186: 11 | AP186: 10 | AQ186: 3
A187: 31/08/2019 | B187: 3.11 | C187: 1.54 | D187: 83.21 | E187: 87.3 | F187: 4.55 | G187: 1.68 | H187: 84.28 | I187: 100.33 | J187: 6.71 | K187: 1.93 | L187: 98.99 | M187: 115.06 | N187: 9.14 | O187: 2.09 | P187: 100.83 | Q187: 120.71 | R187: 42 | S187: 17 | T187: 10 | U187: 11 | V187: 6 | W187: 3.13 | X187: 1.9 | Y187: 119.02 | Z187: 123.27 | AA187: 5 | AB187: 2.09 | AC187: 125.79 | AD187: 141.84 | AE187: 6.79 | AF187: 2.5 | AG187: 156.62 | AH187: 172.68 | AI187: 8.58 | AJ187: 2.86 | AK187: 177.75 | AL187: 197.63 | AM187: 42 | AN187: 23 | AO187: 10 | AP187: 12 | AQ187: 4
A188: 30/09/2019 | B188: 3.16 | C188: 1.59 | D188: 81.64 | E188: 85.45 | F188: 4.55 | G188: 1.72 | H188: 80.68 | I188: 96.93 | J188: 6.69 | K188: 1.97 | L188: 95.87 | M188: 109.97 | N188: 9.12 | O188: 2.18 | P188: 101.15 | Q188: 116 | R188: 46 | S188: 14 | T188: 12 | U188: 10 | V188: 6 | W188: 3.18 | X188: 1.93 | Y188: 115.68 | Z188: 119.64 | AA188: 5 | AB188: 2.12 | AC188: 120.96 | AD188: 137.21 | AE188: 6.81 | AF188: 2.54 | AG188: 152.03 | AH188: 166.13 | AI188: 8.77 | AJ188: 2.89 | AK188: 172.49 | AL188: 187.34 | AM188: 41 | AN188: 22 | AO188: 12 | AP188: 12 | AQ188: 4
A189: 31/10/2019 | B189: 3.16 | C189: 1.64 | D189: 77.96 | E189: 82.79 | F189: 4.57 | G189: 1.8 | H189: 78.04 | I189: 95.24 | J189: 6.71 | K189: 2.08 | L189: 94.22 | M189: 109.92 | N189: 9.07 | O189: 2.31 | P189: 100.81 | Q189: 116.71 | R189: 46 | S189: 12 | T189: 13 | U189: 10 | V189: 6 | W189: 3.29 | X189: 2.02 | Y189: 115.75 | Z189: 120.75 | AA189: 5.01 | AB189: 2.21 | AC189: 119.26 | AD189: 136.46 | AE189: 6.81 | AF189: 2.64 | AG189: 150.57 | AH189: 166.27 | AI189: 8.72 | AJ189: 3.01 | AK189: 170.9 | AL189: 186.8 | AM189: 38 | AN189: 20 | AO189: 12 | AP189: 12 | AQ189: 4
A190: 30/11/2019 | B190: 3.12 | C190: 1.48 | D190: 77.56 | E190: 83.54 | F190: 4.47 | G190: 1.65 | H190: 76.12 | I190: 95.92 | J190: 6.59 | K190: 1.96 | L190: 93.48 | M190: 111.58 | N190: 8.48 | O190: 2.18 | P190: 97.97 | Q190: 114.82 | R190: 45 | S190: 13 | T190: 12 | U190: 6 | V190: 6 | W190: 3.28 | X190: 1.82 | Y190: 111.41 | Z190: 117.52 | AA190: 5.02 | AB190: 2.03 | AC190: 113.67 | AD190: 133.47 | AE190: 6.77 | AF190: 2.44 | AG190: 141.7 | AH190: 159.8 | AI190: 8.52 | AJ190: 2.88 | AK190: 167.49 | AL190: 184.34 | AM190: 37 | AN190: 20 | AO190: 14 | AP190: 12 | AQ190: 3
A191: 31/12/2019 | B191: 3.08 | C191: 1.67 | D191: 71.05 | E191: 76.39 | F191: 4.55 | G191: 1.88 | H191: 69.51 | I191: 88.91 | J191: 6.74 | K191: 2.2 | L191: 87.37 | M191: 106.57 | N191: 9.01 | O191: 2.49 | P191: 96.45 | Q191: 111.95 | R191: 45 | S191: 11 | T191: 13 | U191: 9 | V191: 6 | W191: 3.16 | X191: 1.99 | Y191: 103.24 | Z191: 108.73 | AA191: 4.97 | AB191: 2.31 | AC191: 112.18 | AD191: 131.58 | AE191: 6.93 | AF191: 2.75 | AG191: 142.34 | AH191: 161.54 | AI191: 8.72 | AJ191: 3.1 | AK191: 157.37 | AL191: 172.87 | AM191: 37 | AN191: 17 | AO191: 14 | AP191: 14 | AQ191: 4
A192: 31/01/2020 | B192: 3.07 | C192: 1.37 | D192: 73.53 | E192: 75.16 | F192: 4.56 | G192: 1.5 | H192: 70.08 | I192: 83.98 | J192: 6.71 | K192: 1.76 | L192: 83.93 | M192: 98.63 | N192: 8.98 | O192: 1.96 | P192: 86.96 | Q192: 100.86 | R192: 44 | S192: 12 | T192: 13 | U192: 9 | V192: 6 | W192: 3.23 | X192: 1.69 | Y192: 105.06 | Z192: 106.81 | AA192: 5 | AB192: 1.87 | AC192: 106.47 | AD192: 120.37 | AE192: 6.81 | AF192: 2.26 | AG192: 133.7 | AH192: 148.4 | AI192: 8.66 | AJ192: 2.58 | AK192: 148.89 | AL192: 162.79 | AM192: 37 | AN192: 20 | AO192: 14 | AP192: 14 | AQ192: 4
A193: 29/02/2020 | B193: 3.03 | C193: 1.28 | D193: 82.59 | E193: 78.35 | F193: 4.56 | G193: 1.4 | H193: 77.02 | I193: 86.93 | J193: 6.73 | K193: 1.64 | L193: 89.47 | M193: 101.35 | N193: 9.15 | O193: 1.82 | P193: 90.42 | Q193: 100.52 | R193: 45 | S193: 11 | T193: 13 | U193: 10 | V193: 6 | W193: 3.24 | X193: 1.63 | Y193: 117.03 | Z193: 112.91 | AA193: 5 | AB193: 1.81 | AC193: 118.12 | AD193: 128.03 | AE193: 6.8 | AF193: 2.21 | AG193: 146.21 | AH193: 158.08 | AI193: 8.62 | AJ193: 2.5 | AK193: 158 | AL193: 168.1 | AM193: 36 | AN193: 21 | AO193: 13 | AP193: 14 | AQ193: 4
A194: 31/03/2020 | B194: 3.06 | C194: 1.96 | D194: 158.87 | E194: 172.65 | F194: 4.58 | G194: 2.23 | H194: 166.21 | I194: 189.32 | J194: 6.73 | K194: 2.5 | L194: 178.58 | M194: 201.6 | N194: 9.12 | O194: 2.71 | P194: 180.58 | Q194: 194.73 | R194: 38 | S194: 12 | T194: 13 | U194: 9 | V194: 6 | W194: 3.24 | X194: 2.35 | Y194: 197.23 | Z194: 211.21 | AA194: 5.01 | AB194: 2.77 | AC194: 220.23 | AD194: 243.34 | AE194: 6.79 | AF194: 3.3 | AG194: 258.46 | AH194: 281.47 | AI194: 8.57 | AJ194: 3.8 | AK194: 289.45 | AL194: 303.6 | AM194: 38 | AN194: 21 | AO194: 15 | AP194: 11 | AQ194: 4
A195: 30/04/2020 | B195: 3.06 | C195: 1.73 | D195: 143.24 | E195: 147.52 | F195: 4.59 | G195: 1.95 | H195: 144.81 | I195: 153.71 | J195: 6.76 | K195: 2.23 | L195: 153.91 | M195: 162.51 | N195: 9.21 | O195: 2.43 | P195: 150.58 | Q195: 154.08 | R195: 35 | S195: 13 | T195: 12 | U195: 10 | V195: 6 | W195: 3.27 | X195: 2.38 | Y195: 208.53 | Z195: 213.13 | AA195: 5.02 | AB195: 2.89 | AC195: 238.66 | AD195: 247.56 | AE195: 6.93 | AF195: 3.63 | AG195: 293.15 | AH195: 301.75 | AI195: 8.9 | AJ195: 3.97 | AK195: 304.08 | AL195: 307.58 | AM195: 39 | AN195: 19 | AO195: 16 | AP195: 12 | AQ195: 4
A196: 31/05/2020 | B196: 2.99 | C196: 1.55 | D196: 126.96 | E196: 128.96 | F196: 4.51 | G196: 1.69 | H196: 123.1 | I196: 129.9 | J196: 6.74 | K196: 2.02 | L196: 138.23 | M196: 142.73 | N196: 9.15 | O196: 2.35 | P196: 147.11 | Q196: 146.11 | R196: 42 | S196: 13 | T196: 12 | U196: 10 | V196: 6 | W196: 3.32 | X196: 2.22 | Y196: 193.91 | Z196: 196.22 | AA196: 5 | AB196: 2.62 | AC196: 216.3 | AD196: 223.1 | AE196: 6.94 | AF196: 3.28 | AG196: 263.75 | AH196: 268.25 | AI196: 8.99 | AJ196: 3.58 | AK196: 270.41 | AL196: 269.41 | AM196: 38 | AN196: 20 | AO196: 18 | AP196: 13 | AQ196: 5
A197: 30/06/2020 | B197: 2.93 | C197: 1.32 | D197: 108.79 | E197: 107.01 | F197: 4.55 | G197: 1.48 | H197: 105.45 | I197: 108.9 | J197: 6.79 | K197: 1.82 | L197: 120.83 | M197: 123.33 | N197: 9.19 | O197: 2.12 | P197: 125.97 | Q197: 124.67 | R197: 41 | S197: 11 | T197: 11 | U197: 11 | V197: 6 | W197: 3.34 | X197: 1.99 | Y197: 175.09 | Z197: 173.58 | AA197: 4.97 | AB197: 2.37 | AC197: 194.3 | AD197: 197.75 | AE197: 6.91 | AF197: 3.02 | AG197: 240.84 | AH197: 243.34 | AI197: 9.01 | AJ197: 3.32 | AK197: 246.61 | AL197: 245.31 | AM197: 42 | AN197: 22 | AO197: 18 | AP197: 14 | AQ197: 5
A198: 31/07/2020 | B198: 2.88 | C198: 1.01 | D198: 81.44 | E198: 74.67 | F198: 4.54 | G198: 1.17 | H198: 81.02 | I198: 77.82 | J198: 6.79 | K198: 1.49 | L198: 97.16 | M198: 94.46 | N198: 9.11 | O198: 1.71 | P198: 95.58 | Q198: 89.31 | R198: 42 | S198: 10 | T198: 11 | U198: 10 | V198: 7 | W198: 3.35 | X198: 1.73 | Y198: 153.11 | Z198: 146.58 | AA198: 4.99 | AB198: 2.06 | AC198: 170.02 | AD198: 166.82 | AE198: 6.88 | AF198: 2.62 | AG198: 210.69 | AH198: 207.99 | AI198: 8.9 | AJ198: 2.78 | AK198: 202.84 | AL198: 196.57 | AM198: 42 | AN198: 21 | AO198: 20 | AP198: 13 | AQ198: 5
A199: 31/08/2020 | B199: 2.86 | C199: 0.92 | D199: 72.44 | E199: 66.15 | F199: 4.56 | G199: 1.13 | H199: 73.33 | I199: 70.93 | J199: 6.79 | K199: 1.52 | L199: 90.9 | M199: 86.4 | N199: 9.08 | O199: 1.8 | P199: 89.77 | Q199: 81.48 | R199: 42 | S199: 9 | T199: 12 | U199: 9 | V199: 7 | W199: 3.35 | X199: 1.65 | Y199: 144.75 | Z199: 138.69 | AA199: 4.98 | AB199: 1.99 | AC199: 159.18 | AD199: 156.78 | AE199: 6.88 | AF199: 2.58 | AG199: 196.79 | AH199: 192.29 | AI199: 8.9 | AJ199: 2.77 | AK199: 186.93 | AL199: 178.64 | AM199: 41 | AN199: 21 | AO199: 20 | AP199: 13 | AQ199: 5
A200: 30/09/2020 | B200: 2.83 | C200: 0.84 | D200: 70.93 | E200: 68.12 | F200: 4.57 | G200: 1.02 | H200: 72.82 | I200: 73.02 | J200: 6.8 | K200: 1.36 | L200: 87.04 | M200: 87.34 | N200: 9 | O200: 1.56 | P200: 80.82 | Q200: 77.02 | R200: 44 | S200: 8 | T200: 13 | U200: 8 | V200: 6 | W200: 3.33 | X200: 1.56 | Y200: 142.76 | Z200: 140.17 | AA200: 4.96 | AB200: 1.9 | AC200: 161.56 | AD200: 161.76 | AE200: 6.89 | AF200: 2.51 | AG200: 201.84 | AH200: 202.14 | AI200: 8.96 | AJ200: 2.61 | AK200: 186.47 | AL200: 182.67 | AM200: 40 | AN200: 18 | AO200: 18 | AP200: 11 | AQ200: 5
A201: 31/10/2020 | B201: 2.88 | C201: 0.71 | D201: 60.83 | E201: 58.62 | F201: 4.6 | G201: 0.9 | H201: 63.91 | I201: 61.51 | J201: 6.81 | K201: 1.24 | L201: 76.89 | M201: 73.29 | N201: 9.05 | O201: 1.43 | P201: 65.84 | Q201: 60.15 | R201: 45 | S201: 7 | T201: 12 | U201: 10 | V201: 7 | W201: 3.43 | X201: 1.41 | Y201: 130.87 | Z201: 128.84 | AA201: 4.99 | AB201: 1.75 | AC201: 149.15 | AD201: 146.75 | AE201: 6.89 | AF201: 2.38 | AG201: 190.78 | AH201: 187.18 | AI201: 9.06 | AJ201: 2.54 | AK201: 176.47 | AL201: 170.78 | AM201: 39 | AN201: 19 | AO201: 20 | AP201: 16 | AQ201: 5
A202: 30/11/2020 | B202: 2.88 | C202: 0.63 | D202: 49.92 | E202: 51.97 | F202: 4.62 | G202: 0.85 | H202: 51.75 | I202: 55.45 | J202: 6.82 | K202: 1.2 | L202: 63.71 | M202: 66.5 | N202: 9.04 | O202: 1.43 | P202: 55.69 | Q202: 53.39 | R202: 42 | S202: 7 | T202: 12 | U202: 11 | V202: 7 | W202: 3.41 | X202: 1.18 | Y202: 104.92 | Z202: 107.1 | AA202: 4.99 | AB202: 1.53 | AC202: 119.54 | AD202: 123.24 | AE202: 6.89 | AF202: 2.15 | AG202: 158.59 | AH202: 161.38 | AI202: 9 | AJ202: 2.3 | AK202: 142.62 | AL202: 140.33 | AM202: 39 | AN202: 22 | AO202: 19 | AP202: 16 | AQ202: 5
... 3 more rows
